Workbook

Sheet Maquette
A2: VARIABLES A SAISIR
A3: Année | B3: 2023
A4: Budget | B4: initial
A5: N° budget

Sheet récap
B1: EPSCP - synthèse des documents budgétaires
B4: Intitulé du tableau | C4: Périmètre | D4: Soumission au CA
A6: 1 | B6: Tableau des emplois | C6: Budget de l'établissement | D6: Pour vote
A7: 2 | B7: Tableau des autorisations budgétaires | C7: Budget de l'établissement (3) = (1)+(2) | D7: Pour vote. Pour les SIE, le vote relève du CA de l'établissement de rattachement
C8: Budget établissement principal (1)
C9: Fondation universitaire (2)
A10: 3 | B10: Tableau des dépenses par destination et recettes par origine | C10: Budget de l'établissement | D10: Pour information
C11: Budget établissement principal
A12: 4 | B12: Tableau d'équilibre financier | C12: Budget de l'établissement | D12: Pour vote
A13: 5 | B13: Tableau des opération pour compte de tiers | C13: Budget de l'établissement | D13: Pour information
A14: 6 | B14: Tableau de situation patrimoniale (tableau compte de résultat - tableau de financement) | C14: Budget de l'établissement (3) = (1)+(2) | D14: Pour vote
C15: Budget établissement principal (1)
C16: Fondation universitaire (2)
A17: 7 | B17: Tableau présentant le plan de trésorerie | C17: Budget de l'établissement | D17: Pour information
A18: 8 | B18: Tableau des opérations liées aux recettes fléchées | C18: Budget de l'établissement | D18: Pour information
C19: Budget établissement principal
A20: 9 | B20: Tableau des opérations pluriannuelles | C20: Budget de l'établissement | D20: Pour vote
A21: 10 | B21: Tableau détaillé des opérations pluriannuelles et programmation | C21: Budget de l'établissement | D21: Pour information
A22: 11 | B22: Tableau retraçant les moyens des unités mixtes de recherche | D22: Pour information
A23: Annexe 5 | B23: Tableau de synthèse | C23: Budget de l'établissement
A24: Annexe 14 | B24: Plan d'actions achats prévisionnel | C24: Budget de l'établissement
A25: Annexe 15 | B25: Annexe immobilière | C25: Budget de l'établissement

Sheet 1-tab emplois_ETAB
B1: Tableau 1 - Université de Bretagne Sud (0561718N) : Etablissement principal + Fondation
B2: ="Tableau des emplois présenté par l’établissement à l’appui du budget "&Maquette!B4&" "&Maquette!B5&" "&Maquette!B3 -> Tableau des emplois présenté par l’établissement à l’appui du budget initial 2023
B4: POUR VOTE DE L'ORGANE DÉLIBÉRANT
G5: (A) | L5: (B) | P5: ( C ) = (A) + (B)
F6: Emplois sous plafond Etat * | K6: Emplois financés hors SCSP | P6: Global
B7: Catégories d'emplois | C7: Nature des emplois | F7: En ETPT | K7: En ETPT
B8: Enseignants, enseignants-chercheurs, chercheurs | C8: Permanents | D8: Titulaires | F8: 378.7 | N8: 0 | P8: =F8 -> 378.7
D9: CDI | F9: 7.5 | K9: 4 | P9: =F9+K9 -> 11.5
C10: Non permanents | D10: CDD | F10: 71.78 | K10: 83.25 | P10: =F10+K10 -> 155.03
B11: S/total EC | F11: =SUM(F8:I10) -> 457.98 | K11: =SUM(K9:N10) -> 87.25 | P11: =SUM(P8:P10) -> 545.23
B13: Elèves fonctionnaires stagiaires des écoles nationales supérieures (ENS) | P13: =F13 -> 0
B15: BIATSS (personnels de bibliothèques, ingénieurs, administratifs, techniques et de service) | C15: Permanents | D15: Titulaires | F15: 284.27 | P15: =F15 -> 284.27
D16: CDI | F16: 23 | K16: 17 | P16: =K16+F16 -> 40
C17: Non permanents | D17: CDD | F17: 61.75 | K17: 120.75 | P17: =K17+F17 -> 182.5
B18: S/total Biatss | F18: =SUM(F15:I17) -> 369.02 | K18: =SUM(K16:N17) -> 137.75 | P18: =SUM(P15:P17) -> 506.77
B19: Totaux | F19: =F11+F13+F18 -> 827 | J19: (1) | K19: =K11+K18 -> 225 | P19: =P11+P13+P18 -> 1052
F20: =IF(F19>F21,"! Nombre total d'emplois sous plafond > à la notification de l'Etat","") ->  | P20: Plafond global des emplois voté par le CA ** | Q20: (2)
B21: Rappel du plafond des emplois fixé par l'Etat | F21: 830 | J21: (3)
B22: Note sur les modalités de renseignement du tableau
B23: Ce tableau doit être annexé au budget de l'établissement et, en cas de modification, aux budgets rectificatifs. Les chiffres qu'il contient doivent être exprimés en équivalents temps plein travaillés (ETPT). Le guide de décompte des emplois élaboré par la DAF et la DGESIP précise les régles de décompte des emplois en ETPT en fonction des catégories de personnel.
B24: Seul est soumis au vote du conseil d'administration le plafond global des emplois (case annotée (2))
B25: Le nombre total d'emplois sous plafond Etat (case annotée (1)) ne peut être supérieur au plafond des emplois Etat qui a été notifié à l'établissement et rappelé en case (3)
B26: * : cf. article R719-54 du code de l'éducation : "plafond d'emplois fixé par l'État relatif aux emplois financés par l'État" ** : cf. article R719-54 du code de l'éducation : "plafond d'autorisation de l'ensemble des emplois rémunérés par l'établissement"

Sheet 2-tab_aut_budg_ETAB
B1: Tableau 2 - Université de Bretagne Sud (0561718N) : Etablissement principal + Fondation
B2: ="Autorisations budgétaires - Budget consolidé "&Maquette!B4&" "&Maquette!B5&" "&Maquette!B3 -> Autorisations budgétaires - Budget consolidé initial 2023
B5: POUR VOTE DE L'ORGANE DÉLIBÉRANT
B8: Dépenses | N8: Recettes
C9: Exécution N-1: BR2/2022 | E9: Budget initial (a) | G9: Nouveau BR | I9: Somme des BR (yc nouveau BR) (b) | K9: TOTAL : dernier budget modifié (c) = (a) + (b) | N9: Exécution N-1: BR1/2021 | O9: Budget initial (d) | P9: Nouveau BR | Q9: Somme des BR (yc nouveau BR) (e) | R9: TOTAL : dernier budget modifié (f) = (d) + (e)
C10: AE | D10: CP | E10: AE | F10: CP | G10: AE | H10: CP | I10: AE | J10: CP | K10: AE | L10: CP | N10: Montants | O10: Montants | P10: Montants | Q10: Montants | R10: Montants
B11: Personnel | C11: ='2-tab_aut_budg_PRINC'!C11+'2-tab_aut_budg_FU'!C11 -> 75723453.47 | D11: ='2-tab_aut_budg_PRINC'!D11+'2-tab_aut_budg_FU'!D11 -> 75722346.36 | E11: ='2-tab_aut_budg_PRINC'!E11+'2-tab_aut_budg_FU'!E11 -> 79962268 | F11: ='2-tab_aut_budg_PRINC'!F11+'2-tab_aut_budg_FU'!F11 -> 79962268 | K11: =E11+I11 -> 79962268 | L11: =F11+J11 -> 79962268 | N11: =SUM(N12:N16) -> 94625620.69 | O11: =SUM(O12:O16) -> 98798595.96 | P11: =SUM(P12:P16) -> 0 | Q11: 0 | R11: =O11+Q11 -> 98798595.96 | S11: Recettes globalisées
B12: dont contributions employeur au CAS Pension | E12: ='2-tab_aut_budg_PRINC'!E12+'2-tab_aut_budg_FU'!E12 -> 20016600 | F12: ='2-tab_aut_budg_PRINC'!F12+'2-tab_aut_budg_FU'!F12 -> 20016600 | K12: =E12+I12 -> 20016600 | L12: =F12+J12 -> 20016600 | N12: ='2-tab_aut_budg_PRINC'!N12+'2-tab_aut_budg_FU'!N12 -> 67419953 | O12: =+'2-tab_aut_budg_PRINC'!O12+'2-tab_aut_budg_FU'!O12 -> 69245984 | R12: =O12+Q12 -> 69245984 | S12: Subvention pour charges de service public
K13: 0 | L13: 0 | N13: ='2-tab_aut_budg_PRINC'!N13+'2-tab_aut_budg_FU'!N13 -> 3237122.3 | O13: =+'2-tab_aut_budg_PRINC'!O13+'2-tab_aut_budg_FU'!O13 -> 2024516.6 | R13: 2024516.6 | S13: Autres financements de l'Etat
K14: 0 | L14: 0 | N14: ='2-tab_aut_budg_PRINC'!N14+'2-tab_aut_budg_FU'!N14 -> 600000 | O14: =+'2-tab_aut_budg_PRINC'!O14+'2-tab_aut_budg_FU'!O14 -> 626184 | R14: 626184 | S14: Fiscalité affectée
B15: Fonctionnement et intervention | C15: ='2-tab_aut_budg_PRINC'!C15+'2-tab_aut_budg_FU'!C15 -> 14395473.24 | D15: ='2-tab_aut_budg_PRINC'!D15+'2-tab_aut_budg_FU'!D15 -> 13387426.74 | E15: ='2-tab_aut_budg_PRINC'!E15+'2-tab_aut_budg_FU'!E15 -> 15692811.45 | F15: ='2-tab_aut_budg_PRINC'!F15+'2-tab_aut_budg_FU'!F15 -> 15152611.45 | K15: 15692811.45 | L15: 15152611.45 | N15: ='2-tab_aut_budg_PRINC'!N15+'2-tab_aut_budg_FU'!N15 -> 6843446.37 | O15: =+'2-tab_aut_budg_PRINC'!O15+'2-tab_aut_budg_FU'!O15 -> 10106891.23 | R15: 10106891.23 | S15: Autres financements publics
K16: 0 | L16: 0 | N16: ='2-tab_aut_budg_PRINC'!N16+'2-tab_aut_budg_FU'!N16 -> 16525099.02 | O16: =+'2-tab_aut_budg_PRINC'!O16+'2-tab_aut_budg_FU'!O16 -> 16795020.13 | R16: 16795020.13 | S16: Recettes propres
K17: 0 | L17: 0
K18: 0 | L18: 0 | N18: =SUM(N19:N21) -> 2221464 | O18: =SUM(O19:O21) -> 0 | P18: 0 | Q18: 0 | R18: 0 | S18: Recettes fléchées **
K19: 0 | L19: 0 | R19: 0 | S19: Financements de l'Etat fléchés
B20: Investissement | C20: ='2-tab_aut_budg_PRINC'!C20+'2-tab_aut_budg_FU'!C20 -> 7932552.15 | D20: ='2-tab_aut_budg_PRINC'!D20+'2-tab_aut_budg_FU'!D20 -> 8525126.73 | E20: ='2-tab_aut_budg_PRINC'!E20+'2-tab_aut_budg_FU'!E20 -> 8959911.8 | F20: ='2-tab_aut_budg_PRINC'!F20+'2-tab_aut_budg_FU'!F20 -> 7991911.8 | K20: 8959911.8 | L20: 7991911.8 | N20: ='2-tab_aut_budg_PRINC'!N20+'2-tab_aut_budg_FU'!N20 -> 2221464 | R20: 0 | S20: Autres financements publics fléchés
K21: 0 | L21: 0 | R21: 0 | S21: Recettes propres fléchées
K22: 0 | L22: 0
B23: Enveloppes* destinées à des contrats de recherche | G23: =G24+G25+G26 -> 0 | H23: 0 | I23: 0 | J23: 0 | K23: 0 | L23: 0
B24: Personnel | K24: =E24+I24 -> 0 | L24: =F24+J24 -> 0
B25: Fonctionnement | K25: 0 | L25: 0
B26: Investissement | K26: 0 | L26: 0
B28: TOTAL DES DÉPENSES | C28: =C20+C15+C11+C23 -> 98051478.86 | D28: =D20+D15+D11+D23 -> 97634899.83 | E28: =E20+E15+E11+E23 -> 104614991.2 | F28: =F20+F15+F11+F23 -> 103106791.2 | G28: 0 | H28: 0 | I28: 0 | J28: 0 | K28: 104614991.2 | L28: 103106791.2 | N28: =N11+N18 -> 96847084.69 | O28: 98798595.96 | P28: =P11+P18 -> 0 | Q28: =Q11+Q18 -> 0 | R28: =R11+R18 -> 98798595.96 | S28: TOTAL DES RECETTES
B30: Solde budgétaire (excédent) | D30: =IF(N28-D28>=0,N28-D28,0) -> 0 | F30: =IF(O28-F28>=0,O28-F28,0) -> 0 | H30: =IF(P28-H28>=0,P28-H28,0) -> 0 | J30: =IF(Q28-J28>=0,Q28-J28,0) -> 0 | L30: =IF(R28-L28>=0,R28-L28,0) -> 0 | N30: =IF(D28-N28>0,D28-N28,0) -> 787815.14 | O30: =IF(F28-O28>0,F28-O28,0) -> 4308195.29 | P30: =IF(H28-P28>0,H28-P28,0) -> 0 | Q30: =IF(J28-Q28>0,J28-Q28,0) -> 0 | R30: =IF(L28-R28>0,L28-R28,0) -> 4308195.29 | S30: Solde budgétaire (déficit)
B32: * Chaque enveloppe peut être détaillée en fonction des besoins des organismes. | E32: =IF('3-tab_destination_origine_ETAB'!C31="","","! Incohérence total Personnel AE avec Tab3 ETAB") ->  | F32: =IF('3-tab_destination_origine_ETAB'!D31="","","! Incohérence total Personnel CP avec Tab3 ETAB") ->  | H32: =IF(L24="",IF(ROUND(D12,-1)<>ROUND('6-tab CR_TF_ETAB'!B10,-1),"! Incohérence pensions civ. N-1 Tab6 ETAB",""),"") ->  | I32: =IF('7-tab Plan_tréso_ETAB'!P30="","","! Incohérence total Personnel CP avec Tab7") ->  | K32: =IF(ROUND(K28,-1)=ROUND(#REF!+'2-tab_aut_budg_AGR'!K28,-1),"","! Pb agrégat dépenses AE") ->  | L32: =IF(AND(CONTROLES_TAB3_3_ETAB="",CONTROLES_TAB3_4_ETAB=""),"","! Incohérence solde budgétaire Tab3 ETAB") ->  | N32: =IF('3-tab_destination_origine_ETAB'!C53="","","! Incohérence Subv charges serv public avec Tab3 ETAB") ->  | O32: =IF('3-tab_destination_origine_ETAB'!D53="","","! Incohérence Autres financ. Etat avec Tab3 ETAB") ->  | P32: =IF('7-tab Plan_tréso_ETAB'!P10="","","! Incohérence Subv service public Tab7") ->  | Q32: =IF('7-tab Plan_tréso_ETAB'!P16="","","! Incohérence Financ Etat fléchés Tab7") ->  | R32: =IF(ROUND(R19,-1)<>ROUND('8-tab recettes_fléchées_ETAB'!D13,-1),"! Incohérence Financ. Etat fléchés avec Tab8 ETAB","") -> 
B33: ** Montant issu du tableau "Opérations sur recettes fléchées" (tableau 8) | E33: =IF('3-tab_destination_origine_ETAB'!E31="","","! Incohérence total Fonct AE avec Tab3 ETAB") ->  | F33: =IF('3-tab_destination_origine_ETAB'!F31="","","! Incohérence total Fonct CP avec Tab3 ETAB") ->  | H33: =IF(L24="",IF(ROUND(F12,-1)<>ROUND('6-tab CR_TF_ETAB'!C10,-1),"! Incohérence pensions civ. BI Tab6 ETAB",""),"") ->  | I33: =IF('7-tab Plan_tréso_ETAB'!P31="","","! Incohérence total Fonct CP avec Tab 7") ->  | K33: =IF(ROUND(L28,-1)=ROUND(#REF!+'2-tab_aut_budg_AGR'!L28,-1),"","! Pb agrégat dépenses CP") ->  | L33: =IF(COUNTA(CONTROLES_TAB4)-COUNTIF(CONTROLES_TAB4_1,"")-COUNTIF(CONTROLES_TAB4_2,"")=0,"","! Incohérence solde budgétaire avec tab4") -> ! Incohérence solde budgétaire avec tab4 | N33: =IF('3-tab_destination_origine_ETAB'!E53="","","! Incohérence Fiscalité affectée avec Tab3 ETAB") ->  | O33: =IF('3-tab_destination_origine_ETAB'!F531="","","! Incohérence Autres financements publics avec Tab3 ETAB") ->  | P33: =IF('7-tab Plan_tréso_ETAB'!P11="","","! Incohérence Autres financ Etat Tab7") ->  | Q33: =IF('7-tab Plan_tréso_ETAB'!P17="","","! Incohérence Autres financ fléchés Tab7") ->  | R33: =IF(ROUND(R20,-1)<>ROUND('8-tab recettes_fléchées_ETAB'!D14,-1),"! Incohérence Autres financ. publics fléchés avec Tab8 ETAB","") -> 
E34: =IF('3-tab_destination_origine_ETAB'!G31="","","! Incohérence total Invest AE avec Tab3 ETAB") ->  | F34: =IF('3-tab_destination_origine_ETAB'!H31="","","! Incohérence total Invest CP avec Tab3 ETAB") ->  | H34: =IF(L24="",IF(ROUND(H12,-1)<>ROUND('6-tab CR_TF_ETAB'!D10,-1),"! Incohérence pensions civ. BR Tab6 ETAB",""),"") ->  | I34: =IF('7-tab Plan_tréso_ETAB'!P33="","","! Incohérence total Invest. CP avec Tab 7") ->  | K34: =IF(ROUND(R28,-1)=ROUND(#REF!+'2-tab_aut_budg_AGR'!R28,-1),"","! Pb agrégat total recettes") ->  | N34: =IF('3-tab_destination_origine_ETAB'!G53="","","! Incohérence Recettes propres avec Tab3 ETAB") ->  | O34: =IF('3-tab_destination_origine_ETAB'!H53="","","! Incohérence Financements Etat fléchés avec Tab3 ETAB") ->  | P34: =IF('7-tab Plan_tréso_ETAB'!P12="","","! Incohérence Fiscalité affectée Tab7") ->  | Q34: =IF('7-tab Plan_tréso_ETAB'!P18="","","! Incohérence Recettes propres fléchées Tab7") ->  | R34: =IF(ROUND(R21,-1)<>ROUND('8-tab recettes_fléchées_ETAB'!D15,-1),"! Incohérence Recettes propres fléchées avec Tab8 ETAB","") -> 
E35: ="Exécution N-1 : Différence charges de personnel entre tableau 2 et tableau 6 est de : "&'6-tab CR_TF_ETAB'!B9-ROUND('2-tab_aut_budg_ETAB'!D11+'2-tab_aut_budg_ETAB'!D24,-1) -> Exécution N-1 : Différence charges de personnel entre tableau 2 et tableau 6 est de : -791601,230000004 | H35: =IF(L24="",IF(ROUND(J12,-1)<>ROUND('6-tab CR_TF_ETAB'!E10,-1),"! Incohérence pensions civ. total BR Tab6 ETAB",""),"") ->  | N35: =IF('3-tab_destination_origine_ETAB'!I53="","","! Incohérence Autres financ. fléchés avec Tab3 ETAB") ->  | O35: =IF('3-tab_destination_origine_ETAB'!J53="","","! Incohérence Recettes propres fléchées avec Tab3 ETAB") ->  | P35: =IF('7-tab Plan_tréso_ETAB'!P13="","","! Incohérence Autres financ publ Tab7") -> 
E36: ="BI : Différence charges de personnel entre tableau 2 et tableau 6 est de : "&'6-tab CR_TF_ETAB'!C9-ROUND('2-tab_aut_budg_ETAB'!F11+'2-tab_aut_budg_ETAB'!F24,-1) -> BI : Différence charges de personnel entre tableau 2 et tableau 6 est de : -839583 | P36: =IF('7-tab Plan_tréso_ETAB'!P14="","","! Incohérence Recettes propres Tab7") -> 
E37: ="Budget BI+BR : Différence charges de personnel entre tableau 2 et tableau 6 est de : "&'6-tab CR_TF_ETAB'!F9-ROUND('2-tab_aut_budg_ETAB'!L11+'2-tab_aut_budg_ETAB'!L24,-1) -> Budget BI+BR : Différence charges de personnel entre tableau 2 et tableau 6 est de : -839583

Sheet 2-tab_aut_budg_PRINC
B1: Tableau 2 - Université de Bretagne Sud (0561718N) : Etablissement principal
B2: ="Autorisations budgétaires - Budget "&Maquette!B4&" "&Maquette!B5&" "&Maquette!B3 -> Autorisations budgétaires - Budget initial 2023
B5: POUR VOTE DE L'ORGANE DÉLIBÉRANT
B8: Dépenses | N8: Recettes
C9: Exécution N-1: BR2/2022 | E9: Budget initial (a) | G9: Nouveau BR | I9: Somme des BR (yc nouveau BR) (b) | K9: TOTAL : dernier budget modifié (c) = (a) + (b) | N9: Exécution N-1: BR2/2022 | O9: Budget initial (d) | P9: Nouveau BR | Q9: Somme des BR (yc nouveau BR) (e) | R9: TOTAL : dernier budget modifié (f) = (d) + (e)
C10: AE | D10: CP | E10: AE | F10: CP | G10: AE | H10: CP | I10: AE | J10: CP | K10: AE | L10: CP | N10: Montants | O10: Montants | P10: Montants | Q10: Montants | R10: Montants
B11: Personnel | C11: 75609975.23 | D11: 75608868.12 | E11: 79729668 | F11: 79729668 | K11: =E11+I11 -> 79729668 | L11: =F11+J11 -> 79729668 | N11: =SUM(N12:N16) -> 94307688.69 | O11: =SUM(O12:O16) -> 98351237.96 | P11: =SUM(P12:P16) -> 0 | Q11: 0 | R11: =O11+Q11 -> 98351237.96 | S11: Recettes globalisées
B12: dont contributions employeur au CAS Pension | C12: 19827314 | D12: 19827314 | E12: 20016600 | F12: 20016600 | K12: =E12+I12 -> 20016600 | L12: 20016600 | N12: 67419953 | O12: 69245984 | R12: =O12+Q12 -> 69245984 | S12: Subvention pour charges de service public
C13: 0 | D13: 0 | K13: 0 | L13: 0 | N13: 3217669.3 | O13: 2024516.6 | R13: 2024516.6 | S13: Autres financements de l'Etat
C14: 0 | D14: 0 | K14: 0 | L14: 0 | N14: 600000 | O14: 626184 | R14: 626184 | S14: Fiscalité affectée
B15: Fonctionnement et intervention | C15: 14252376.36 | D15: 13238588.86 | E15: 15467811.45 | F15: 14932611.45 | K15: 15467811.45 | L15: 14932611.45 | N15: 6783379.37 | O15: 10047891.23 | R15: 10047891.23 | S15: Autres financements publics
C16: 0 | D16: 0 | K16: 0 | L16: 0 | N16: 16286687.02 | O16: 16406662.13 | R16: 16406662.13 | S16: Recettes propres
C17: 0 | D17: 0 | K17: 0 | L17: 0
C18: 0 | D18: 0 | K18: 0 | L18: 0 | N18: =SUM(N19:N21) -> 2221464 | O18: =SUM(O19:O21) -> 0 | P18: 0 | Q18: 0 | R18: 0 | S18: Recettes fléchées **
C19: 0 | D19: 0 | K19: 0 | L19: 0 | R19: 0 | S19: Financements de l'Etat fléchés
B20: Investissement | C20: 7930552.15 | D20: 8523126.73 | E20: 8898911.8 | F20: 7935911.8 | K20: 8898911.8 | L20: 7935911.8 | N20: 2221464 | R20: 0 | S20: Autres financements publics fléchés
K21: 0 | L21: 0 | R21: 0 | S21: Recettes propres fléchées
K22: 0 | L22: 0
B23: Enveloppes* destinées à des contrats de recherche | C23: =C24+C25+C26 -> 0 | D23: =D24+D25+D26 -> 0 | E23: =E24+E25+E26 -> 0 | F23: =F24+F25+F26 -> 0 | G23: 0 | H23: 0 | I23: 0 | J23: 0 | K23: 0 | L23: 0
B24: Personnel | K24: 0 | L24: 0
B25: Fonctionnement | K25: 0 | L25: 0
B26: Investissement | K26: 0 | L26: 0
B28: TOTAL DES DÉPENSES | C28: =C20+C15+C11+C23 -> 97792903.74 | D28: =D20+D15+D11+D23 -> 97370583.71 | E28: =E20+E15+E11+E23 -> 104096391.2 | F28: =F20+F15+F11+F23 -> 102598191.2 | G28: 0 | H28: 0 | I28: 0 | J28: 0 | K28: =K20+K15+K11+K23 -> 104096391.2 | L28: =L20+L15+L11+L23 -> 102598191.2 | N28: =N11+N18 -> 96529152.69 | O28: 98351237.96 | P28: =P11+P18 -> 0 | Q28: =Q11+Q18 -> 0 | R28: =R11+R18 -> 98351237.96 | S28: TOTAL DES RECETTES
B30: Solde budgétaire (excédent) | D30: =IF(N28-D28>=0,N28-D28,0) -> 0 | F30: =IF(O28-F28>=0,O28-F28,0) -> 0 | H30: =IF(P28-H28>=0,P28-H28,0) -> 0 | J30: =IF(Q28-J28>=0,Q28-J28,0) -> 0 | L30: =IF(R28-L28>=0,R28-L28,0) -> 0 | N30: =IF(D28-N28>0,D28-N28,0) -> 841431.02 | O30: =IF(F28-O28>0,F28-O28,0) -> 4246953.29 | P30: =IF(H28-P28>0,H28-P28,0) -> 0 | Q30: =IF(J28-Q28>0,J28-Q28,0) -> 0 | R30: =IF(L28-R28>0,L28-R28,0) -> 4246953.29 | S30: Solde budgétaire (déficit)
B32: * Chaque enveloppe peut être détaillée en fonction des besoins des organismes. | R32: =IF(ROUND(R19,-1)<>ROUND('8-tab recettes_fléchées_PRINC'!D13,-1),"! Incohérence Financ. Etat fléchés avec Tab8 PRINC","") -> 
B33: ** Montant issu du tableau "Opérations sur recettes fléchées" (tableau 8) | R33: =IF(ROUND(R20,-1)<>ROUND('8-tab recettes_fléchées_PRINC'!D14,-1),"! Incohérence Autres financ. publics fléchés avec Tab8 PRINC","") -> 
R34: =IF(ROUND(R21,-1)<>ROUND('8-tab recettes_fléchées_PRINC'!D15,-1),"! Incohérence Recettes propres fléchées avec Tab8 PRINC","") -> 
E36: ="BI : Différence charges de personnel entre tableau 2 et tableau 6 est de : "&'6-tab CR_TF_PRINC'!C9-ROUND('2-tab_aut_budg_PRINC'!F11+'2-tab_aut_budg_PRINC'!F24,-1) -> BI : Différence charges de personnel entre tableau 2 et tableau 6 est de : -837164
E37: ="Budget BI+BR : Différence charges de personnel entre tableau 2 et tableau 6 est de : "&'6-tab CR_TF_PRINC'!F9-ROUND('2-tab_aut_budg_PRINC'!L11+'2-tab_aut_budg_PRINC'!L24,-1) -> Budget BI+BR : Différence charges de personnel entre tableau 2 et tableau 6 est de : -837164

Sheet 2-tab_aut_budg_FU
B1: Tableau 2 - Université de Bretagne Sud (0561718N) : Fondation
B2: ="Autorisations budgétaires - Budget "&Maquette!B4&" "&Maquette!B5&" "&Maquette!B3 -> Autorisations budgétaires - Budget initial 2023
B5: POUR VOTE DE L'ORGANE DÉLIBÉRANT
B8: Dépenses | N8: Recettes
C9: Exécution N-1: BR2/2022 | E9: Budget initial (a) | G9: Nouveau BR | I9: Somme des BR (yc nouveau BR) (b) | K9: TOTAL : dernier budget modifié (c) = (a) + (b) | N9: Exécution N-1: BR2/2022 | O9: Budget initial (d) | P9: Nouveau BR | Q9: Somme des BR (yc nouveau BR) (e) | R9: TOTAL : dernier budget modifié (f) = (d) + (e)
C10: AE | D10: CP | E10: AE | F10: CP | G10: AE | H10: CP | I10: AE | J10: CP | K10: AE | L10: CP | N10: Montants | O10: Montants | P10: Montants | Q10: Montants | R10: Montants
B11: Personnel | C11: 113478.24 | D11: 113478.24 | E11: 232600 | F11: 232600 | K11: =E11+I11 -> 232600 | L11: =F11+J11 -> 232600 | N11: =SUM(N12:N16) -> 317932 | O11: =SUM(O12:O16) -> 447358 | P11: =SUM(P12:P16) -> 0 | Q11: 0 | R11: =O11+Q11 -> 447358 | S11: Recettes globalisées
B12: dont contributions employeur au CAS Pension | C12: 0 | D12: 0 | K12: =E12+I12 -> 0 | L12: 0 | N12: 0 | R12: =O12+Q12 -> 0 | S12: Subvention pour charges de service public
C13: 0 | D13: 0 | K13: 0 | L13: 0 | N13: 19453 | R13: 0 | S13: Autres financements de l'Etat
C14: 0 | D14: 0 | K14: 0 | L14: 0 | N14: 0 | R14: 0 | S14: Fiscalité affectée
B15: Fonctionnement et intervention | C15: 143096.88 | D15: 148837.88 | E15: 225000 | F15: 220000 | K15: 225000 | L15: 220000 | N15: 60067 | O15: 59000 | R15: 59000 | S15: Autres financements publics
C16: 0 | D16: 0 | K16: 0 | L16: 0 | N16: 238412 | O16: 388358 | R16: 388358 | S16: Recettes propres
C17: 0 | D17: 0 | K17: 0 | L17: 0
C18: 0 | D18: 0 | K18: 0 | L18: 0 | N18: =SUM(N19:N21) -> 0 | O18: =SUM(O19:O21) -> 0 | P18: 0 | Q18: 0 | R18: 0 | S18: Recettes fléchées **
C19: 0 | D19: 0 | K19: 0 | L19: 0 | R19: 0 | S19: Financements de l'Etat fléchés
B20: Investissement | C20: 2000 | D20: 2000 | E20: 61000 | F20: 56000 | K20: 61000 | L20: 56000 | R20: 0 | S20: Autres financements publics fléchés
K21: 0 | L21: 0 | R21: 0 | S21: Recettes propres fléchées
K22: 0 | L22: 0
B23: Enveloppes* destinées à des contrats de recherche | C23: =C24+C25+C26 -> 0 | D23: =D24+D25+D26 -> 0 | E23: =E24+E25+E26 -> 0 | F23: =F24+F25+F26 -> 0 | G23: 0 | H23: 0 | I23: 0 | J23: 0 | K23: 0 | L23: 0
B24: Personnel | K24: 0 | L24: 0
B25: Fonctionnement | K25: 0 | L25: 0
B26: Investissement | K26: 0 | L26: 0
B28: TOTAL DES DÉPENSES | C28: =C20+C15+C11+C23 -> 258575.12 | D28: =D20+D15+D11+D23 -> 264316.12 | E28: =E20+E15+E11+E23 -> 518600 | F28: =F20+F15+F11+F23 -> 508600 | G28: 0 | H28: 0 | I28: 0 | J28: 0 | K28: =K20+K15+K11+K23 -> 518600 | L28: =L20+L15+L11+L23 -> 508600 | N28: =N11+N18 -> 317932 | O28: 447358 | P28: =P11+P18 -> 0 | Q28: =Q11+Q18 -> 0 | R28: =R11+R18 -> 447358 | S28: TOTAL DES RECETTES
B30: Solde budgétaire (excédent) | D30: =IF(N28-D28>=0,N28-D28,0) -> 53615.88 | F30: =IF(O28-F28>=0,O28-F28,0) -> 0 | H30: =IF(P28-H28>=0,P28-H28,0) -> 0 | J30: =IF(Q28-J28>=0,Q28-J28,0) -> 0 | L30: =IF(R28-L28>=0,R28-L28,0) -> 0 | N30: =IF(D28-N28>0,D28-N28,0) -> 0 | O30: =IF(F28-O28>0,F28-O28,0) -> 61242 | P30: =IF(H28-P28>0,H28-P28,0) -> 0 | Q30: =IF(J28-Q28>0,J28-Q28,0) -> 0 | R30: =IF(L28-R28>0,L28-R28,0) -> 61242 | S30: Solde budgétaire (déficit)
B32: * Chaque enveloppe peut être détaillée en fonction des besoins des organismes. | H32: =IF(L24="",IF(ROUND(D12,-1)<>ROUND('6-tab CR_TF_FU'!B10,-1),"! Incohérence pensions civ. N-1 Tab6 FU",""),"") -> 
B33: ** Montant issu du tableau "Opérations sur recettes fléchées" (tableau 8) | H33: =IF(L24="",IF(ROUND(F12,-1)<>ROUND('6-tab CR_TF_FU'!C10,-1),"! Incohérence pensions civ. BI Tab6 FU",""),"") -> 
H34: =IF(L24="",IF(ROUND(H12,-1)<>ROUND('6-tab CR_TF_FU'!D10,-1),"! Incohérence pensions civ. BR Tab6 FU",""),"") -> 
E35: ="Exécution N-1 : Différence charges de personnel entre tableau 2 et tableau 6 est de : "&'6-tab CR_TF_FU'!B9-ROUND('2-tab_aut_budg_FU'!D11+'2-tab_aut_budg_FU'!D24,-1) -> Exécution N-1 : Différence charges de personnel entre tableau 2 et tableau 6 est de : -2896,75999999999 | H35: =IF(L24="",IF(ROUND(J12,-1)<>ROUND('6-tab CR_TF_FU'!E10,-1),"! Incohérence pensions civ. total BR Tab6 FU",""),"") -> 
E36: ="BI : Différence charges de personnel entre tableau 2 et tableau 6 est de : "&'6-tab CR_TF_FU'!C9-ROUND('2-tab_aut_budg_FU'!F11+'2-tab_aut_budg_FU'!F24,-1) -> BI : Différence charges de personnel entre tableau 2 et tableau 6 est de : -2419
E37: ="Budget BI+BR : Différence charges de personnel entre tableau 2 et tableau 6 est de : "&'6-tab CR_TF_FU'!F9-ROUND('2-tab_aut_budg_FU'!L11+'2-tab_aut_budg_FU'!L24,-1) -> Budget BI+BR : Différence charges de personnel entre tableau 2 et tableau 6 est de : -2419

Sheet 2-tab_aut_budg_AGR (hidden)
B1: Tableau 2 - Université de Bretagne Sud (0561718N) : Etablissement principal + Fondation
B2: ="Autorisations budgétaires - Budget agrégé "&Maquette!B4&" "&Maquette!B5&" "&Maquette!B3 -> Autorisations budgétaires - Budget agrégé initial 2023
B5: POUR VOTE DE L'ORGANE DÉLIBÉRANT
B8: Dépenses | N8: Recettes
C9: Exécution N-1 | E9: Budget initial (a) | G9: Nouveau BR | I9: Somme des BR (yc nouveau BR) (b) | K9: TOTAL : dernier budget modifié (c) = (a) + (b) | N9: Exécution N-1 | O9: Budget initial (d) | P9: Nouveau BR | Q9: Somme des BR (yc nouveau BR) (e) | R9: TOTAL : dernier budget modifié (f) = (d) + (e)
C10: AE | D10: CP | E10: AE | F10: CP | G10: AE | H10: CP | I10: AE | J10: CP | K10: AE | L10: CP | N10: Montants | O10: Montants | P10: Montants | Q10: Montants | R10: Montants
B11: Personnel | K11: =E11+I11 -> 0 | L11: =F11+J11 -> 0 | N11: =SUM(N12:N16) -> 0 | O11: =SUM(O12:O16) -> 0 | P11: =SUM(P12:P16) -> 0 | Q11: 0 | R11: =O11+Q11 -> 0 | S11: Recettes globalisées
B12: dont contributions employeur au CAS Pension | K12: =E12+I12 -> 0 | L12: 0 | R12: =O12+Q12 -> 0 | S12: Subvention pour charges de service public
K13: 0 | L13: 0 | R13: 0 | S13: Autres financements de l'Etat
K14: 0 | L14: 0 | R14: 0 | S14: Fiscalité affectée
B15: Fonctionnement et intervention | K15: 0 | L15: 0 | R15: 0 | S15: Autres financements publics
K16: 0 | L16: 0 | R16: 0 | S16: Recettes propres
K17: 0 | L17: 0
K18: 0 | L18: 0 | N18: =SUM(N19:N21) -> 0 | O18: =SUM(O19:O21) -> 0 | P18: 0 | Q18: 0 | R18: 0 | S18: Recettes fléchées **
K19: 0 | L19: 0 | R19: 0 | S19: Financements de l'Etat fléchés
B20: Investissement | K20: 0 | L20: 0 | R20: 0 | S20: Autres financements publics fléchés
K21: 0 | L21: 0 | R21: 0 | S21: Recettes propres fléchées
K22: 0 | L22: 0
B23: Enveloppes* destinées à des contrats de recherche | C23: =C24+C25+C26 -> 0 | D23: =D24+D25+D26 -> 0 | E23: =E24+E25+E26 -> 0 | F23: =F24+F25+F26 -> 0 | G23: 0 | H23: 0 | I23: 0 | J23: 0 | K23: 0 | L23: 0
B24: Personnel | K24: 0 | L24: 0
B25: Fonctionnement | K25: 0 | L25: 0
B26: Investissement | K26: 0 | L26: 0
B28: TOTAL DES DÉPENSES | C28: =C20+C15+C11+C23 -> 0 | D28: =D20+D15+D11+D23 -> 0 | E28: =E20+E15+E11+E23 -> 0 | F28: =F20+F15+F11+F23 -> 0 | G28: 0 | H28: 0 | I28: 0 | J28: 0 | K28: 0 | L28: 0 | N28: =N11+N18 -> 0 | O28: 0 | P28: =P11+P18 -> 0 | Q28: =Q11+Q18 -> 0 | R28: =R11+R18 -> 0 | S28: TOTAL DES RECETTES
B30: Solde budgétaire (excédent) | D30: =IF(N28-D28>=0,N28-D28,0) -> 0 | F30: =IF(O28-F28>=0,O28-F28,0) -> 0 | H30: =IF(P28-H28>=0,P28-H28,0) -> 0 | J30: =IF(Q28-J28>=0,Q28-J28,0) -> 0 | L30: =IF(R28-L28>=0,R28-L28,0) -> 0 | N30: =IF(D28-N28>0,D28-N28,0) -> 0 | O30: =IF(F28-O28>0,F28-O28,0) -> 0 | P30: =IF(H28-P28>0,H28-P28,0) -> 0 | Q30: =IF(J28-Q28>0,J28-Q28,0) -> 0 | R30: =IF(L28-R28>0,L28-R28,0) -> 0 | S30: Solde budgétaire (déficit)
B32: * Chaque enveloppe peut être détaillée en fonction des besoins des organismes. | E32: =IF('3-tab_destination_origine_AGR'!C31="","","! Incohérence total Personnel AE avec Tab3 AGR") ->  | F32: =IF('3-tab_destination_origine_AGR'!D31="","","! Incohérence total Personnel CP avec Tab3 AGR") ->  | H32: =IF(L24="",IF(ROUND(D12,-1)<>ROUND('6-tab CR_TF_AGR'!B10,-1),"! Incohérence pensions civ. N-1 Tab6 AGR",""),"") ->  | K32: =IF(ROUND(K28,-1)=ROUND('2-tab_aut_budg_PRINC'!K28+'2-tab_aut_budg_FU'!K28,-1),"","! Pb agrégat dépenses AE") -> ! Pb agrégat dépenses AE | L32: =IF(AND(CONTROLES_TAB3_3_AGR="",CONTROLES_TAB3_4_AGR=""),"","! Incohérence solde budgétaire Tab3 AGR") ->  | N32: =IF('3-tab_destination_origine_AGR'!C53="","","! Incohérence Subv charges serv public avec Tab3 AGR") ->  | O32: =IF('3-tab_destination_origine_AGR'!D53="","","! Incohérence Autres financ. Etat avec Tab3 AGR") ->  | R32: =IF(ROUND(R19,-1)<>ROUND('8-tab recettes_fléchées_AGR'!D13,-1),"! Incohérence Financ. Etat fléchés avec Tab8 AGR","") -> 
B33: ** Montant issu du tableau "Opérations sur recettes fléchées" (tableau 8) | E33: =IF('3-tab_destination_origine_AGR'!E31="","","! Incohérence total Fonct AE avec Tab3 AGR") ->  | F33: =IF('3-tab_destination_origine_AGR'!F31="","","! Incohérence total Fonct CP avec Tab3 AGR") ->  | H33: =IF(L24="",IF(ROUND(F12,-1)<>ROUND('6-tab CR_TF_AGR'!C10,-1),"! Incohérence pensions civ. BI Tab6 AGR",""),"") ->  | K33: =IF(ROUND(L28,-1)=ROUND('2-tab_aut_budg_PRINC'!L28+'2-tab_aut_budg_FU'!L28,-1),"","! Pb agrégat dépenses CP") -> ! Pb agrégat dépenses CP | N33: =IF('3-tab_destination_origine_AGR'!E53="","","! Incohérence Fiscalité affectée avec Tab3 AGR") ->  | O33: =IF('3-tab_destination_origine_AGR'!F531="","","! Incohérence Autres financements publics avec Tab3 AGR") ->  | R33: =IF(ROUND(R20,-1)<>ROUND('8-tab recettes_fléchées_AGR'!D14,-1),"! Incohérence Autres financ. publics fléchés avec Tab8 AGR","") -> 
E34: =IF('3-tab_destination_origine_AGR'!G31="","","! Incohérence total Invest AE avec Tab3 AGR") ->  | F34: =IF('3-tab_destination_origine_AGR'!H31="","","! Incohérence total Invest CP avec Tab3 AGR") ->  | H34: =IF(L24="",IF(ROUND(H12,-1)<>ROUND('6-tab CR_TF_AGR'!D10,-1),"! Incohérence pensions civ. BR Tab6 AGR",""),"") ->  | K34: =IF(ROUND(R28,-1)=ROUND('2-tab_aut_budg_PRINC'!R28+'2-tab_aut_budg_FU'!R28,-1),"","! Pb agrégat total recettes") -> ! Pb agrégat total recettes | N34: =IF('3-tab_destination_origine_AGR'!G53="","","! Incohérence Recettes propres avec Tab3 AGR") ->  | O34: =IF('3-tab_destination_origine_AGR'!H53="","","! Incohérence Financements Etat fléchés avec Tab3 AGR") ->  | R34: =IF(ROUND(R21,-1)<>ROUND('8-tab recettes_fléchées_AGR'!D15,-1),"! Incohérence Recettes propres fléchées avec Tab8 AGR","") -> 
E35: ="Exécution N-1 : Différence charges de personnel entre tableau 2 et tableau 6 est de : "&'6-tab CR_TF_AGR'!B9-ROUND('2-tab_aut_budg_AGR'!D11+'2-tab_aut_budg_AGR'!D24,-1) -> Exécution N-1 : Différence charges de personnel entre tableau 2 et tableau 6 est de : 74930748,77 | H35: =IF(L24="",IF(ROUND(J12,-1)<>ROUND('6-tab CR_TF_AGR'!E10,-1),"! Incohérence pensions civ. total BR Tab6 AGR",""),"") ->  | N35: =IF('3-tab_destination_origine_AGR'!I53="","","! Incohérence Autres financ. fléchés avec Tab3 AGR") ->  | O35: =IF('3-tab_destination_origine_AGR'!J53="","","! Incohérence Recettes propres fléchées avec Tab3 AGR") -> 
E36: ="BI : Différence charges de personnel entre tableau 2 et tableau 6 est de : "&'6-tab CR_TF_AGR'!C9-ROUND('2-tab_aut_budg_AGR'!F11+'2-tab_aut_budg_AGR'!F24,-1) -> BI : Différence charges de personnel entre tableau 2 et tableau 6 est de : 79122687
E37: ="Budget BI+BR : Différence charges de personnel entre tableau 2 et tableau 6 est de : "&'6-tab CR_TF_AGR'!F9-ROUND('2-tab_aut_budg_AGR'!L11+'2-tab_aut_budg_AGR'!L24,-1) -> Budget BI+BR : Différence charges de personnel entre tableau 2 et tableau 6 est de : 79122687

Sheet 3-tab_destination_origine_ETAB
B1: Tableau 3 - Université de Bretagne Sud (0561718N) : Etablissement principal + Fondation
B2: ="Dépenses par destination et recettes par origine - Budget consolidé "&Maquette!B4&" "&Maquette!B5&" "&Maquette!B3 -> Dépenses par destination et recettes par origine - Budget consolidé initial 2023
B4: POUR INFORMATION DE L'ORGANE DÉLIBÉRANT
B5: Tableau des dépenses par destination (obligatoire)
B6: Budget | C6: Dépenses de l’organisme
C7: Personnel | E7: Fonctionnement et intervention | G7: Investissement | I7: Total
C8: AE = CP | E8: AE | F8: CP | G8: AE | H8: CP | I8: AE | J8: CP
B9: Formation initiale et continue (d) = (a) + (b) + (c) | C9: =SUM(C10:C12) -> 46372432.74 | D9: =SUM(D10:D12) -> 46372432.74 | E9: 3778397 | F9: 3478397 | G9: 1913433 | H9: 1913433 | I9: =C9+E9+G9 -> 52064262.74 | J9: =D9+F9+H9 -> 51764262.74
B10: D101 - Formation initiale et continue de niveau Licence (a) | C10: 33748940.5 | D10: 33748940.5 | E10: 2241814 | F10: 2041814 | G10: 1486846 | H10: 1486846 | I10: =C10+E10+G10 -> 37477600.5 | J10: =D10+F10+H10 -> 37277600.5
B11: D102 - Formation initiale et continue de niveau Master (b) | C11: 11106247.5 | D11: 11106247.5 | E11: 1380355 | F11: 1280355 | G11: 426587 | H11: 426587 | I11: 12913189.5 | J11: 12813189.5
B12: D103 - Formation initiale et continue de niveau Doctorat (c) | C12: 1517244.74 | D12: 1517244.74 | E12: 156228 | F12: 156228 | G12: 0 | H12: 0 | I12: 1673472.74 | J12: 1673472.74
B13: D105 - Bibliothèques et documentation | C13: 1827958 | D13: 1827958 | E13: 487664 | F13: 487664 | G13: 60000 | H13: 60000 | I13: 2375622 | J13: 2375622
B14: D106 - Recherche universitaire en sciences de la vie, biotechnologie et santé | C14: 1409895.96 | D14: 1409895.96 | E14: 335172.89 | F14: 335172.89 | G14: 409000 | H14: 384000 | I14: 2154068.85 | J14: 2129068.85
B15: D107 - Recherche universitaire en mathématiques, sciences et techniques de l'information et de la communication, micro et nanotechnologies | C15: 6301414.02 | D15: 6301414.02 | E15: 655585.4 | F15: 655585.4 | G15: 718004.54 | H15: 723004.54 | I15: 7675003.96 | J15: 7680003.96
B16: D108 - Recherche universitaire en physique, chimie et sciences pour l'ingénieur | C16: 6820391.81 | D16: 6820391.81 | E16: 1705347.11 | F16: 1705347.11 | G16: 2131910.26 | H16: 2016910.26 | I16: 10657649.18 | J16: 10542649.18
B17: D109 - Recherche universitaire en physique nucléaire et des hautes énergies | C17: 0 | D17: 0 | E17: 0 | F17: 0 | G17: 0 | H17: 0 | I17: 0 | J17: 0
B18: D110 - Recherche universitaire en sciences de la terre, de l'univers et de l'environnement | C18: 569343.86 | D18: 569343.86 | E18: 150465.5 | F18: 150465.5 | G18: 46060 | H18: 46060 | I18: 765869.36 | J18: 765869.36
B19: D111 - Recherche universitaire en sciences de l'homme et de la société | C19: 5577049.61 | D19: 5577049.61 | E19: 459498.55 | F19: 459498.55 | G19: 57067 | H19: 57067 | I19: 6093615.16 | J19: 6093615.16
B20: D112 - Recherche universitaire interdisciplinaire et transversale | C20: 297801 | D20: 297801 | E20: 429979 | F20: 429979 | G20: 2000 | H20: 2000 | I20: 729780 | J20: 729780
B21: D113 - Diffusion des savoirs et musées | I21: 0 | J21: 0
B22: D114 - Immobilier | C22: 2261703 | D22: 2261703 | E22: 4728692 | F22: 4728692 | G22: 1402617 | H22: 1592617 | I22: 8393012 | J22: 8583012
B23: D115 - Pilotage et support | C23: 6897446 | D23: 6897446 | E23: 1818586 | F23: 1813586 | G23: 185300 | H23: 180300 | I23: 8901332 | J23: 8891332
B24: Étudiants (h) = (e) + (f) + (g) | C24: =SUM(C25:C27) -> 1626832 | D24: =SUM(D25:D27) -> 1626832 | E24: 1143424 | F24: 908224 | G24: 2034520 | H24: 1016520 | I24: 4804776 | J24: 3551576
B25: D201 - Aides directes aux étudiants (e) | C25: 0 | D25: 0 | E25: 630906 | F25: 395706 | G25: 0 | H25: 0 | I25: 630906 | J25: 395706
B26: D202 - Aides indirectes (f) | C26: 0 | D26: 0 | E26: 20210 | F26: 20210 | G26: 11520 | H26: 11520 | I26: 31730 | J26: 31730
B27: D203 - Santé des étudiants et activités associatives, culturelles et sportives (g) | C27: 1626832 | D27: 1626832 | E27: 492308 | F27: 492308 | G27: 2023000 | H27: 1005000 | I27: 4142140 | J27: 3124140
B28: Total | C28: =SUM(C10:C24) -> 79962268 | D28: =SUM(D10:D24) -> 79962268 | E28: 15692811.45 | F28: 15152611.45 | G28: 8959911.8 | H28: 7991911.8 | I28: =C28+E28+G28 -> 104614991.2 | J28: =D28+F28+H28 -> 103106791.2
H30: SOLDE BUDGETAIRE (excédent) | J30: =IF(K50>J28,K50-J28,0) -> 0
B32: Tableau des recettes par origine (obligatoire)
B34: Budget | C34: Recettes de l'organisme
C35: Recettes globalisées | H35: Recettes fléchées | K35: Total
C36: Subvention pour charges de service public | D36: Autres financements de l'Etat | E36: Fiscalité affectée | F36: Autres financements publics | G36: Recettes propres | H36: Financements de l'Etat fléchés | I36: Autres financements publics fléchés | J36: Recettes propres fléchées
B37: Subvention pour charges de service public | C37: 69245984 | H37: 0 | I37: 0 | J37: 0 | K37: =C37 -> 69245984
B38: Droits d'inscription | G38: 1276607 | H38: 0 | I38: 0 | J38: 0 | K38: =SUM(G38:J38) -> 1276607
B39: Formation continue, diplômes propres et VAE | G39: 7627571 | H39: 0 | I39: 0 | J39: 0 | K39: =SUM(G39:J39) -> 7627571
B40: Taxe d'apprentissage | G40: 625000 | H40: 0 | I40: 0 | J40: 0 | K40: =SUM(G40:J40) -> 625000
B41: Contrats et prestations de recherche hors ANR | G41: 1123622.13 | H41: 0 | I41: 0 | J41: 0 | K41: =SUM(G41:J41) -> 1123622.13
B42: Valorisation | G42: 718601 | H42: 0 | I42: 0 | J42: 0 | K42: =SUM(G42:J42) -> 718601
B43: ANR investissements d'avenir | F43: 1023595 | H43: 0 | I43: 0 | J43: 0 | K43: =SUM(F43,H43:J43) -> 1023595
B44: ANR hors investissements d'avenir | F44: 1964237 | H44: 0 | I44: 0 | J44: 0 | K44: =SUM(F44,H44:J44) -> 1964237
B45: Subventions d'exploitation et financement des actifs - Région | F45: 2280799.76 | H45: 0 | I45: 0 | J45: 0 | K45: =SUM(F45,H45:J45) -> 2280799.76
B46: Subventions d'exploitation et financement des actifs - Union Européenne | F46: 3251084.57 | H46: 0 | I46: 0 | J46: 0 | K46: =SUM(F46,H46:J46) -> 3251084.57
B47: Subventions d'exploitation et financement des actifs - Autres | D47: 2024516.6 | F47: 1587174.9 | G47: 71500 | H47: 0 | I47: 0 | J47: 0 | K47: =SUM(D47,F47:J47) -> 3683191.5
B48: Fondations - fonds propres, réserves, dons et legs | G48: 350933 | H48: 0 | I48: 0 | J48: 0 | K48: =SUM(D48,F48:J48) -> 350933
B49: Autres recettes | E49: 626184 | G49: 5001186 | H49: 0 | I49: 0 | J49: 0 | K49: =SUM(E49:J49) -> 5627370
B50: Total | C50: =C37 -> 69245984 | D50: =SUM(D47:D48) -> 2024516.6 | E50: =E49 -> 626184 | F50: =SUM(F43:F49) -> 10106891.23 | G50: =SUM(G38:G42,G47:G49) -> 16795020.13 | H50: =SUM(H38:H49) -> 0 | I50: =SUM(I38:I49) -> 0 | J50: 0 | K50: =SUM(K37:K49) -> 98798595.96
B52: La liste des destination est susceptible d'être modifiée par le ministre chargé de l'enseignement supérieur | I52: SOLDE BUDGETAIRE (déficit) | K52: =IF(J28>K50,J28-K50,0) -> 4308195.29

Sheet 3-tab_destination_origine_PRINC
B1: Tableau 3 - Université de Bretagne Sud (0561718N) : Etablissement principal
B2: ="Dépenses par destination et recettes par origine - Budget "&Maquette!B4&" "&Maquette!B5&" "&Maquette!B3 -> Dépenses par destination et recettes par origine - Budget initial 2023
B4: POUR INFORMATION DE L'ORGANE DÉLIBÉRANT
B5: Tableau des dépenses par destination (obligatoire)
B6: Budget | C6: Dépenses de l’organisme
C7: Personnel | E7: Fonctionnement et intervention | G7: Investissement | I7: Total
C8: AE = CP | E8: AE | F8: CP | G8: AE | H8: CP | I8: AE | J8: CP
B9: Formation initiale et continue (d) = (a) + (b) + (c) | C9: =SUM(C10:C12) -> 46372432.74 | D9: =SUM(D10:D12) -> 46372432.74 | E9: 3778397 | F9: 3478397 | G9: 1913433 | H9: 1913433 | I9: =C9+E9+G9 -> 52064262.74 | J9: =D9+F9+H9 -> 51764262.74
B10: D101 - Formation initiale et continue de niveau Licence (a) | C10: 33748940.5 | D10: 33748940.5 | E10: 2241814 | F10: 2041814 | G10: 1486846 | H10: 1486846 | I10: =C10+E10+G10 -> 37477600.5 | J10: 37277600.5
B11: D102 - Formation initiale et continue de niveau Master (b) | C11: 11106247.5 | D11: 11106247.5 | E11: 1380355 | F11: 1280355 | G11: 426587 | H11: 426587 | I11: 12913189.5 | J11: 12813189.5
B12: D103 - Formation initiale et continue de niveau Doctorat (c) | C12: 1517244.74 | D12: 1517244.74 | E12: 156228 | F12: 156228 | G12: 0 | H12: 0 | I12: 1673472.74 | J12: 1673472.74
B13: D105 - Bibliothèques et documentation | C13: 1827958 | D13: 1827958 | E13: 487664 | F13: 487664 | G13: 60000 | H13: 60000 | I13: 2375622 | J13: 2375622
B14: D106 - Recherche universitaire en sciences de la vie, biotechnologie et santé | C14: 1409895.96 | D14: 1409895.96 | E14: 335172.89 | F14: 335172.89 | G14: 409000 | H14: 384000 | I14: 2154068.85 | J14: 2129068.85
B15: D107 - Recherche universitaire en mathématiques, sciences et techniques de l'information et de la communication, micro et nanotechnologies | C15: 6162214.02 | D15: 6162214.02 | E15: 577585.4 | F15: 577585.4 | G15: 708004.54 | H15: 713004.54 | I15: 7447803.96 | J15: 7452803.96
B16: D108 - Recherche universitaire en physique, chimie et sciences pour l'ingénieur | C16: 6820391.81 | D16: 6820391.81 | E16: 1705347.11 | F16: 1705347.11 | G16: 2131910.26 | H16: 2016910.26 | I16: 10657649.18 | J16: 10542649.18
B17: D109 - Recherche universitaire en physique nucléaire et des hautes énergies | C17: 0 | D17: 0 | E17: 0 | F17: 0 | G17: 0 | H17: 0 | I17: 0 | J17: 0
B18: D110 - Recherche universitaire en sciences de la terre, de l'univers et de l'environnement | C18: 569343.86 | D18: 569343.86 | E18: 150465.5 | F18: 150465.5 | G18: 46060 | H18: 46060 | I18: 765869.36 | J18: 765869.36
B19: D111 - Recherche universitaire en sciences de l'homme et de la société | C19: 5577049.61 | D19: 5577049.61 | E19: 391498.55 | F19: 391498.55 | G19: 57067 | H19: 57067 | I19: 6025615.16 | J19: 6025615.16
B20: D112 - Recherche universitaire interdisciplinaire et transversale | C20: 297801 | D20: 297801 | E20: 429979 | F20: 429979 | G20: 2000 | H20: 2000 | I20: 729780 | J20: 729780
B21: D113 - Diffusion des savoirs et musées | I21: 0 | J21: 0
B22: D114 - Immobilier | C22: 2261703 | D22: 2261703 | E22: 4728692 | F22: 4728692 | G22: 1402617 | H22: 1592617 | I22: 8393012 | J22: 8583012
B23: D115 - Pilotage et support | C23: 6804046 | D23: 6804046 | E23: 1739586 | F23: 1739586 | G23: 134300 | H23: 134300 | I23: 8677932 | J23: 8677932
B24: Étudiants (h) = (e) + (f) + (g) | C24: =SUM(C25:C27) -> 1626832 | D24: =SUM(D25:D27) -> 1626832 | E24: 1143424 | F24: 908224 | G24: 2034520 | H24: 1016520 | I24: 4804776 | J24: 3551576
B25: D201 - Aides directes aux étudiants (e) | C25: 0 | D25: 0 | E25: 630906 | F25: 395706 | G25: 0 | H25: 0 | I25: 630906 | J25: 395706
B26: D202 - Aides indirectes (f) | C26: 0 | D26: 0 | E26: 20210 | F26: 20210 | G26: 11520 | H26: 11520 | I26: 31730 | J26: 31730
B27: D203 - Santé des étudiants et activités associatives, culturelles et sportives (g) | C27: 1626832 | D27: 1626832 | E27: 492308 | F27: 492308 | G27: 2023000 | H27: 1005000 | I27: 4142140 | J27: 3124140
B28: Total | C28: =SUM(C10:C24) -> 79729668 | D28: =SUM(D10:D24) -> 79729668 | E28: 15467811.45 | F28: 14932611.45 | G28: 8898911.8 | H28: 7935911.8 | I28: =C28+E28+G28 -> 104096391.2 | J28: =D28+F28+H28 -> 102598191.2
H30: SOLDE BUDGETAIRE (excédent) | J30: =IF(K50>J28,K50-J28,0) -> 0
B32: Tableau des recettes par origine (obligatoire)
B34: Budget | C34: Recettes de l'organisme
C35: Recettes globalisées | H35: Recettes fléchées | K35: Total
C36: Subvention pour charges de service public | D36: Autres financements de l'Etat | E36: Fiscalité affectée | F36: Autres financements publics | G36: Recettes propres | H36: Financements de l'Etat fléchés | I36: Autres financements publics fléchés | J36: Recettes propres fléchées
B37: Subvention pour charges de service public | C37: 69245984 | H37: 0 | I37: 0 | J37: 0 | K37: =C37 -> 69245984
B38: Droits d'inscription | G38: 1276607 | H38: 0 | I38: 0 | J38: 0 | K38: =SUM(G38:J38) -> 1276607
B39: Formation continue, diplômes propres et VAE | G39: 7627571 | H39: 0 | I39: 0 | J39: 0 | K39: =SUM(G39:J39) -> 7627571
B40: Taxe d'apprentissage | G40: 625000 | H40: 0 | I40: 0 | J40: 0 | K40: 625000
B41: Contrats et prestations de recherche hors ANR | G41: 1123622.13 | H41: 0 | I41: 0 | J41: 0 | K41: 1123622.13
B42: Valorisation | G42: 718601 | H42: 0 | I42: 0 | J42: 0 | K42: 718601
B43: ANR investissements d'avenir | F43: 1023595 | H43: 0 | I43: 0 | J43: 0 | K43: =SUM(F43,H43:J43) -> 1023595
B44: ANR hors investissements d'avenir | F44: 1964237 | H44: 0 | I44: 0 | J44: 0 | K44: =SUM(F44,H44:J44) -> 1964237
B45: Subventions d'exploitation et financement des actifs - Région | F45: 2280799.76 | H45: 0 | I45: 0 | J45: 0 | K45: 2280799.76
B46: Subventions d'exploitation et financement des actifs - Union Européenne | F46: 3251084.57 | H46: 0 | I46: 0 | J46: 0 | K46: 3251084.57
B47: Subventions d'exploitation et financement des actifs - Autres | D47: 2024516.6 | F47: 1528174.9 | G47: 71500 | H47: 0 | I47: 0 | J47: 0 | K47: =SUM(D47,F47:J47) -> 3624191.5
B48: Fondations - fonds propres, réserves, dons et legs | H48: 0 | I48: 0 | J48: 0 | K48: =SUM(D48,F48:J48) -> 0
B49: Autres recettes | E49: 626184 | G49: 4963761 | H49: 0 | I49: 0 | J49: 0 | K49: =SUM(E49:J49) -> 5589945
B50: Total | C50: =C37 -> 69245984 | D50: =SUM(D47:D48) -> 2024516.6 | E50: =E49 -> 626184 | F50: =SUM(F43:F49) -> 10047891.23 | G50: =SUM(G38:G42,G47:G49) -> 16406662.13 | H50: =SUM(H38:H49) -> 0 | I50: =SUM(I38:I49) -> 0 | J50: 0 | K50: =SUM(K37:K49) -> 98351237.96
B52: La liste des destination est susceptible d'être modifiée par le ministre chargé de l'enseignement supérieur | I52: SOLDE BUDGETAIRE (déficit) | K52: =IF(J28>K50,J28-K50,0) -> 4246953.29

Sheet 3-tab_destination_origine_AGR (hidden)
B1: Tableau 3 - Université de Bretagne Sud (0561718N) : Etablissement principal + Fondation
B2: ="Dépenses par destination et recettes par origine - Budget agrégé "&Maquette!B4&" "&Maquette!B5&" "&Maquette!B3 -> Dépenses par destination et recettes par origine - Budget agrégé initial 2023
B4: POUR INFORMATION DE L'ORGANE DÉLIBÉRANT
B5: Tableau des dépenses par destination (obligatoire)
B6: Budget | C6: Dépenses de l’organisme
C7: Personnel | E7: Fonctionnement et intervention | G7: Investissement | I7: Total
C8: AE = CP | E8: AE | F8: CP | G8: AE | H8: CP | I8: AE | J8: CP
B9: Formation initiale et continue (d) = (a) + (b) + (c) | C9: =SUM(C10:C12) -> 0 | D9: =SUM(D10:D12) -> 0 | E9: 0 | F9: 0 | G9: 0 | H9: 0 | I9: =C9+E9+G9 -> 0 | J9: =D9+F9+H9 -> 0
B10: D101 - Formation initiale et continue de niveau Licence (a) | I10: =C10+E10+G10 -> 0 | J10: 0
B11: D102 - Formation initiale et continue de niveau Master (b) | I11: 0 | J11: 0
B12: D103 - Formation initiale et continue de niveau Doctorat (c) | I12: 0 | J12: 0
B13: D105 - Bibliothèques et documentation | I13: 0 | J13: 0
B14: D106 - Recherche universitaire en sciences de la vie, biotechnologie et santé | I14: 0 | J14: 0
B15: D107 - Recherche universitaire en mathématiques, sciences et techniques de l'information et de la communication, micro et nanotechnologies | I15: 0 | J15: 0
B16: D108 - Recherche universitaire en physique, chimie et sciences pour l'ingénieur | I16: 0 | J16: 0
B17: D109 - Recherche universitaire en physique nucléaire et des hautes énergies | I17: 0 | J17: 0
B18: D110 - Recherche universitaire en sciences de la terre, de l'univers et de l'environnement | I18: 0 | J18: 0
B19: D111 - Recherche universitaire en sciences de l'homme et de la société | I19: 0 | J19: 0
B20: D112 - Recherche universitaire interdisciplinaire et transversale | I20: 0 | J20: 0
B21: D113 - Diffusion des savoirs et musées | I21: 0 | J21: 0
B22: D114 - Immobilier | I22: 0 | J22: 0
B23: D115 - Pilotage et support | I23: 0 | J23: 0
B24: Étudiants (h) = (e) + (f) + (g) | C24: =SUM(C25:C27) -> 0 | D24: =SUM(D25:D27) -> 0 | E24: 0 | F24: 0 | G24: 0 | H24: 0 | I24: 0 | J24: 0
B25: D201 - Aides directes aux étudiants (e) | I25: 0 | J25: 0
B26: D202 - Aides indirectes (f) | I26: 0 | J26: 0
B27: D203 - Santé des étudiants et activités associatives, culturelles et sportives (g) | I27: 0 | J27: 0
B28: Total | C28: =SUM(C10:C24) -> 0 | D28: =SUM(D10:D24) -> 0 | E28: 0 | F28: 0 | G28: 0 | H28: 0 | I28: =C28+E28+G28 -> 0 | J28: =D28+F28+H28 -> 0
C30: =IF(SUM(C9:C28)<>SUM(D9:D28),"! Dépenses de personnel AE <> CP","") ->  | H30: SOLDE BUDGETAIRE (excédent) | J30: =IF(K50>J28,K50-J28,0) -> 0 | K30: =IF(ROUND(J30,-1)<>ROUND('2-tab_aut_budg_AGR'!L30,-1),"Incohérence solde budgétaire avec Tab2 AGR","") -> 
C31: =IF(ROUND(C28,-1)<>ROUND('2-tab_aut_budg_AGR'!K11+'2-tab_aut_budg_AGR'!K24,-1),"! Incohérence total Personnel AE avec Tab2 AGR","") ->  | D31: =IF(ROUND(D28,-1)<>ROUND('2-tab_aut_budg_AGR'!L11+'2-tab_aut_budg_AGR'!L24,-1),"! Incohérence total Personnel CP avec Tab2 AGR","") ->  | E31: =IF(ROUND(E28,-1)<>ROUND('2-tab_aut_budg_AGR'!K15+'2-tab_aut_budg_AGR'!K25,-1),"! Incohérence total Fonctionnement AE avec Tab2 AGR","") ->  | F31: =IF(ROUND(F28,-1)<>ROUND('2-tab_aut_budg_AGR'!L15+'2-tab_aut_budg_AGR'!L25,-1),"! Incohérence total Fonctionnement CP avec Tab2 AGR","") ->  | G31: =IF(ROUND(G28,-1)<>ROUND('2-tab_aut_budg_AGR'!K20+'2-tab_aut_budg_AGR'!K26,-1),"! Incohérence total Investissement AE avec Tab2 AGR","") ->  | H31: =IF(ROUND(H28,-1)<>ROUND('2-tab_aut_budg_AGR'!L20+'2-tab_aut_budg_AGR'!L26,-1),"! Incohérence total Investissement CP avec Tab2 AGR","") ->  | I31: =IF(ROUND(I28,-1)<>ROUND('2-tab_aut_budg_AGR'!K28,-1),"! Incohérence Total dépenses AE avec Tab2 AGR","") ->  | J31: =IF(ROUND(J28,-1)<>ROUND('2-tab_aut_budg_AGR'!L28,-1),"! Incohérence Total dépenses CP avec Tab2 AGR","") -> 
B32: Tableau des recettes par origine (obligatoire)
B34: Budget | C34: Recettes de l'organisme
C35: Recettes globalisées | H35: Recettes fléchées | K35: Total
C36: Subvention pour charges de service public | D36: Autres financements de l'Etat | E36: Fiscalité affectée | F36: Autres financements publics | G36: Recettes propres | H36: Financements de l'Etat fléchés | I36: Autres financements publics fléchés | J36: Recettes propres fléchées
B37: Subvention pour charges de service public | K37: =C37 -> 0
B38: Droits d'inscription | K38: =SUM(G38:J38) -> 0
B39: Formation continue, diplômes propres et VAE | K39: =SUM(G39:J39) -> 0
B40: Taxe d'apprentissage | K40: 0
B41: Contrats et prestations de recherche hors ANR | K41: 0
B42: Valorisation | K42: 0
B43: ANR investissements d'avenir | K43: =SUM(F43,H43:J43) -> 0
B44: ANR hors investissements d'avenir | K44: =SUM(F44,H44:J44) -> 0
B45: Subventions d'exploitation et financement des actifs - Région | K45: 0
B46: Subventions d'exploitation et financement des actifs - Union Européenne | K46: 0
B47: Subventions d'exploitation et financement des actifs - Autres | K47: =SUM(D47,F47:J47) -> 0
B48: Fondations - fonds propres, réserves, dons et legs | K48: =SUM(D48,F48:J48) -> 0
B49: Autres recettes | K49: =SUM(F49:J49) -> 0
B50: Total | C50: =C37 -> 0 | D50: =SUM(D47:D48) -> 0 | E50: =SUM(E47:E48) -> 0 | F50: =SUM(F43:F49) -> 0 | G50: =SUM(G38:G42,G47:G49) -> 0 | H50: =SUM(H38:H49) -> 0 | I50: =SUM(I38:I49) -> 0 | J50: 0 | K50: =SUM(K37:K49) -> 0
B52: La liste des destination est susceptible d'être modifiée par le ministre chargé de l'enseignement supérieur | I52: SOLDE BUDGETAIRE (déficit) | K52: =IF(J28>K50,J28-K50,0) -> 0 | L52: =IF(ROUND(K52,-1)<>ROUND('2-tab_aut_budg_AGR'!R30,-1),"! Incohérence solde budgétaire avec Tab2 AGR","") -> 
C53: =IF(ROUND(C50,-1)<>ROUND('2-tab_aut_budg_AGR'!R12,-1),"! Incohérence total Subv charges serv public avec Tab2 AGR","") ->  | D53: =IF(ROUND(D50,-1)<>ROUND('2-tab_aut_budg_AGR'!R13,-1),"! Incohérence total Autres financements Etat avec Tab2 AGR","") ->  | E53: =IF(ROUND(E50,-1)<>ROUND('2-tab_aut_budg_AGR'!R14,-1),"! Incohérence total Fiscalité affectée avec Tab2 AGR","") ->  | F53: =IF(ROUND(F50,-1)<>ROUND('2-tab_aut_budg_AGR'!R15,-1),"! Incohérence total Autres financements publics avec Tab2 AGR","") ->  | G53: =IF(ROUND(G50,-1)<>ROUND('2-tab_aut_budg_AGR'!R16,-1),"! Incohérence total Recettes propres avec Tab2 AGR","") ->  | H53: =IF(ROUND(H50,-1)<>ROUND('2-tab_aut_budg_AGR'!R19,-1),"! Incohérence total Financements Etat fléchés avec Tab2 AGR","") ->  | I53: =IF(ROUND(I50,-1)<>ROUND('2-tab_aut_budg_AGR'!R20,-1),"! Incohérence total Autres financements fléchés avec Tab2 AGR","") ->  | J53: =IF(ROUND(J50,-1)<>ROUND('2-tab_aut_budg_AGR'!R21,-1),"! Incohérence total Recettes propres fléchées avec Tab2 AGR","") ->  | K53: =IF(ROUND(K50,-1)<>ROUND('2-tab_aut_budg_AGR'!R28,-1),"! Incohérence total avec Tab2 AGR","") -> 
H54: =IF(H50<>'8-tab recettes_fléchées_ETAB'!D13,"! Incohérence Financements Etat fléchés avec Tab8 ETAB","") ->  | I54: =IF(ROUND(I50,-1)<>ROUND('8-tab recettes_fléchées_AGR'!D14,-1),"! Incohérence Autres financements fléchés avec Tab8 AGR","") ->  | J54: =IF(ROUND(J50,-1)<>ROUND('8-tab recettes_fléchées_AGR'!D15,-1),"! Incohérences Recettes propres fléchées avec Tab8 AGR ","") -> 

Sheet 4-tab_financier_ETAB
B1: Tableau 4 - Université de Bretagne Sud (0561718N) : Etablissement principal + Fondation
B2: ="Équilibre financier - Budget consolidé "&Maquette!B4&" "&Maquette!B5&" "&Maquette!B3 -> Équilibre financier - Budget consolidé initial 2023
B5: POUR VOTE DE L'ORGANE DÉLIBÉRANT
B9: Besoins (utilisation des financements) | I9: Financements (couverture des besoins)
C10: Exécution N-1: BR1/2021 | D10: Budget initial (a) | E10: Nouveau BR | F10: Somme des BR (yc nouveau BR) (b) | G10: TOTAL : dernier budget modifié (c) = (a) + (b) | I10: Exécution N-1: BR1/2021 | J10: Budget initial (d) | K10: Nouveau BR | L10: Somme des BR (yc nouveau BR) (e) | M10: TOTAL : dernier budget modifié (f) = (d) + (e)
B11: Solde budgétaire (déficit) * (D2) | C11: 787815.14 | D11: ='2-tab_aut_budg_ETAB'!O30 -> 4308195.29 | G11: =IF(SUM(J11,L11)-SUM(D11,F11)<0,-(SUM(J11,L11)-SUM(D11,F11)),0) -> 4308195.29 | M11: =IF(SUM(J11,L11)-SUM(D11,F11)>=0,SUM(J11,L11)-SUM(D11,F11),0) -> 0 | N11: Solde budgétaire (excédent) * (D1) | R11: Opérations ayant un impact sur la trésorerie
B12: dont solde budgétaire budget principal | C12: 841431.02 | D12: ='2-tab_aut_budg_PRINC'!O30 -> 4246953.29 | G12: =D12+F12 -> 4246953.29 | M12: =IF(SUM(J12,L12)-SUM(D12,F12)>=0,SUM(J12,L12)-SUM(D12,F12),0) -> 0 | N12: dont solde budgétaire budget principal
B13: dont solde budgétaire budget du SAIC | G13: 0 | M13: 0 | N13: dont solde budgétaire budget du SAIC | P13: Opérations budgétaires
B14: dont solde budgétaire FU | D14: ='2-tab_aut_budg_FU'!O30 -> 61242 | G14: 61242 | M14: 0 | N14: dont solde budgétaire FU
B15: dont solde budgétaire BAI | G15: 0 | M15: 0 | N15: dont solde budgétaire BAI
B16: dont solde budgétaire SIE | G16: 0 | M16: 0 | N16: dont solde budgétaire SIE
G17: 0 | M17: =J17+L17 -> 0
B18: Remboursements d'emprunts (capital) ; Nouveaux prêts (capital) ; Dépôts et cautionnements (b1) | G18: 0 | M18: 0 | N18: Nouveaux emprunts (capital) ; Remboursements de prêts (capital) ; Dépôts et cautionnements (b2)
G19: 0 | M19: 0
B20: Opérations au nom et pour le compte de tiers ** (décaissements de l’exercice) (c1) | C20: 1807052 | D20: ='5-tab compte de tiers_ETAB'!E20 -> 2364470 | G20: 2364470 | I20: 1976404 | J20: ='5-tab compte de tiers_ETAB'!F20 -> 1988550 | M20: 1988550 | N20: Opérations au nom et pour le compte de tiers ** (encaissements de l’exercice) (c2) | P20: Opérations non budgétaires | Q20: =J20-D20 -> -375920
G21: 0 | M21: 0
B22: Autres décaissements sur comptes de tiers (non budgétaires) (e1) | D22: 0 | G22: 0 | J22: 0 | M22: 0 | N22: Autres encaissements sur comptes de tiers (non budgétaires) (e2)
G23: 0 | M23: 0
B24: Sous-total des opérations ayant un impact négatif sur la trésorerie de l'organisme (1= D2+b1+c1+e1) | C24: =C11+C18+C20+C22 -> 2594867.14 | D24: =D11+D18+D20+D22 -> 6672665.29 | E24: =E11+E18+E20+E22 -> 0 | F24: =F11+F18+F20+F22 -> 0 | G24: =G11+G18+G20+G22 -> 6672665.29 | H24: et | I24: =I11+I18+I20+I22 -> 1976404 | J24: =J11+J18+J20+J22 -> 1988550 | K24: =K11+K18+K20+K22 -> 0 | L24: =L11+L18+L20+L22 -> 0 | M24: =M11+M18+M20+M22 -> 1988550 | N24: Sous-total des opérations ayant un impact positif sur la trésorerie de l'organisme (2=D1+b2+c2+e2) | P24: La variation de trésorerie : - se détermine par différence entre (1) et (2), - se décompose en (a) et (d), - s'explique par D, (b), (c), (e).
B25: Variation de trésorerie (I) | C25: =IF(I24-C24>0,I24-C24,) -> 0 | D25: =IF(J24-D24>0,J24-D24,) -> 0 | E25: =IF(K24-E24>0,K24-E24,) -> 0 | F25: =IF(L24-F24>0,L24-F24,) -> 0 | G25: =IF(M24-G24>0,M24-G24,) -> 0 | H25: ou | I25: =IF(C24-I24>0,C24-I24,0) -> 618463.14 | J25: =IF(D24-J24>0,D24-J24,0) -> 4684115.29 | K25: =IF(E24-K24>0,E24-K24,0) -> 0 | L25: =IF(F24-L24>0,F24-L24,0) -> 0 | M25: =IF(G24-M24>0,G24-M24,0) -> 4684115.29 | N25: Variation de trésorerie (II)
G26: =D26+F26 -> 0 | M26: =J26+L26 -> 0 | R26: Décomposition de la variation de trésorerie
B27: dont Abondement de la trésorerie fléchée *** (a1) | C27: 1929527 | G27: 0 | H27: ou | J27: 774736 | M27: 774736 | N27: dont Prélèvement sur la trésorerie fléchée *** (a2)
G28: 0 | M28: 0
B29: dont Abondement sur la trésorerie non fléchée (d1) | C29: =C25 -> 0 | G29: 0 | H29: ou | I29: 2547990.14 | J29: =J25-J27 -> 3909379.29 | M29: 3909379.29 | N29: dont Prélèvement sur la trésorerie non fléchée (d2) | P29: = différence entre variation de trésorerie (I ou II) et (a)
G30: 0 | M30: 0
B31: TOTAL DES BESOINS (1 + I) | C31: =C25+C24 -> 2594867.14 | D31: =D25+D24 -> 6672665.29 | E31: 0 | F31: =F25+F24 -> 0 | G31: =G25+G24 -> 6672665.29 | H31: et | I31: =I25+I24 -> 2594867.14 | J31: =J25+J24 -> 6672665.29 | K31: 0 | L31: 0 | M31: 6672665.29 | N31: TOTAL DES FINANCEMENTS (2 + II)
B33: * solde budgétaire à détailler pour chaque composante du budget de l'établissement | K33: =IF(ROUND(K11,-1)<>ROUND('2-tab_aut_budg_ETAB'!H30,-1),"! Incohérence solde budgétaire BR avec Tab2 ETAB","") ->  | L33: =IF(ROUND(L11,-1)<>ROUND('2-tab_aut_budg_ETAB'!J30,-1),"! Incohérence solde budgétaire BR tot avec Tab2 ETAB","") ->  | M33: =IF(ROUND(M11,-1)<>ROUND('2-tab_aut_budg_ETAB'!L30,-1),"! Incohérence solde budgétaire Total avec Tab2 ETAB","") -> 
B34: Montant issu du tableau "Autorisations budgétaires" (tableau 2) | L34: =IF(ROUND(M11,-1)<>ROUND('3-tab_destination_origine_ETAB'!J30,-1),"! Incohérence solde budgétaire avec Tab3 ETAB","") ->  | M34: =IF(ROUND(M20,-1)<>ROUND('5-tab compte de tiers_ETAB'!F20,-1),"! Incohérence encaissements tiers avec Tab5","") -> 
B35: ** Montants issus du tableau "Opérations pour compte de tiers" (tableau 5) | L35: =IF(ROUND(M18,-1)<>ROUND('7-tab Plan_tréso_ETAB'!O19,-1),"! Incohérence recettes emprunts avec Tab7","") ->  | M35: =IF(ROUND(M20+M22,-1)<>ROUND('7-tab Plan_tréso_ETAB'!O23,-1),"! Incohérence encaissements tiers avec Tab7","") -> 
B36: *** Montant issu du tableau "Opérations sur recettes fléchées" (tableau 8) | M36: =IF('7-tab Plan_tréso_ETAB'!O48<=0,IF(-ROUND('7-tab Plan_tréso_ETAB'!O48,-1)<>ROUND('4-tab_financier_ETAB'!M25,-1),"! Incohérence variation de trésorerie Tab7",""),IF(ROUND('7-tab Plan_tréso_ETAB'!O48,-1)<>ROUND('4-tab_financier_ETAB'!G25,-1),"! Incohérence variation trésorerie Tab7","")) -> 
G37: =IF('8-tab recettes_fléchées_ETAB'!D28>0,IF(ROUND(G27,-1)<>ROUND('8-tab recettes_fléchées_ETAB'!D28,-1),"! Incohérence abond. trésorerie fléchée avec Tab8 ETAB",""),"") ->  | M37: =IF('8-tab recettes_fléchées_ETAB'!D28<=0,IF(ROUND(M27,-1)<>-ROUND('8-tab recettes_fléchées_ETAB'!D28,-1),"! Incohérence prélèv. trésorerie fléchée avec Tab8 ETAB",""),"") -> 
B38: SAIC : service d'activités industrielles et commerciales
B39: FU : fondation universitaire
B40: BAI : budget annexe immobilier
B41: SIE : service inter-établissements

Sheet 5-tab compte de tiers_ETAB
B1: Tableau 5 - Université de Bretagne Sud (0561718N) : Etablissement principal + Fondation
B2: ="Opérations pour le compte de tiers - Budget consolidé "&Maquette!B4&" "&Maquette!B5&" "&Maquette!B3 -> Opérations pour le compte de tiers - Budget consolidé initial 2023
B5: POUR INFORMATION DE L'ORGANE DÉLIBÉRANT
B9: Opérations ou regroupement d'opérations de même nature | C9: Comptes | D9: Libellé | E9: Prévisions de décaissements | F9: Prévisions d'encaissements
B10: Opération 1 | C10: C 46711 | D10: Bourse Mobilité Internationale | E10: 79400 | F10: 162000
C11: C 4…
B12: Opération 2 | C12: C 44571 et C 44551 | D12: TVA | E12: 720000 | F12: 410000
C13: C 4...
B14: Opération 3 | C14: C 4731 | D14: Projet Flower (Interreg) | E14: 308000 | F14: 308000
C15: C 4...
B16: Opération 4 | C16: C 4731 | D16: Projet Indigo (Interreg) | E16: 1108550 | F16: 1108550
C17: C 4...
B18: Opération 5 | C18: C 467611 | D18: Projet Cyberus | E18: 148520 | F18: 0
C19: C 4...
B20: TOTAL | E20: =SUM(E10:E19) -> 2364470 | F20: =SUM(F10:F19) -> 1988550
E21: (c1) | F21: (c2)
D22: (c1) et (c2) étant repris au tableau "Équilibre financier" (tableau 4)
B23: N.B. : Dans l'hypothèse d'un écart entre les crédits et les débits d'un même compte, l'opération concernée devra faire l'objet d'une explication spécifique.
E25: =IF(ROUND(E20,-1)<>ROUND('4-tab_financier_ETAB'!G20,-1),"! Incohérence total décaissements tiers avec Tab4","") ->  | F25: =IF(ROUND(F20,-1)<>ROUND('4-tab_financier_ETAB'!M20,-1),"! Incohérence total encaissements tiers avec Tab4","") -> 

Sheet 6-tab CR_TF_ETAB
A1: Tableau 6 - Université de Bretagne Sud (0561718N) : Etablissement principal + Fondation
A2: ="Situation patrimoniale - Budget consolidé "&Maquette!B4&" "&Maquette!B5&" "&Maquette!B3 -> Situation patrimoniale - Budget consolidé initial 2023
A4: POUR VOTE DE L'ORGANE DÉLIBÉRANT
A6: Compte de résultat prévisionnel
A8: CHARGES | B8: Exécution N-1: BR2/2022 | C8: Budget initial (a) | D8: Nouveau BR | E8: Somme des BR (yc nouveau BR) (b) | F8: TOTAL : dernier budget modifié (c) = (a) + (b) | G8: PRODUITS | H8: Exécution N-1: BR2/2022 | I8: Budget initial (d) | J8: Nouveau BR | K8: Somme des BR (yc nouveau BR) (e) | L8: TOTAL : dernier budget modifié (f) = (d) + (e)
A9: Personnel | B9: ='6-tab CR_TF_AGR'!B9+'6-tab CR_TF_SIE'!B9 -> 74930748.77 | C9: ='6-tab CR_TF_PRINC'!C9+'6-tab CR_TF_FU'!C9 -> 79122687 | D9: ='6-tab CR_TF_AGR'!D9+'6-tab CR_TF_SIE'!D9 -> 0 | E9: ='6-tab CR_TF_AGR'!E9+'6-tab CR_TF_SIE'!E9 -> 0 | F9: =C9+E9 -> 79122687 | G9: Subventions de l'Etat | H9: ='6-tab CR_TF_AGR'!H9+'6-tab CR_TF_SIE'!H9 -> 71034662.69 | I9: ='6-tab CR_TF_PRINC'!I9+'6-tab CR_TF_FU'!I9 -> 73523261 | J9: ='6-tab CR_TF_AGR'!J9+'6-tab CR_TF_SIE'!J9 -> 0 | K9: ='6-tab CR_TF_AGR'!K9+'6-tab CR_TF_SIE'!K9 -> 0 | L9: =I9+K9 -> 73523261
A10: dont charges de pensions civiles* | B10: ='6-tab CR_TF_AGR'!B10+'6-tab CR_TF_SIE'!B10 -> 19827314 | C10: ='6-tab CR_TF_PRINC'!C10+'6-tab CR_TF_FU'!C10 -> 0 | D10: ='6-tab CR_TF_AGR'!D10+'6-tab CR_TF_SIE'!D10 -> 0 | E10: ='6-tab CR_TF_AGR'!E10+'6-tab CR_TF_SIE'!E10 -> 0 | F10: =C10+E10 -> 0 | G10: Fiscalité affectée | H10: ='6-tab CR_TF_AGR'!H10+'6-tab CR_TF_SIE'!H10 -> 600000 | I10: ='6-tab CR_TF_PRINC'!I10+'6-tab CR_TF_FU'!I10 -> 626184 | J10: ='6-tab CR_TF_AGR'!J10+'6-tab CR_TF_SIE'!J10 -> 0 | K10: ='6-tab CR_TF_AGR'!K10+'6-tab CR_TF_SIE'!K10 -> 0 | L10: =I10+K10 -> 626184
A11: Fonctionnement (autre que les charges de personnel) et intervention | B11: ='6-tab CR_TF_AGR'!B11:B12+'6-tab CR_TF_SIE'!B11:B12 -> 21008402.65 | C11: ='6-tab CR_TF_PRINC'!C11:C12+'6-tab CR_TF_FU'!C11:C12 -> 24003901 | D11: ='6-tab CR_TF_AGR'!D11:D12+'6-tab CR_TF_SIE'!D11:D12 -> 0 | E11: ='6-tab CR_TF_AGR'!E11:E12+'6-tab CR_TF_SIE'!E11:E12 -> 0 | F11: =C11+E11 -> 24003901 | G11: Autres subventions | H11: ='6-tab CR_TF_AGR'!H11+'6-tab CR_TF_SIE'!H11 -> 5536440.61 | I11: ='6-tab CR_TF_PRINC'!I11+'6-tab CR_TF_FU'!I11 -> 6699752 | J11: ='6-tab CR_TF_AGR'!J11+'6-tab CR_TF_SIE'!J11 -> 0 | K11: ='6-tab CR_TF_AGR'!K11+'6-tab CR_TF_SIE'!K11 -> 0 | L11: 6699752
G12: Autres produits | H12: ='6-tab CR_TF_AGR'!H12+'6-tab CR_TF_SIE'!H12 -> 19336263.35 | I12: ='6-tab CR_TF_PRINC'!I12+'6-tab CR_TF_FU'!I12 -> 21217304 | J12: ='6-tab CR_TF_AGR'!J12+'6-tab CR_TF_SIE'!J12 -> 0 | K12: ='6-tab CR_TF_AGR'!K12+'6-tab CR_TF_SIE'!K12 -> 0 | L12: 21217304
A13: TOTAL DES CHARGES (1) | B13: =B9+B11 -> 95939151.42 | C13: =C9+C11 -> 103126588 | D13: =D9+D11 -> 0 | E13: =E9+E11 -> 0 | F13: =F9+F11 -> 103126588 | G13: TOTAL DES PRODUITS (2) | H13: =SUM(H9:H12) -> 96507366.65 | I13: =SUM(I9:I12) -> 102066501 | J13: 0 | K13: 0 | L13: =SUM(L9:L12) -> 102066501
A14: Résultat prévisionnel : bénéfice (3) = (2) - (1) | B14: =IF(H13-B13>0,H13-B13,0) -> 568215.23 | C14: =IF(I13-C13>0,I13-C13,0) -> 0 | D14: =IF(J13-D13>0,J13-D13,0) -> 0 | E14: =IF(K13-E13>0,K13-E13,0) -> 0 | F14: =IF(L13-F13>0,L13-F13,0) -> 0 | G14: Résultat prévisionnel : perte (4) = (1) - (2) | H14: =IF(B13-H13>0,B13-H13,0) -> 0 | I14: =IF(C13-I13>0,C13-I13,0) -> 1060087 | J14: =IF(D13-J13>0,D13-J13,0) -> 0 | K14: =IF(E13-K13>0,E13-K13,0) -> 0 | L14: =IF(F13-L13>0,F13-L13,0) -> 1060087
A15: TOTAL EQUILIBRE du compte de résultat prévisionnel (1) + (3) = (2) + (4) | B15: =B13+B14 -> 96507366.65 | C15: =C13+C14 -> 103126588 | D15: =D13+D14 -> 0 | E15: =E13+E14 -> 0 | F15: =F13+F14 -> 103126588 | G15: TOTAL EQUILIBRE du compte de résultat prévisionnel (1) + (3) = (2) + (4) | H15: =H13+H14 -> 96507366.65 | I15: =I13+I14 -> 103126588 | J15: =J13+J14 -> 0 | K15: 0 | L15: =L13+L14 -> 103126588
A16: * Il s'agit des sous catégories de comptes présentant les contributions employeur au CAS Pensions. | D16: ="Nouveau BR : Différence charges de personnel entre tableau 2 et tableau 6 est de : "&(ROUND(D9,0)-ROUND('2-tab_aut_budg_ETAB'!H11+'2-tab_aut_budg_ETAB'!H24,0)) -> Nouveau BR : Différence charges de personnel entre tableau 2 et tableau 6 est de : 0 | E16: ="Somme des BR : Différence charges de personnel entre tableau 2 et tableau 6 est de : "&(ROUND(E9,0)-ROUND('2-tab_aut_budg_ETAB'!J11+'2-tab_aut_budg_ETAB'!J24,0)) -> Somme des BR : Différence charges de personnel entre tableau 2 et tableau 6 est de : 0 | F16: ="Budget BI+BR : Différence charges de personnel entre tableau 2 et tableau 6 est de : "&(ROUND(F9,0)-ROUND('2-tab_aut_budg_ETAB'!L11+'2-tab_aut_budg_ETAB'!L24,0)) -> Budget BI+BR : Différence charges de personnel entre tableau 2 et tableau 6 est de : -839581
D17: =IF('2-tab_aut_budg_ETAB'!L24="",IF(ROUND(D10,-1)<>ROUND('2-tab_aut_budg_ETAB'!H12,-1),"! Incohérence charges PC Tab2 ETAB",""),"") ->  | E17: =IF('2-tab_aut_budg_ETAB'!L24="",IF(ROUND(E10,-1)<>ROUND('2-tab_aut_budg_ETAB'!J12,-1),"! Incohérence charges PC Tab2 ETAB",""),"") ->  | F17: =IF('2-tab_aut_budg_ETAB'!L24="",IF(ROUND(F10,-1)<>ROUND('2-tab_aut_budg_ETAB'!L12,-1),"! Incohérence charges PCl Tab2 ETAB",""),"") -> 
A19: Calcul de la capacité d'autofinancement (CAF)
B21: Exécution N-1: BR2/2022 | C21: Budget initial (g) | D21: Nouveau BR | E21: Somme des BR (yc nouveau BR) (h) | F21: TOTAL : dernier budget modifié (i) = (g) + (h)
A22: Résultat prévisionnel de l'exercice (bénéfice (3) ou perte (-4) | B22: =IF(B14>0,B14,-H14) -> 568215.23 | C22: =IF(C14>0,C14,-I14) -> -1060087 | D22: =IF(D14>0,D14,-J14) -> 0 | E22: =IF(E14>0,E14,-K14) -> 0 | F22: =IF(F14>0,F14,-L14) -> -1060087
A23: + dotations aux amortissements, dépréciations et provisions | B23: ='6-tab CR_TF_AGR'!B23+'6-tab CR_TF_SIE'!B23 -> 7091877 | C23: ='6-tab CR_TF_PRINC'!C23+'6-tab CR_TF_FU'!C23 -> 7711709 | D23: ='6-tab CR_TF_AGR'!D23+'6-tab CR_TF_SIE'!D23 -> 0 | E23: ='6-tab CR_TF_AGR'!E23+'6-tab CR_TF_SIE'!E23 -> 0 | F23: =C23+E23 -> 7711709
A24: - reprises sur amortissements, dépréciations et provisions | B24: ='6-tab CR_TF_AGR'!B24+'6-tab CR_TF_SIE'!B24 -> 0 | C24: ='6-tab CR_TF_PRINC'!C24+'6-tab CR_TF_FU'!C24 -> 0 | D24: ='6-tab CR_TF_AGR'!D24+'6-tab CR_TF_SIE'!D24 -> 0 | E24: ='6-tab CR_TF_AGR'!E24+'6-tab CR_TF_SIE'!E24 -> 0 | F24: =C24+E24 -> 0
A25: + valeur nette comptable des éléments d'actifs cédés | B25: ='6-tab CR_TF_AGR'!B25+'6-tab CR_TF_SIE'!B25 -> 0 | C25: ='6-tab CR_TF_PRINC'!C25+'6-tab CR_TF_FU'!C25 -> 0 | D25: ='6-tab CR_TF_AGR'!D25+'6-tab CR_TF_SIE'!D25 -> 0 | E25: ='6-tab CR_TF_AGR'!E25+'6-tab CR_TF_SIE'!E25 -> 0 | F25: =C25+E25 -> 0
A26: - produits de cession d'éléments d'actifs | B26: ='6-tab CR_TF_AGR'!B26+'6-tab CR_TF_SIE'!B26 -> 0 | C26: ='6-tab CR_TF_PRINC'!C26+'6-tab CR_TF_FU'!C26 -> 0 | D26: ='6-tab CR_TF_AGR'!D26+'6-tab CR_TF_SIE'!D26 -> 0 | E26: ='6-tab CR_TF_AGR'!E26+'6-tab CR_TF_SIE'!E26 -> 0 | F26: =C26+E26 -> 0
A27: - quote-part des subventions d’investissement virée au résultat de l’exercice | B27: ='6-tab CR_TF_AGR'!B27+'6-tab CR_TF_SIE'!B27 -> -4749988 | C27: ='6-tab CR_TF_PRINC'!C27+'6-tab CR_TF_FU'!C27 -> -5202367 | D27: ='6-tab CR_TF_AGR'!D27+'6-tab CR_TF_SIE'!D27 -> 0 | E27: ='6-tab CR_TF_AGR'!E27+'6-tab CR_TF_SIE'!E27 -> 0 | F27: =C27+E27 -> -5202367
A28: = CAF ou IAF* | B28: =SUM(B22:B27) -> 2910104.23 | C28: =SUM(C22:C27) -> 1449255 | D28: 0 | E28: 0 | F28: =SUM(F22:F27) -> 1449255
A29: * capacité d'autofinancement ou insuffisance d'autofinancement
A32: État prévisionnel de l'évolution de la situation patrimoniale en droits constatés | D32: =IF(ROUND(F41,-1)=ROUND('6-tab CR_TF_AGR'!F41+'6-tab CR_TF_SIE'!F41,-1),"","! Pb agrégat apport FDR") -> 
A34: EMPLOIS | B34: Exécution N-1: BR2/2022 | C34: Budget initial (j) | D34: Nouveau BR | E34: Somme des BR (yc nouveau BR) (k) | F34: TOTAL : dernier budget modifié (l) = (j) + (k) | G34: RESSOURCES | H34: Exécution N-1: BR2/2022 | I34: Budget initial (m) | J34: Nouveau BR | K34: Somme des BR (yc nouveau BR) (n) | L34: TOTAL : dernier budget modifié (o) = (m) + (n)
A35: Insuffisance d'autofinancement* | B35: =IF(B28<0,-B28,0) -> 0 | C35: =IF(C28<0,-C28,0) -> 0 | D35: =IF(D28<0,-D28,0) -> 0 | E35: =IF(E28<0,-E28,0) -> 0 | F35: =IF(F28<0,-F28,0) -> 0 | G35: Capacité d'autofinancement* | H35: =IF(B28>0,B28,0) -> 2910104.23 | I35: =IF(C28>0,C28,0) -> 1449255 | J35: =IF(D28>0,D28,0) -> 0 | K35: =IF(E28>0,E28,0) -> 0 | L35: =IF(F28>0,F28,0) -> 1449255
A36: Investissements | B36: ='6-tab CR_TF_AGR'!B36+'6-tab CR_TF_SIE'!B36 -> 8344355.42 | C36: ='6-tab CR_TF_AGR'!C36+'6-tab CR_TF_SIE'!C36 -> 8080912 | D36: ='6-tab CR_TF_AGR'!D36+'6-tab CR_TF_SIE'!D36 -> 0 | E36: ='6-tab CR_TF_AGR'!E36+'6-tab CR_TF_SIE'!E36 -> 0 | F36: =C36+E36 -> 8080912 | G36: Financement de l'actif par l'État | H36: ='6-tab CR_TF_AGR'!H36+'6-tab CR_TF_SIE'!H36 -> 1217182.02 | I36: ='6-tab CR_TF_AGR'!I36+'6-tab CR_TF_SIE'!I36 -> 100000 | J36: ='6-tab CR_TF_AGR'!J36+'6-tab CR_TF_SIE'!J36 -> 0 | K36: ='6-tab CR_TF_AGR'!K36+'6-tab CR_TF_SIE'!K36 -> 0 | L36: =I36+K36 -> 100000
B37: ='6-tab CR_TF_AGR'!B37+'6-tab CR_TF_SIE'!B37 -> 0 | C37: ='6-tab CR_TF_AGR'!C37+'6-tab CR_TF_SIE'!C37 -> 0 | D37: ='6-tab CR_TF_AGR'!D37+'6-tab CR_TF_SIE'!D37 -> 0 | E37: ='6-tab CR_TF_AGR'!E37+'6-tab CR_TF_SIE'!E37 -> 0 | G37: Financement de l'actif par des tiers autres que l'Etat | H37: ='6-tab CR_TF_AGR'!H37+'6-tab CR_TF_SIE'!H37 -> 2201214.04 | I37: ='6-tab CR_TF_AGR'!I37+'6-tab CR_TF_SIE'!I37 -> 1047661 | J37: ='6-tab CR_TF_AGR'!J37+'6-tab CR_TF_SIE'!J37 -> 0 | K37: ='6-tab CR_TF_AGR'!K37+'6-tab CR_TF_SIE'!K37 -> 0 | L37: =I37+K37 -> 1047661
B38: ='6-tab CR_TF_AGR'!B38+'6-tab CR_TF_SIE'!B38 -> 0 | C38: ='6-tab CR_TF_AGR'!C38+'6-tab CR_TF_SIE'!C38 -> 0 | D38: ='6-tab CR_TF_AGR'!D38+'6-tab CR_TF_SIE'!D38 -> 0 | E38: ='6-tab CR_TF_AGR'!E38+'6-tab CR_TF_SIE'!E38 -> 0 | G38: Autres ressources | H38: ='6-tab CR_TF_AGR'!H38+'6-tab CR_TF_SIE'!H38 -> 458086 | I38: ='6-tab CR_TF_AGR'!I38+'6-tab CR_TF_SIE'!I38 -> 1867859 | J38: ='6-tab CR_TF_AGR'!J38+'6-tab CR_TF_SIE'!J38 -> 0 | K38: ='6-tab CR_TF_AGR'!K38+'6-tab CR_TF_SIE'!K38 -> 0 | L38: 1867859
A39: Remboursement des dettes financières | B39: ='6-tab CR_TF_AGR'!B39+'6-tab CR_TF_SIE'!B39 -> 0 | C39: ='6-tab CR_TF_AGR'!C39+'6-tab CR_TF_SIE'!C39 -> 0 | D39: ='6-tab CR_TF_AGR'!D39+'6-tab CR_TF_SIE'!D39 -> 0 | E39: ='6-tab CR_TF_AGR'!E39+'6-tab CR_TF_SIE'!E39 -> 0 | F39: =C39+E39 -> 0 | G39: Augmentation des dettes financières | H39: ='6-tab CR_TF_AGR'!H39+'6-tab CR_TF_SIE'!H39 -> 0 | I39: ='6-tab CR_TF_AGR'!I39+'6-tab CR_TF_SIE'!I39 -> 0 | J39: ='6-tab CR_TF_AGR'!J39+'6-tab CR_TF_SIE'!J39 -> 0 | K39: ='6-tab CR_TF_AGR'!K39+'6-tab CR_TF_SIE'!K39 -> 0 | L39: 0
A40: TOTAL DES EMPLOIS (5) | B40: =SUM(B35:B39) -> 8344355.42 | C40: 8080912 | D40: 0 | E40: =SUM(E35:E39) -> 0 | F40: =SUM(F35:F39) -> 8080912 | G40: TOTAL DES RESSOURCES (6) | H40: =SUM(H35:H39) -> 6786586.29 | I40: 4464775 | J40: 0 | K40: =SUM(K35:K39) -> 0 | L40: =SUM(L35:L39) -> 4464775
A41: APPORT au FONDS DE ROULEMENT (7) = (6)-(5) | B41: =IF(H40-B40>0,H40-B40,0) -> 0 | C41: =IF(I40-C40>0,I40-C40,0) -> 0 | D41: =IF(J40-D40>0,J40-D40,0) -> 0 | E41: =IF(K40-E40>0,K40-E40,0) -> 0 | F41: =IF(L40-F40>0,L40-F40,0) -> 0 | G41: PRELEVEMENT sur FONDS DE ROULEMENT (8) = (5)-(6) | H41: =IF(B40-H40>0,B40-H40,0) -> 1557769.13 | I41: =IF(C40-I40>0,C40-I40,0) -> 3616137 | J41: =IF(D40-J40>0,D40-J40,0) -> 0 | K41: =IF(E40-K40>0,E40-K40,0) -> 0 | L41: =IF(F40-L40>0,F40-L40,0) -> 3616137
A43: POUR INFORMATION DE L'ORGANE DÉLIBÉRANT
H45: Exécution N-1: BR2/2022 | I45: Budget initial (q) | J45: Nouveau BR | K45: Somme des BR (yc nouveau BR) (r) | L45: TOTAL : dernier budget modifié Variation (s) = (q) + (r) Niveau = (p) + (s)
A46: VARIATION DU FONDS DE ROULEMENT : APPORT (7) ou PRELEVEMENT (8) | H46: =IF(B41>0,B41,-H41) -> -1557769.13 | I46: =IF(C41>0,C41,-I41) -> -3616137 | J46: =IF(D41>0,D41,-J41) -> 0 | K46: =IF(E41>0,E41,-K41) -> 0 | L46: =I46+K46 -> -3616137
A47: Variation du BESOIN en FONDS DE ROULEMENT | H47: ='6-tab CR_TF_AGR'!H47+'6-tab CR_TF_SIE'!H47 -> -939306.16 | I47: ='6-tab CR_TF_AGR'!I47+'6-tab CR_TF_SIE'!I47 -> 1067978.29 | J47: ='6-tab CR_TF_AGR'!J47+'6-tab CR_TF_SIE'!J47 -> 0 | K47: ='6-tab CR_TF_AGR'!K47+'6-tab CR_TF_SIE'!K47 -> 0 | L47: =I47+K47 -> 1067978.29
A48: Variation de la TRESORERIE : ABONDEMENT (I) ou PRELEVEMENT (II) * | H48: ='6-tab CR_TF_AGR'!H48+'6-tab CR_TF_SIE'!H48 -> -618462.97 | I48: ='6-tab CR_TF_AGR'!I48+'6-tab CR_TF_SIE'!I48 -> -4684115.29 | J48: ='6-tab CR_TF_AGR'!J48+'6-tab CR_TF_SIE'!J48 -> 0 | K48: ='6-tab CR_TF_AGR'!K48+'6-tab CR_TF_SIE'!K48 -> 0 | L48: -4684115.29
A49: Niveau du FONDS DE ROULEMENT | H49: ='6-tab CR_TF_AGR'!H49+'6-tab CR_TF_SIE'!H49 -> 12189108.68 | I49: ='6-tab CR_TF_AGR'!I49+'6-tab CR_TF_SIE'!I49 -> 8572971.68 | J49: ='6-tab CR_TF_AGR'!J49+'6-tab CR_TF_SIE'!J49 -> 0 | K49: ='6-tab CR_TF_AGR'!K49+'6-tab CR_TF_SIE'!K49 -> 0 | L49: =H49+L46 -> 8572971.68
A50: Niveau du BESOIN EN FONDS DE ROULEMENT | H50: ='6-tab CR_TF_AGR'!H50+'6-tab CR_TF_SIE'!H50 -> -776867.55 | I50: ='6-tab CR_TF_AGR'!I50+'6-tab CR_TF_SIE'!I50 -> 291110.74 | J50: ='6-tab CR_TF_AGR'!J50+'6-tab CR_TF_SIE'!J50 -> 0 | K50: ='6-tab CR_TF_AGR'!K50+'6-tab CR_TF_SIE'!K50 -> 0 | L50: =H50+L47 -> 291110.74
A51: Niveau de la TRESORERIE | H51: ='6-tab CR_TF_AGR'!H51+'6-tab CR_TF_SIE'!H51 -> 12965976.23 | I51: ='6-tab CR_TF_AGR'!I51+'6-tab CR_TF_SIE'!I51 -> 8281860.94 | J51: ='6-tab CR_TF_AGR'!J51+'6-tab CR_TF_SIE'!J51 -> 0 | K51: ='6-tab CR_TF_AGR'!K51+'6-tab CR_TF_SIE'!K51 -> 0 | L51: 8281860.94
A53: * : montant issu du tableau "équilibre financier"

Sheet 6-tab CR_TF_PRINC
A1: Tableau 6 - Université de Bretagne Sud (0561718N) : Etablissement principal
A2: ="Situation patrimoniale - Budget "&Maquette!B4&" "&Maquette!B5&" "&Maquette!B3 -> Situation patrimoniale - Budget initial 2023
A4: POUR VOTE DE L'ORGANE DÉLIBÉRANT
A6: Compte de résultat prévisionnel
A8: CHARGES | B8: Exécution N-1: BR2/2022 | C8: Budget initial (a) | D8: Nouveau BR | E8: Somme des BR (yc nouveau BR) (b) | F8: TOTAL : dernier budget modifié (c) = (a) + (b) | G8: PRODUITS | H8: Exécution N-1: BR2/2022 | I8: Budget initial (d) | J8: Nouveau BR | K8: Somme des BR (yc nouveau BR) (e) | L8: TOTAL : dernier budget modifié (f) = (d) + (e)
A9: Personnel | B9: 74820165.53 | C9: 78892506 | F9: =C9+E9 -> 78892506 | G9: Subventions de l'Etat | H9: 70981184.69 | I9: 73457261 | L9: =I9+K9 -> 73457261
A10: dont charges de pensions civiles* | B10: 19827314 | F10: =C10+E10 -> 0 | G10: Fiscalité affectée | H10: 600000 | I10: 626184 | L10: =I10+K10 -> 626184
A11: Fonctionnement (autre que les charges de personnel) et intervention | B11: 20832121.65 | C11: 23751110 | F11: =C11+E11 -> 23751110 | G11: Autres subventions | H11: 5477440.61 | I11: 6640752 | L11: 6640752
G12: Autres produits | H12: 19158171.35 | I12: 20832866 | L12: 20832866
A13: TOTAL DES CHARGES (1) | B13: =B9+B11 -> 95652287.18 | C13: =C9+C11 -> 102643616 | D13: =D9+D11 -> 0 | E13: 0 | F13: =F9+F11 -> 102643616 | G13: TOTAL DES PRODUITS (2) | H13: =SUM(H9:H12) -> 96216796.65 | I13: =SUM(I9:I12) -> 101557063 | J13: 0 | K13: 0 | L13: =SUM(L9:L12) -> 101557063
A14: Résultat prévisionnel : bénéfice (3) = (2) - (1) | B14: =IF(H13-B13>0,H13-B13,0) -> 564509.47 | C14: =IF(I13-C13>0,I13-C13,0) -> 0 | D14: =IF(J13-D13>0,J13-D13,0) -> 0 | E14: =IF(K13-E13>0,K13-E13,0) -> 0 | F14: =IF(L13-F13>0,L13-F13,0) -> 0 | G14: Résultat prévisionnel : perte (4) = (1) - (2) | H14: =IF(B13-H13>0,B13-H13,0) -> 0 | I14: =IF(C13-I13>0,C13-I13,0) -> 1086553 | J14: =IF(D13-J13>0,D13-J13,0) -> 0 | K14: =IF(E13-K13>0,E13-K13,0) -> 0 | L14: =IF(F13-L13>0,F13-L13,0) -> 1086553
A15: TOTAL EQUILIBRE du compte de résultat prévisionnel (1) + (3) = (2) + (4) | B15: =B13+B14 -> 96216796.65 | C15: =C13+C14 -> 102643616 | D15: =D13+D14 -> 0 | E15: 0 | F15: =F13+F14 -> 102643616 | G15: TOTAL EQUILIBRE du compte de résultat prévisionnel (1) + (3) = (2) + (4) | H15: =H13+H14 -> 96216796.65 | I15: =I13+I14 -> 102643616 | J15: 0 | K15: 0 | L15: =L13+L14 -> 102643616
A16: * Il s'agit des sous catégories de comptes présentant les contributions employeur au CAS Pensions. | D16: ="Nouveau BR : Différence charges de personnel entre tableau 2 et tableau 6 est de : "&(ROUND(D9,0)-ROUND('2-tab_aut_budg_PRINC'!H11+'2-tab_aut_budg_PRINC'!H24,0)) -> Nouveau BR : Différence charges de personnel entre tableau 2 et tableau 6 est de : 0 | E16: ="Somme des BR : Différence charges de personnel entre tableau 2 et tableau 6 est de : "&(ROUND(E9,0)-ROUND('2-tab_aut_budg_PRINC'!J11+'2-tab_aut_budg_PRINC'!J24,0)) -> Somme des BR : Différence charges de personnel entre tableau 2 et tableau 6 est de : 0 | F16: ="Budget BI+BR : Différence charges de personnel entre tableau 2 et tableau 6 est de : "&(ROUND(F9,0)-ROUND('2-tab_aut_budg_PRINC'!L11+'2-tab_aut_budg_PRINC'!L24,0)) -> Budget BI+BR : Différence charges de personnel entre tableau 2 et tableau 6 est de : -837162
D17: =IF('2-tab_aut_budg_PRINC'!L24="",IF(ROUND(D10,-1)<>ROUND('2-tab_aut_budg_PRINC'!H12,-1),"! Incohérence charges PC Tab2 PRINC",""),"") ->  | E17: =IF('2-tab_aut_budg_PRINC'!L24="",IF(ROUND(E10,-1)<>ROUND('2-tab_aut_budg_PRINC'!J12,-1),"! Incohérence charges PC Tab2 PRINC",""),"") ->  | F17: =IF('2-tab_aut_budg_PRINC'!L24="",IF(ROUND(F10,-1)<>ROUND('2-tab_aut_budg_PRINC'!L12,-1),"! Incohérence charges PCl Tab2 PRINC",""),"") -> 
A19: Calcul de la capacité d'autofinancement (CAF)
B21: Exécution N-1: BR2/2022 | C21: Budget initial (g) | D21: Nouveau BR | E21: Somme des BR (yc nouveau BR) (h) | F21: TOTAL : dernier budget modifié (i) = (g) + (h)
A22: Résultat prévisionnel de l'exercice (bénéfice (3) ou perte (-4) | B22: =IF(B14>0,B14,-H14) -> 564509.47 | C22: =IF(C14>0,C14,-I14) -> -1086553 | D22: =IF(D14>0,D14,-J14) -> 0 | E22: =IF(E14>0,E14,-K14) -> 0 | F22: =IF(F14>0,F14,-L14) -> -1086553
A23: + dotations aux amortissements, dépréciations et provisions | B23: 7061588 | C23: 7681337 | F23: =C23+E23 -> 7681337
A24: - reprises sur amortissements, dépréciations et provisions | B24: 0 | F24: =C24+E24 -> 0
A25: + valeur nette comptable des éléments d'actifs cédés | B25: 0 | F25: =C25+E25 -> 0
A26: - produits de cession d'éléments d'actifs | B26: 0 | F26: =C26+E26 -> 0
A27: - quote-part des subventions d’investissement virée au résultat de l’exercice | B27: -4743688 | C27: -5190287 | F27: =C27+E27 -> -5190287
A28: = CAF ou IAF* | B28: =SUM(B22:B27) -> 2882409.47 | C28: =SUM(C22:C27) -> 1404497 | D28: 0 | E28: 0 | F28: =SUM(F22:F27) -> 1404497
A29: * capacité d'autofinancement ou insuffisance d'autofinancement
A32: État prévisionnel de l'évolution de la situation patrimoniale en droits constatés
A34: EMPLOIS | B34: Exécution N-1: BR2/2022 | C34: Budget initial (j) | D34: Nouveau BR | E34: Somme des BR (yc nouveau BR) (k) | F34: TOTAL : dernier budget modifié (l) = (j) + (k) | G34: RESSOURCES | H34: Exécution N-1: BR2/2022 | I34: Budget initial (m) | J34: Nouveau BR | K34: Somme des BR (yc nouveau BR) (n) | L34: TOTAL : dernier budget modifié (o) = (m) + (n)
A35: Insuffisance d'autofinancement* | B35: =IF(B28<0,-B28,0) -> 0 | C35: =IF(C28<0,-C28,0) -> 0 | D35: =IF(D28<0,-D28,0) -> 0 | E35: =IF(E28<0,-E28,0) -> 0 | F35: =IF(F28<0,-F28,0) -> 0 | G35: Capacité d'autofinancement* | H35: =IF(B28>0,B28,0) -> 2882409.47 | I35: =IF(C28>0,C28,0) -> 1404497 | J35: =IF(D28>0,D28,0) -> 0 | K35: =IF(E28>0,E28,0) -> 0 | L35: =IF(F28>0,F28,0) -> 1404497
A36: Investissements | B36: 8342355.42 | C36: 8040912 | F36: =C36+E36 -> 8040912 | G36: Financement de l'actif par l'État | H36: 1217182.02 | I36: 100000 | L36: =I36+K36 -> 100000
G37: Financement de l'actif par des tiers autres que l'Etat | H37: 2201214.04 | I37: 1047661 | L37: =I37+K37 -> 1047661
G38: Autres ressources | H38: 330878 | I38: 1891859 | L38: 1891859
A39: Remboursement des dettes financières | F39: =C39+E39 -> 0 | G39: Augmentation des dettes financières | L39: 0
A40: TOTAL DES EMPLOIS (5) | B40: =SUM(B35:B39) -> 8342355.42 | C40: 8040912 | D40: 0 | E40: =SUM(E35:E39) -> 0 | F40: =SUM(F35:F39) -> 8040912 | G40: TOTAL DES RESSOURCES (6) | H40: =SUM(H35:H39) -> 6631683.53 | I40: 4444017 | J40: 0 | K40: 0 | L40: =SUM(L35:L39) -> 4444017
A41: APPORT au FONDS DE ROULEMENT (7) = (6)-(5) | B41: =IF(H40-B40>0,H40-B40,0) -> 0 | C41: =IF(I40-C40>0,I40-C40,0) -> 0 | D41: =IF(J40-D40>0,J40-D40,0) -> 0 | E41: =IF(K40-E40>0,K40-E40,0) -> 0 | F41: =IF(L40-F40>0,L40-F40,0) -> 0 | G41: PRELEVEMENT sur FONDS DE ROULEMENT (8) = (5)-(6) | H41: =IF(B40-H40>0,B40-H40,0) -> 1710671.89 | I41: =IF(C40-I40>0,C40-I40,0) -> 3596895 | J41: =IF(D40-J40>0,D40-J40,0) -> 0 | K41: =IF(E40-K40>0,E40-K40,0) -> 0 | L41: =IF(F40-L40>0,F40-L40,0) -> 3596895
A43: POUR INFORMATION DE L'ORGANE DÉLIBÉRANT
H45: Exécution N-1: BR2/2022 | I45: Budget initial (q) | J45: Nouveau BR | K45: Somme des BR (yc nouveau BR) (r) | L45: TOTAL : dernier budget modifié Variation (s) = (q) + (r) Niveau = (p) + (s)
A46: VARIATION DU FONDS DE ROULEMENT : APPORT (7) ou PRELEVEMENT (8) | H46: =IF(B41>0,B41,-H41) -> -1710671.89 | I46: =IF(C41>0,C41,-I41) -> -3596895 | J46: =IF(D41>0,D41,-J41) -> 0 | K46: =IF(E41>0,E41,-K41) -> 0 | L46: =I46+K46 -> -3596895
A47: Variation du BESOIN en FONDS DE ROULEMENT | H47: =H46-H48 -> -1038593.04 | I47: =I46-I48 -> 1025978.29 | L47: =I47+K47 -> 1025978.29
A48: Variation de la TRESORERIE : ABONDEMENT (I) ou PRELEVEMENT (II) * | H48: -672078.85 | I48: =-4622873.29 -> -4622873.29 | L48: -4622873.29
A49: Niveau du FONDS DE ROULEMENT | H49: 11862976.93 | I49: =H49+I46 -> 8266081.93 | L49: =H49+L46 -> 8266081.93
A50: Niveau du BESOIN EN FONDS DE ROULEMENT | H50: =H49-H51 -> -875363.44 | I50: =I49-I51 -> 150614.85 | J50: 0 | K50: 0 | L50: =H50+L47 -> 150614.85
A51: Niveau de la TRESORERIE | H51: 12738340.37 | I51: =H51+I48 -> 8115467.08 | L51: 8115467.08
A53: * : montant issu du tableau "équilibre financier"

Sheet 6-tab CR_TF_FU
A1: Tableau 6 - Université de Bretagne Sud (0561718N) : Fondation
A2: ="Situation patrimoniale - Budget "&Maquette!B4&" "&Maquette!B5&" "&Maquette!B3 -> Situation patrimoniale - Budget initial 2023
A4: POUR VOTE DE L'ORGANE DÉLIBÉRANT
A6: Compte de résultat prévisionnel
A8: CHARGES | B8: Exécution N-1: BR2/2022 | C8: Budget initial (a) | D8: Nouveau BR | E8: Somme des BR (yc nouveau BR) (b) | F8: TOTAL : dernier budget modifié (c) = (a) + (b) | G8: PRODUITS | H8: Exécution N-1: BR2/2022 | I8: Budget initial (d) | J8: Nouveau BR | K8: Somme des BR (yc nouveau BR) (e) | L8: TOTAL : dernier budget modifié (f) = (d) + (e)
A9: Personnel | B9: 110583.24 | C9: 230181 | F9: =C9+E9 -> 230181 | G9: Subventions de l'Etat | H9: 53478 | I9: 66000 | L9: =I9+K9 -> 66000
A10: dont charges de pensions civiles* | F10: =C10+E10 -> 0 | G10: Fiscalité affectée | H10: 0 | L10: =I10+K10 -> 0
A11: Fonctionnement (autre que les charges de personnel) et intervention | B11: 176281 | C11: 252791 | F11: =C11+E11 -> 252791 | G11: Autres subventions | H11: 59000 | I11: 59000 | L11: 59000
G12: Autres produits | H12: 178092 | I12: 384438 | L12: 384438
A13: TOTAL DES CHARGES (1) | B13: =B9+B11 -> 286864.24 | C13: =C9+C11 -> 482972 | D13: =D9+D11 -> 0 | E13: 0 | F13: =F9+F11 -> 482972 | G13: TOTAL DES PRODUITS (2) | H13: =SUM(H9:H12) -> 290570 | I13: =SUM(I9:I12) -> 509438 | J13: 0 | K13: 0 | L13: =SUM(L9:L12) -> 509438
A14: Résultat prévisionnel : bénéfice (3) = (2) - (1) | B14: =IF(H13-B13>0,H13-B13,0) -> 3705.76 | C14: =IF(I13-C13>0,I13-C13,0) -> 26466 | D14: =IF(J13-D13>0,J13-D13,0) -> 0 | E14: =IF(K13-E13>0,K13-E13,0) -> 0 | F14: =IF(L13-F13>0,L13-F13,0) -> 26466 | G14: Résultat prévisionnel : perte (4) = (1) - (2) | H14: =IF(B13-H13>0,B13-H13,0) -> 0 | I14: =IF(C13-I13>0,C13-I13,0) -> 0 | J14: =IF(D13-J13>0,D13-J13,0) -> 0 | K14: =IF(E13-K13>0,E13-K13,0) -> 0 | L14: =IF(F13-L13>0,F13-L13,0) -> 0
A15: TOTAL EQUILIBRE du compte de résultat prévisionnel (1) + (3) = (2) + (4) | B15: =B13+B14 -> 290570 | C15: =C13+C14 -> 509438 | D15: =D13+D14 -> 0 | E15: 0 | F15: =F13+F14 -> 509438 | G15: TOTAL EQUILIBRE du compte de résultat prévisionnel (1) + (3) = (2) + (4) | H15: =H13+H14 -> 290570 | I15: =I13+I14 -> 509438 | J15: 0 | K15: 0 | L15: =L13+L14 -> 509438
A16: * Il s'agit des sous catégories de comptes présentant les contributions employeur au CAS Pensions. | D16: ="Nouveau BR : Différence charges de personnel entre tableau 2 et tableau 6 est de : "&(ROUND(D9,0)-ROUND('2-tab_aut_budg_FU'!H11+'2-tab_aut_budg_FU'!H24,0)) -> Nouveau BR : Différence charges de personnel entre tableau 2 et tableau 6 est de : 0 | E16: ="Somme des BR : Différence charges de personnel entre tableau 2 et tableau 6 est de : "&(ROUND(E9,0)-ROUND('2-tab_aut_budg_FU'!J11+'2-tab_aut_budg_FU'!J24,0)) -> Somme des BR : Différence charges de personnel entre tableau 2 et tableau 6 est de : 0 | F16: ="Budget BI+BR : Différence charges de personnel entre tableau 2 et tableau 6 est de : "&(ROUND(F9,0)-ROUND('2-tab_aut_budg_FU'!L11+'2-tab_aut_budg_FU'!L24,0)) -> Budget BI+BR : Différence charges de personnel entre tableau 2 et tableau 6 est de : -2419
D17: =IF('2-tab_aut_budg_FU'!L24="",IF(ROUND(D10,-1)<>ROUND('2-tab_aut_budg_FU'!H12,-1),"! Incohérence charges PC Tab2 FU",""),"") ->  | E17: =IF('2-tab_aut_budg_FU'!L24="",IF(ROUND(E10,-1)<>ROUND('2-tab_aut_budg_FU'!J12,-1),"! Incohérence charges PC Tab2 FU",""),"") ->  | F17: =IF('2-tab_aut_budg_FU'!L24="",IF(ROUND(F10,-1)<>ROUND('2-tab_aut_budg_FU'!L12,-1),"! Incohérence charges PCl Tab2 FU",""),"") -> 
A19: Calcul de la capacité d'autofinancement (CAF)
B21: Exécution N-1: BR2/2022 | C21: Budget initial (g) | D21: Nouveau BR | E21: Somme des BR (yc nouveau BR) (h) | F21: TOTAL : dernier budget modifié (i) = (g) + (h)
A22: Résultat prévisionnel de l'exercice (bénéfice (3) ou perte (-4) | B22: =IF(B14>0,B14,-H14) -> 3705.76 | C22: =IF(C14>0,C14,-I14) -> 26466 | D22: =IF(D14>0,D14,-J14) -> 0 | E22: =IF(E14>0,E14,-K14) -> 0 | F22: =IF(F14>0,F14,-L14) -> 26466
A23: + dotations aux amortissements, dépréciations et provisions | B23: 30289 | C23: 30372 | F23: =C23+E23 -> 30372
A24: - reprises sur amortissements, dépréciations et provisions | B24: 0 | F24: =C24+E24 -> 0
A25: + valeur nette comptable des éléments d'actifs cédés | B25: 0 | F25: =C25+E25 -> 0
A26: - produits de cession d'éléments d'actifs | B26: 0 | F26: =C26+E26 -> 0
A27: - quote-part des subventions d’investissement virée au résultat de l’exercice | B27: -6300 | C27: -12080 | F27: =C27+E27 -> -12080
A28: = CAF ou IAF* | B28: =SUM(B22:B27) -> 27694.76 | C28: =SUM(C22:C27) -> 44758 | D28: 0 | E28: 0 | F28: =SUM(F22:F27) -> 44758
A29: * capacité d'autofinancement ou insuffisance d'autofinancement
A32: État prévisionnel de l'évolution de la situation patrimoniale en droits constatés
A34: EMPLOIS | B34: Exécution N-1: BR2/2022 | C34: Budget initial (j) | D34: Nouveau BR | E34: Somme des BR (yc nouveau BR) (k) | F34: TOTAL : dernier budget modifié (l) = (j) + (k) | G34: RESSOURCES | H34: Exécution N-1: BR2/2022 | I34: Budget initial (m) | J34: Nouveau BR | K34: Somme des BR (yc nouveau BR) (n) | L34: TOTAL : dernier budget modifié (o) = (m) + (n)
A35: Insuffisance d'autofinancement* | B35: =IF(B28<0,-B28,0) -> 0 | C35: =IF(C28<0,-C28,0) -> 0 | D35: =IF(D28<0,-D28,0) -> 0 | E35: =IF(E28<0,-E28,0) -> 0 | F35: =IF(F28<0,-F28,0) -> 0 | G35: Capacité d'autofinancement* | H35: =IF(B28>0,B28,0) -> 27694.76 | I35: =IF(C28>0,C28,0) -> 44758 | J35: =IF(D28>0,D28,0) -> 0 | K35: =IF(E28>0,E28,0) -> 0 | L35: =IF(F28>0,F28,0) -> 44758
A36: Investissements | B36: 2000 | C36: 40000 | F36: =C36+E36 -> 40000 | G36: Financement de l'actif par l'État | L36: =I36+K36 -> 0
G37: Financement de l'actif par des tiers autres que l'Etat | L37: =I37+K37 -> 0
G38: Autres ressources | H38: 127208 | I38: -24000 | L38: -24000
A39: Remboursement des dettes financières | F39: =C39+E39 -> 0 | G39: Augmentation des dettes financières | L39: 0
A40: TOTAL DES EMPLOIS (5) | B40: =SUM(B35:B39) -> 2000 | C40: 40000 | D40: 0 | E40: =SUM(E35:E39) -> 0 | F40: =SUM(F35:F39) -> 40000 | G40: TOTAL DES RESSOURCES (6) | H40: =SUM(H35:H39) -> 154902.76 | I40: 20758 | J40: 0 | K40: 0 | L40: =SUM(L35:L39) -> 20758
A41: APPORT au FONDS DE ROULEMENT (7) = (6)-(5) | B41: =IF(H40-B40>0,H40-B40,0) -> 152902.76 | C41: =IF(I40-C40>0,I40-C40,0) -> 0 | D41: =IF(J40-D40>0,J40-D40,0) -> 0 | E41: =IF(K40-E40>0,K40-E40,0) -> 0 | F41: =IF(L40-F40>0,L40-F40,0) -> 0 | G41: PRELEVEMENT sur FONDS DE ROULEMENT (8) = (5)-(6) | H41: =IF(B40-H40>0,B40-H40,0) -> 0 | I41: =IF(C40-I40>0,C40-I40,0) -> 19242 | J41: =IF(D40-J40>0,D40-J40,0) -> 0 | K41: =IF(E40-K40>0,E40-K40,0) -> 0 | L41: =IF(F40-L40>0,F40-L40,0) -> 19242
A43: POUR INFORMATION DE L'ORGANE DÉLIBÉRANT
H45: Exécution N-1: BR2/2022 | I45: Budget initial (q) | J45: Nouveau BR | K45: Somme des BR (yc nouveau BR) (r) | L45: TOTAL : dernier budget modifié Variation (s) = (q) + (r) Niveau = (p) + (s)
A46: VARIATION DU FONDS DE ROULEMENT : APPORT (7) ou PRELEVEMENT (8) | H46: =IF(B41>0,B41,-H41) -> 152902.76 | I46: =IF(C41>0,C41,-I41) -> -19242 | J46: =IF(D41>0,D41,-J41) -> 0 | K46: =IF(E41>0,E41,-K41) -> 0 | L46: =I46+K46 -> -19242
A47: Variation du BESOIN en FONDS DE ROULEMENT | H47: =H46-H48 -> 99286.88 | I47: =I46-I48 -> 42000 | L47: =I47+K47 -> 42000
A48: Variation de la TRESORERIE : ABONDEMENT (I) ou PRELEVEMENT (II) * | H48: 53615.88 | I48: =-'2-tab_aut_budg_FU'!O30 -> -61242 | L48: -61242
A49: Niveau du FONDS DE ROULEMENT | H49: 326131.75 | I49: =H49+I46 -> 306889.75 | L49: =H49+L46 -> 306889.75
A50: Niveau du BESOIN EN FONDS DE ROULEMENT | H50: =H49-H51 -> 98495.89 | I50: =I49-I51 -> 140495.89 | J50: 0 | K50: 0 | L50: =H50+L47 -> 140495.89
A51: Niveau de la TRESORERIE | H51: 227635.86 | I51: =H51+I48 -> 166393.86 | L51: 166393.86
A53: * : montant issu du tableau "équilibre financier"

Sheet 6-tab CR_TF_AGR (hidden)
A1: Tableau 6 - Université de Bretagne Sud (0561718N) : Etablissement principal + Fondation
A2: ="Situation patrimoniale - Budget agrégé "&Maquette!B4&" "&Maquette!B5&" "&Maquette!B3 -> Situation patrimoniale - Budget agrégé initial 2023
A4: POUR VOTE DE L'ORGANE DÉLIBÉRANT
A6: Compte de résultat prévisionnel | B6: =IF(ROUND(F13,-1)=ROUND('6-tab CR_TF_PRINC'!F13+'6-tab CR_TF_FU'!F13,-1),"","! Pb agrégat charges") ->  | G6: =IF(ROUND(L13,-1)=ROUND('6-tab CR_TF_PRINC'!L13+'6-tab CR_TF_FU'!L13,-1),"","! Pb agrégat produits") -> 
A8: CHARGES | B8: Exécution N-1 | C8: Budget initial (a) | D8: Nouveau BR | E8: Somme des BR (yc nouveau BR) (b) | F8: TOTAL : dernier budget modifié (c) = (a) + (b) | G8: PRODUITS | H8: Exécution N-1 | I8: Budget initial (d) | J8: Nouveau BR | K8: Somme des BR (yc nouveau BR) (e) | L8: TOTAL : dernier budget modifié (f) = (d) + (e)
A9: Personnel | B9: ='6-tab CR_TF_PRINC'!B9+'6-tab CR_TF_FU'!B9 -> 74930748.77 | C9: ='6-tab CR_TF_PRINC'!C9+'6-tab CR_TF_FU'!C9 -> 79122687 | D9: ='6-tab CR_TF_PRINC'!D9+'6-tab CR_TF_FU'!D9 -> 0 | E9: ='6-tab CR_TF_PRINC'!E9+'6-tab CR_TF_FU'!E9 -> 0 | F9: =C9+E9 -> 79122687 | G9: Subventions de l'Etat | H9: ='6-tab CR_TF_PRINC'!H9+'6-tab CR_TF_FU'!H9 -> 71034662.69 | I9: ='6-tab CR_TF_PRINC'!I9+'6-tab CR_TF_FU'!I9 -> 73523261 | J9: ='6-tab CR_TF_PRINC'!J9+'6-tab CR_TF_FU'!J9 -> 0 | K9: ='6-tab CR_TF_PRINC'!K9+'6-tab CR_TF_FU'!K9 -> 0 | L9: =I9+K9 -> 73523261
A10: dont charges de pensions civiles* | B10: ='6-tab CR_TF_PRINC'!B10+'6-tab CR_TF_FU'!B10 -> 19827314 | C10: ='6-tab CR_TF_PRINC'!C10+'6-tab CR_TF_FU'!C10 -> 0 | D10: ='6-tab CR_TF_PRINC'!D10+'6-tab CR_TF_FU'!D10 -> 0 | E10: ='6-tab CR_TF_PRINC'!E10+'6-tab CR_TF_FU'!E10 -> 0 | F10: =C10+E10 -> 0 | G10: Fiscalité affectée | H10: ='6-tab CR_TF_PRINC'!H10+'6-tab CR_TF_FU'!H10 -> 600000 | I10: ='6-tab CR_TF_PRINC'!I10+'6-tab CR_TF_FU'!I10 -> 626184 | J10: ='6-tab CR_TF_PRINC'!J10+'6-tab CR_TF_FU'!J10 -> 0 | K10: ='6-tab CR_TF_PRINC'!K10+'6-tab CR_TF_FU'!K10 -> 0 | L10: =I10+K10 -> 626184
A11: Fonctionnement (autre que les charges de personnel) et intervention | B11: ='6-tab CR_TF_PRINC'!B11+'6-tab CR_TF_FU'!B11 -> 21008402.65 | C11: ='6-tab CR_TF_PRINC'!C11+'6-tab CR_TF_FU'!C11 -> 24003901 | D11: ='6-tab CR_TF_PRINC'!D11+'6-tab CR_TF_FU'!D11 -> 0 | E11: ='6-tab CR_TF_PRINC'!E11+'6-tab CR_TF_FU'!E11 -> 0 | F11: =C11+E11 -> 24003901 | G11: Autres subventions | H11: ='6-tab CR_TF_PRINC'!H11+'6-tab CR_TF_FU'!H11 -> 5536440.61 | I11: ='6-tab CR_TF_PRINC'!I11+'6-tab CR_TF_FU'!I11 -> 6699752 | J11: ='6-tab CR_TF_PRINC'!J11+'6-tab CR_TF_FU'!J11 -> 0 | K11: ='6-tab CR_TF_PRINC'!K11+'6-tab CR_TF_FU'!K11 -> 0 | L11: 6699752
B12: ='6-tab CR_TF_PRINC'!B12+'6-tab CR_TF_FU'!B12 -> 0 | C12: ='6-tab CR_TF_PRINC'!C12+'6-tab CR_TF_FU'!C12 -> 0 | D12: ='6-tab CR_TF_PRINC'!D12+'6-tab CR_TF_FU'!D12 -> 0 | E12: ='6-tab CR_TF_PRINC'!E12+'6-tab CR_TF_FU'!E12 -> 0 | G12: Autres produits | H12: ='6-tab CR_TF_PRINC'!H12+'6-tab CR_TF_FU'!H12 -> 19336263.35 | I12: ='6-tab CR_TF_PRINC'!I12+'6-tab CR_TF_FU'!I12 -> 21217304 | J12: ='6-tab CR_TF_PRINC'!J12+'6-tab CR_TF_FU'!J12 -> 0 | K12: ='6-tab CR_TF_PRINC'!K12+'6-tab CR_TF_FU'!K12 -> 0 | L12: 21217304
A13: TOTAL DES CHARGES (1) | B13: =B9+B11 -> 95939151.42 | C13: =C9+C11 -> 103126588 | D13: =D9+D11 -> 0 | E13: 0 | F13: =F9+F11 -> 103126588 | G13: TOTAL DES PRODUITS (2) | H13: =SUM(H9:H12) -> 96507366.65 | I13: =SUM(I9:I12) -> 102066501 | J13: 0 | K13: 0 | L13: =SUM(L9:L12) -> 102066501
A14: Résultat prévisionnel : bénéfice (3) = (2) - (1) | B14: =IF(H13-B13>0,H13-B13,0) -> 568215.23 | C14: =IF(I13-C13>0,I13-C13,0) -> 0 | D14: =IF(J13-D13>0,J13-D13,0) -> 0 | E14: =IF(K13-E13>0,K13-E13,0) -> 0 | F14: =IF(L13-F13>0,L13-F13,0) -> 0 | G14: Résultat prévisionnel : perte (4) = (1) - (2) | H14: =IF(B13-H13>0,B13-H13,0) -> 0 | I14: =IF(C13-I13>0,C13-I13,0) -> 1060087 | J14: =IF(D13-J13>0,D13-J13,0) -> 0 | K14: =IF(E13-K13>0,E13-K13,0) -> 0 | L14: =IF(F13-L13>0,F13-L13,0) -> 1060087
A15: TOTAL EQUILIBRE du compte de résultat prévisionnel (1) + (3) = (2) + (4) | B15: =B13+B14 -> 96507366.65 | C15: =C13+C14 -> 103126588 | D15: =D13+D14 -> 0 | E15: 0 | F15: =F13+F14 -> 103126588 | G15: TOTAL EQUILIBRE du compte de résultat prévisionnel (1) + (3) = (2) + (4) | H15: =H13+H14 -> 96507366.65 | I15: =I13+I14 -> 103126588 | J15: 0 | K15: 0 | L15: =L13+L14 -> 103126588
A16: * Il s'agit des sous catégories de comptes présentant les contributions employeur au CAS Pensions. | B16: ="Exécution N-1 : Différence charges de personnel entre tableau 2 et tableau 6 est de : "&(ROUND(B9,0)-ROUND('2-tab_aut_budg_AGR'!D11+'2-tab_aut_budg_AGR'!D24,0)) -> Exécution N-1 : Différence charges de personnel entre tableau 2 et tableau 6 est de : 74930749 | C16: ="BI : Différence charges de personnel entre tableau 2 et tableau 6 est de : "&(ROUND(C9,0)-ROUND('2-tab_aut_budg_AGR'!F11+'2-tab_aut_budg_AGR'!F24,0)) -> BI : Différence charges de personnel entre tableau 2 et tableau 6 est de : 79122687 | D16: ="Nouveau BR : Différence charges de personnel entre tableau 2 et tableau 6 est de : "&(ROUND(D9,0)-ROUND('2-tab_aut_budg_AGR'!H11+'2-tab_aut_budg_AGR'!H24,0)) -> Nouveau BR : Différence charges de personnel entre tableau 2 et tableau 6 est de : 0 | E16: ="Somme des BR : Différence charges de personnel entre tableau 2 et tableau 6 est de : "&(ROUND(E9,0)-ROUND('2-tab_aut_budg_AGR'!J11+'2-tab_aut_budg_AGR'!J24,0)) -> Somme des BR : Différence charges de personnel entre tableau 2 et tableau 6 est de : 0 | F16: ="Budget BI+BR : Différence charges de personnel entre tableau 2 et tableau 6 est de : "&(ROUND(F9,0)-ROUND('2-tab_aut_budg_AGR'!L11+'2-tab_aut_budg_AGR'!L24,0)) -> Budget BI+BR : Différence charges de personnel entre tableau 2 et tableau 6 est de : 79122687
B17: =IF('2-tab_aut_budg_AGR'!L24="",IF(ROUND(B10,-1)<>ROUND('2-tab_aut_budg_AGR'!D12,-1),"! Incohérence charges PC Tab2 AGR",""),"") ->  | C17: =IF('2-tab_aut_budg_AGR'!L24="",IF(ROUND(C10,-1)<>ROUND('2-tab_aut_budg_AGR'!F12,-1),"! Incohérence charges PC Tab2 AGR",""),"") ->  | D17: =IF('2-tab_aut_budg_AGR'!L24="",IF(ROUND(D10,-1)<>ROUND('2-tab_aut_budg_AGR'!H12,-1),"! Incohérence charges PC Tab2 AGR",""),"") ->  | E17: =IF('2-tab_aut_budg_AGR'!L24="",IF(ROUND(E10,-1)<>ROUND('2-tab_aut_budg_AGR'!J12,-1),"! Incohérence charges PC Tab2 AGR",""),"") ->  | F17: =IF('2-tab_aut_budg_AGR'!L24="",IF(ROUND(F10,-1)<>ROUND('2-tab_aut_budg_AGR'!L12,-1),"! Incohérence charges PCl Tab2 AGR",""),"") -> 
A19: Calcul de la capacité d'autofinancement (CAF) | B19: =IF(ROUND(F28,-1)=ROUND('6-tab CR_TF_PRINC'!F28+'6-tab CR_TF_FU'!F28,-1),"","! Pb agrégat CAF/IAF") -> 
B21: Exécution N-1 | C21: Budget initial (g) | D21: Nouveau BR | E21: Somme des BR (yc nouveau BR) (h) | F21: TOTAL : dernier budget modifié (i) = (g) + (h)
A22: Résultat prévisionnel de l'exercice (bénéfice (3) ou perte (-4) | B22: =IF(B14>0,B14,-H14) -> 568215.23 | C22: =IF(C14>0,C14,-I14) -> -1060087 | D22: =IF(D14>0,D14,-J14) -> 0 | E22: =IF(E14>0,E14,-K14) -> 0 | F22: =IF(F14>0,F14,-L14) -> -1060087
A23: + dotations aux amortissements, dépréciations et provisions | B23: ='6-tab CR_TF_PRINC'!B23+'6-tab CR_TF_FU'!B23 -> 7091877 | C23: ='6-tab CR_TF_PRINC'!C23+'6-tab CR_TF_FU'!C23 -> 7711709 | D23: ='6-tab CR_TF_PRINC'!D23+'6-tab CR_TF_FU'!D23 -> 0 | E23: ='6-tab CR_TF_PRINC'!E23+'6-tab CR_TF_FU'!E23 -> 0 | F23: =C23+E23 -> 7711709
A24: - reprises sur amortissements, dépréciations et provisions | B24: ='6-tab CR_TF_PRINC'!B24+'6-tab CR_TF_FU'!B24 -> 0 | C24: ='6-tab CR_TF_PRINC'!C24+'6-tab CR_TF_FU'!C24 -> 0 | D24: ='6-tab CR_TF_PRINC'!D24+'6-tab CR_TF_FU'!D24 -> 0 | E24: ='6-tab CR_TF_PRINC'!E24+'6-tab CR_TF_FU'!E24 -> 0 | F24: =C24+E24 -> 0
A25: + valeur nette comptable des éléments d'actifs cédés | B25: ='6-tab CR_TF_PRINC'!B25+'6-tab CR_TF_FU'!B25 -> 0 | C25: ='6-tab CR_TF_PRINC'!C25+'6-tab CR_TF_FU'!C25 -> 0 | D25: ='6-tab CR_TF_PRINC'!D25+'6-tab CR_TF_FU'!D25 -> 0 | E25: ='6-tab CR_TF_PRINC'!E25+'6-tab CR_TF_FU'!E25 -> 0 | F25: =C25+E25 -> 0
A26: - produits de cession d'éléments d'actifs | B26: ='6-tab CR_TF_PRINC'!B26+'6-tab CR_TF_FU'!B26 -> 0 | C26: ='6-tab CR_TF_PRINC'!C26+'6-tab CR_TF_FU'!C26 -> 0 | D26: ='6-tab CR_TF_PRINC'!D26+'6-tab CR_TF_FU'!D26 -> 0 | E26: ='6-tab CR_TF_PRINC'!E26+'6-tab CR_TF_FU'!E26 -> 0 | F26: =C26+E26 -> 0
A27: - quote-part des subventions d’investissement virée au résultat de l’exercice | B27: ='6-tab CR_TF_PRINC'!B27+'6-tab CR_TF_FU'!B27 -> -4749988 | C27: ='6-tab CR_TF_PRINC'!C27+'6-tab CR_TF_FU'!C27 -> -5202367 | D27: ='6-tab CR_TF_PRINC'!D27+'6-tab CR_TF_FU'!D27 -> 0 | E27: ='6-tab CR_TF_PRINC'!E27+'6-tab CR_TF_FU'!E27 -> 0 | F27: =C27+E27 -> -5202367
A28: = CAF ou IAF* | B28: =SUM(B22:B27) -> 2910104.23 | C28: =SUM(C22:C27) -> 1449255 | D28: 0 | E28: 0 | F28: =SUM(F22:F27) -> 1449255
A29: * capacité d'autofinancement ou insuffisance d'autofinancement
A32: État prévisionnel de l'évolution de la situation patrimoniale en droits constatés | D32: =IF(ROUND(F41,-1)=ROUND('6-tab CR_TF_PRINC'!F41+'6-tab CR_TF_FU'!F41,-1),"","! Pb agrégat apport FDR") ->  | G32: =IF(ROUND(L41,-1)=ROUND('6-tab CR_TF_PRINC'!L41+'6-tab CR_TF_FU'!L41,-1),"","! Pb agrégat prélèvement FDR") -> 
A34: EMPLOIS | B34: Exécution N-1 | C34: Budget initial (j) | D34: Nouveau BR | E34: Somme des BR (yc nouveau BR) (k) | F34: TOTAL : dernier budget modifié (l) = (j) + (k) | G34: RESSOURCES | H34: Exécution N-1 | I34: Budget initial (m) | J34: Nouveau BR | K34: Somme des BR (yc nouveau BR) (n) | L34: TOTAL : dernier budget modifié (o) = (m) + (n)
A35: Insuffisance d'autofinancement* | B35: =IF(B28<0,-B28,0) -> 0 | C35: =IF(C28<0,-C28,0) -> 0 | D35: =IF(D28<0,-D28,0) -> 0 | E35: =IF(E28<0,-E28,0) -> 0 | F35: =IF(F28<0,-F28,0) -> 0 | G35: Capacité d'autofinancement* | H35: =IF(B28>0,B28,0) -> 2910104.23 | I35: =IF(C28>0,C28,0) -> 1449255 | J35: =IF(D28>0,D28,0) -> 0 | K35: =IF(E28>0,E28,0) -> 0 | L35: =IF(F28>0,F28,0) -> 1449255
A36: Investissements | B36: ='6-tab CR_TF_PRINC'!B36+'6-tab CR_TF_FU'!B36 -> 8344355.42 | C36: ='6-tab CR_TF_PRINC'!C36+'6-tab CR_TF_FU'!C36 -> 8080912 | D36: ='6-tab CR_TF_PRINC'!D36+'6-tab CR_TF_FU'!D36 -> 0 | E36: ='6-tab CR_TF_PRINC'!E36+'6-tab CR_TF_FU'!E36 -> 0 | F36: =C36+E36 -> 8080912 | G36: Financement de l'actif par l'État | H36: ='6-tab CR_TF_PRINC'!H36+'6-tab CR_TF_FU'!H36 -> 1217182.02 | I36: ='6-tab CR_TF_PRINC'!I36+'6-tab CR_TF_FU'!I36 -> 100000 | J36: ='6-tab CR_TF_PRINC'!J36+'6-tab CR_TF_FU'!J36 -> 0 | K36: ='6-tab CR_TF_PRINC'!K36+'6-tab CR_TF_FU'!K36 -> 0 | L36: =I36+K36 -> 100000
B37: ='6-tab CR_TF_PRINC'!B37+'6-tab CR_TF_FU'!B37 -> 0 | C37: ='6-tab CR_TF_PRINC'!C37+'6-tab CR_TF_FU'!C37 -> 0 | D37: ='6-tab CR_TF_PRINC'!D37+'6-tab CR_TF_FU'!D37 -> 0 | E37: ='6-tab CR_TF_PRINC'!E37+'6-tab CR_TF_FU'!E37 -> 0 | G37: Financement de l'actif par des tiers autres que l'Etat | H37: ='6-tab CR_TF_PRINC'!H37+'6-tab CR_TF_FU'!H37 -> 2201214.04 | I37: ='6-tab CR_TF_PRINC'!I37+'6-tab CR_TF_FU'!I37 -> 1047661 | J37: ='6-tab CR_TF_PRINC'!J37+'6-tab CR_TF_FU'!J37 -> 0 | K37: ='6-tab CR_TF_PRINC'!K37+'6-tab CR_TF_FU'!K37 -> 0 | L37: =I37+K37 -> 1047661
B38: ='6-tab CR_TF_PRINC'!B38+'6-tab CR_TF_FU'!B38 -> 0 | C38: ='6-tab CR_TF_PRINC'!C38+'6-tab CR_TF_FU'!C38 -> 0 | D38: ='6-tab CR_TF_PRINC'!D38+'6-tab CR_TF_FU'!D38 -> 0 | E38: ='6-tab CR_TF_PRINC'!E38+'6-tab CR_TF_FU'!E38 -> 0 | G38: Autres ressources | H38: ='6-tab CR_TF_PRINC'!H38+'6-tab CR_TF_FU'!H38 -> 458086 | I38: ='6-tab CR_TF_PRINC'!I38+'6-tab CR_TF_FU'!I38 -> 1867859 | J38: ='6-tab CR_TF_PRINC'!J38+'6-tab CR_TF_FU'!J38 -> 0 | K38: ='6-tab CR_TF_PRINC'!K38+'6-tab CR_TF_FU'!K38 -> 0 | L38: 1867859
A39: Remboursement des dettes financières | B39: ='6-tab CR_TF_PRINC'!B39+'6-tab CR_TF_FU'!B39 -> 0 | C39: ='6-tab CR_TF_PRINC'!C39+'6-tab CR_TF_FU'!C39 -> 0 | D39: ='6-tab CR_TF_PRINC'!D39+'6-tab CR_TF_FU'!D39 -> 0 | E39: ='6-tab CR_TF_PRINC'!E39+'6-tab CR_TF_FU'!E39 -> 0 | F39: =C39+E39 -> 0 | G39: Augmentation des dettes financières | H39: ='6-tab CR_TF_PRINC'!H39+'6-tab CR_TF_FU'!H39 -> 0 | I39: ='6-tab CR_TF_PRINC'!I39+'6-tab CR_TF_FU'!I39 -> 0 | J39: ='6-tab CR_TF_PRINC'!J39+'6-tab CR_TF_FU'!J39 -> 0 | K39: ='6-tab CR_TF_PRINC'!K39+'6-tab CR_TF_FU'!K39 -> 0 | L39: 0
A40: TOTAL DES EMPLOIS (5) | B40: =SUM(B35:B39) -> 8344355.42 | C40: 8080912 | D40: 0 | E40: =SUM(E35:E39) -> 0 | F40: =SUM(F35:F39) -> 8080912 | G40: TOTAL DES RESSOURCES (6) | H40: =SUM(H35:H39) -> 6786586.29 | I40: 4464775 | J40: 0 | K40: 0 | L40: =SUM(L35:L39) -> 4464775
A41: APPORT au FONDS DE ROULEMENT (7) = (6)-(5) | B41: =IF(H40-B40>0,H40-B40,0) -> 0 | C41: =IF(I40-C40>0,I40-C40,0) -> 0 | D41: =IF(J40-D40>0,J40-D40,0) -> 0 | E41: =IF(K40-E40>0,K40-E40,0) -> 0 | F41: =IF(L40-F40>0,L40-F40,0) -> 0 | G41: PRELEVEMENT sur FONDS DE ROULEMENT (8) = (5)-(6) | H41: =IF(B40-H40>0,B40-H40,0) -> 1557769.13 | I41: =IF(C40-I40>0,C40-I40,0) -> 3616137 | J41: =IF(D40-J40>0,D40-J40,0) -> 0 | K41: =IF(E40-K40>0,E40-K40,0) -> 0 | L41: =IF(F40-L40>0,F40-L40,0) -> 3616137
A43: POUR INFORMATION DE L'ORGANE DÉLIBÉRANT
H45: Exécution N-1 (p) | I45: Budget initial (q) | J45: Nouveau BR | K45: Somme des BR (yc nouveau BR) (r) | L45: TOTAL : dernier budget modifié Variation (s) = (q) + (r) Niveau = (p) + (s)
A46: VARIATION DU FONDS DE ROULEMENT : APPORT (7) ou PRELEVEMENT (8) | H46: =IF(B41>0,B41,-H41) -> -1557769.13 | I46: =IF(C41>0,C41,-I41) -> -3616137 | J46: =IF(D41>0,D41,-J41) -> 0 | K46: =IF(E41>0,E41,-K41) -> 0 | L46: =I46+K46 -> -3616137 | N46: =IF(L46<0,IF(ROUND(L46,-1)=-ROUND('2-tab_aut_budg_AGR'!R30,-1),"! Impossibilité Var fonds de roulement = Solde budg Tab2 AGR",""),IF(L46>0,IF(ROUND(L46,-1)=ROUND('2-tab_aut_budg_AGR'!L30,-1),"! Impossibilité Var fonds de roulement = Solde budg Tab2 AGR",""),"")) -> 
A47: Variation du BESOIN en FONDS DE ROULEMENT | H47: ='6-tab CR_TF_PRINC'!H47+'6-tab CR_TF_FU'!H47 -> -939306.16 | I47: ='6-tab CR_TF_PRINC'!I47+'6-tab CR_TF_FU'!I47 -> 1067978.29 | J47: ='6-tab CR_TF_PRINC'!J47+'6-tab CR_TF_FU'!J47 -> 0 | K47: ='6-tab CR_TF_PRINC'!K47+'6-tab CR_TF_FU'!K47 -> 0 | L47: =I47+K47 -> 1067978.29
A48: Variation de la TRESORERIE : ABONDEMENT (I) ou PRELEVEMENT (II) * | H48: ='6-tab CR_TF_PRINC'!H48+'6-tab CR_TF_FU'!H48 -> -618462.97 | I48: ='6-tab CR_TF_PRINC'!I48+'6-tab CR_TF_FU'!I48 -> -4684115.29 | J48: ='6-tab CR_TF_PRINC'!J48+'6-tab CR_TF_FU'!J48 -> 0 | K48: ='6-tab CR_TF_PRINC'!K48+'6-tab CR_TF_FU'!K48 -> 0 | L48: -4684115.29 | N48: =IF(ROUND(L48,-1)=ROUND('6-tab CR_TF_PRINC'!L48+'6-tab CR_TF_FU'!L48,-1),"","! Pb agrégat variation trésorerie") -> 
A49: Niveau du FONDS DE ROULEMENT | H49: ='6-tab CR_TF_PRINC'!H49+'6-tab CR_TF_FU'!H49 -> 12189108.68 | I49: ='6-tab CR_TF_PRINC'!I49+'6-tab CR_TF_FU'!I49 -> 8572971.68 | J49: ='6-tab CR_TF_PRINC'!J49+'6-tab CR_TF_FU'!J49 -> 0 | K49: ='6-tab CR_TF_PRINC'!K49+'6-tab CR_TF_FU'!K49 -> 0 | L49: =H49+L46 -> 8572971.68
A50: Niveau du BESOIN EN FONDS DE ROULEMENT | H50: ='6-tab CR_TF_PRINC'!H50+'6-tab CR_TF_FU'!H50 -> -776867.55 | I50: ='6-tab CR_TF_PRINC'!I50+'6-tab CR_TF_FU'!I50 -> 291110.74 | J50: ='6-tab CR_TF_PRINC'!J50+'6-tab CR_TF_FU'!J50 -> 0 | K50: ='6-tab CR_TF_PRINC'!K50+'6-tab CR_TF_FU'!K50 -> 0 | L50: =H50+L47 -> 291110.74
A51: Niveau de la TRESORERIE | H51: ='6-tab CR_TF_PRINC'!H51+'6-tab CR_TF_FU'!H51 -> 12965976.23 | I51: ='6-tab CR_TF_PRINC'!I51+'6-tab CR_TF_FU'!I51 -> 8281860.94 | J51: ='6-tab CR_TF_PRINC'!J51+'6-tab CR_TF_FU'!J51 -> 0 | K51: ='6-tab CR_TF_PRINC'!K51+'6-tab CR_TF_FU'!K51 -> 0 | L51: 8281860.94 | N51: =IF(ROUND(L51,-1)=ROUND('6-tab CR_TF_PRINC'!L51+'6-tab CR_TF_FU'!L51,-1),"","! Pb agrégat niveau trésorerie") -> 
A53: * : montant issu du tableau "équilibre financier"

Sheet 6-tab CR_TF_SIE (hidden)
A1: Tableau 6 - Université de Bretagne Sud (0561718N) : CFA
A2: ="Situation patrimoniale - Budget "&Maquette!B4&" "&Maquette!B5&" "&Maquette!B3 -> Situation patrimoniale - Budget initial 2023
A4: POUR VOTE DE L'ORGANE DÉLIBÉRANT
A6: Compte de résultat prévisionnel
A8: CHARGES | B8: Exécution N-1 | C8: Budget initial (a) | D8: Nouveau BR | E8: Somme des BR (yc nouveau BR) (b) | F8: TOTAL : dernier budget modifié (c) = (a) + (b) | G8: PRODUITS | H8: Exécution N-1 | I8: Budget initial (d) | J8: Nouveau BR | K8: Somme des BR (yc nouveau BR) (e) | L8: TOTAL : dernier budget modifié (f) = (d) + (e)
A9: Personnel | F9: =C9+E9 -> 0 | G9: Subventions de l'Etat | L9: =I9+K9 -> 0
A10: dont charges de pensions civiles* | F10: =C10+E10 -> 0 | G10: Fiscalité affectée | L10: =I10+K10 -> 0
A11: Fonctionnement (autre que les charges de personnel) et intervention | F11: =C11+E11 -> 0 | G11: Autres subventions | L11: 0
G12: Autres produits | L12: 0
A13: TOTAL DES CHARGES (1) | B13: =B9+B11 -> 0 | C13: =C9+C11 -> 0 | D13: =D9+D11 -> 0 | E13: 0 | F13: =F9+F11 -> 0 | G13: TOTAL DES PRODUITS (2) | H13: =SUM(H9:H12) -> 0 | I13: =SUM(I9:I12) -> 0 | J13: 0 | K13: 0 | L13: =SUM(L9:L12) -> 0
A14: Résultat prévisionnel : bénéfice (3) = (2) - (1) | B14: =IF(H13-B13>0,H13-B13,0) -> 0 | C14: =IF(I13-C13>0,I13-C13,0) -> 0 | D14: =IF(J13-D13>0,J13-D13,0) -> 0 | E14: =IF(K13-E13>0,K13-E13,0) -> 0 | F14: =IF(L13-F13>0,L13-F13,0) -> 0 | G14: Résultat prévisionnel : perte (4) = (1) - (2) | H14: =IF(B13-H13>0,B13-H13,0) -> 0 | I14: =IF(C13-I13>0,C13-I13,0) -> 0 | J14: =IF(D13-J13>0,D13-J13,0) -> 0 | K14: =IF(E13-K13>0,E13-K13,0) -> 0 | L14: =IF(F13-L13>0,F13-L13,0) -> 0
A15: TOTAL EQUILIBRE du compte de résultat prévisionnel (1) + (3) = (2) + (4) | B15: =B13+B14 -> 0 | C15: =C13+C14 -> 0 | D15: =D13+D14 -> 0 | E15: 0 | F15: =F13+F14 -> 0 | G15: TOTAL EQUILIBRE du compte de résultat prévisionnel (1) + (3) = (2) + (4) | H15: =H13+H14 -> 0 | I15: =I13+I14 -> 0 | J15: 0 | K15: 0 | L15: =L13+L14 -> 0
A16: * Il s'agit des sous catégories de comptes présentant les contributions employeur au CAS Pensions. | B16: ="Exécution N-1 : Différence charges de personnel entre tableau 2 et tableau 6 est de : "&(ROUND(B9,0)-ROUND(#REF!+#REF!,0)) ->  | C16: ="BI : Différence charges de personnel entre tableau 2 et tableau 6 est de : "&(ROUND(C9,0)-ROUND(#REF!+#REF!,0)) ->  | D16: ="Nouveau BR : Différence charges de personnel entre tableau 2 et tableau 6 est de : "&(ROUND(D9,0)-ROUND(#REF!+#REF!,0)) ->  | E16: ="Somme des BR : Différence charges de personnel entre tableau 2 et tableau 6 est de : "&(ROUND(E9,0)-ROUND(#REF!+#REF!,0)) ->  | F16: ="Budget BI+BR : Différence charges de personnel entre tableau 2 et tableau 6 est de : "&(ROUND(F9,0)-ROUND(#REF!+#REF!,0)) -> 
B17: =IF(#REF!="",IF(ROUND(B10,-1)<>ROUND(#REF!,-1),"! Incohérence charges PC Tab2 SIE",""),"") ->  | C17: =IF(#REF!="",IF(ROUND(C10,-1)<>ROUND(#REF!,-1),"! Incohérence charges PC Tab2 SIE",""),"") ->  | D17: =IF(#REF!="",IF(ROUND(D10,-1)<>ROUND(#REF!,-1),"! Incohérence charges PC Tab2 SIE",""),"") ->  | E17: =IF(#REF!="",IF(ROUND(E10,-1)<>ROUND(#REF!,-1),"! Incohérence charges PC Tab2 SIE",""),"") ->  | F17: =IF(#REF!="",IF(ROUND(F10,-1)<>ROUND(#REF!,-1),"! Incohérence charges PCl Tab2 SIE",""),"") -> 
A19: Calcul de la capacité d'autofinancement (CAF)
B21: Exécution N-1 | C21: Budget initial (g) | D21: Nouveau BR | E21: Somme des BR (yc nouveau BR) (h) | F21: TOTAL : dernier budget modifié (i) = (g) + (h)
A22: Résultat prévisionnel de l'exercice (bénéfice (3) ou perte (-4) | B22: =IF(B14>0,B14,-H14) -> 0 | C22: =IF(C14>0,C14,-I14) -> 0 | D22: =IF(D14>0,D14,-J14) -> 0 | E22: =IF(E14>0,E14,-K14) -> 0 | F22: =IF(F14>0,F14,-L14) -> 0
A23: + dotations aux amortissements, dépréciations et provisions | F23: =C23+E23 -> 0
A24: - reprises sur amortissements, dépréciations et provisions | F24: =C24+E24 -> 0
A25: + valeur nette comptable des éléments d'actifs cédés | F25: =C25+E25 -> 0
A26: - produits de cession d'éléments d'actifs | F26: =C26+E26 -> 0
A27: - quote-part des subventions d’investissement virée au résultat de l’exercice | F27: =C27+E27 -> 0
A28: = CAF ou IAF* | B28: =SUM(B22:B27) -> 0 | C28: =SUM(C22:C27) -> 0 | D28: 0 | E28: 0 | F28: =SUM(F22:F27) -> 0
A29: * capacité d'autofinancement ou insuffisance d'autofinancement
A32: État prévisionnel de l'évolution de la situation patrimoniale en droits constatés
A34: EMPLOIS | B34: Exécution N-1 | C34: Budget initial (j) | D34: Nouveau BR | E34: Somme des BR (yc nouveau BR) (k) | F34: TOTAL : dernier budget modifié (l) = (j) + (k) | G34: RESSOURCES | H34: Exécution N-1 | I34: Budget initial (m) | J34: Nouveau BR | K34: Somme des BR (yc nouveau BR) (n) | L34: TOTAL : dernier budget modifié (o) = (m) + (n)
A35: Insuffisance d'autofinancement* | B35: =IF(B28<0,-B28,0) -> 0 | C35: =IF(C28<0,-C28,0) -> 0 | D35: =IF(D28<0,-D28,0) -> 0 | E35: =IF(E28<0,-E28,0) -> 0 | F35: =IF(F28<0,-F28,0) -> 0 | G35: Capacité d'autofinancement* | H35: =IF(B28>0,B28,0) -> 0 | I35: =IF(C28>0,C28,0) -> 0 | J35: =IF(D28>0,D28,0) -> 0 | K35: =IF(E28>0,E28,0) -> 0 | L35: =IF(F28>0,F28,0) -> 0
A36: Investissements | F36: =C36+E36 -> 0 | G36: Financement de l'actif par l'État | L36: =I36+K36 -> 0
G37: Financement de l'actif par des tiers autres que l'Etat | L37: =I37+K37 -> 0
G38: Autres ressources | L38: 0
A39: Remboursement des dettes financières | F39: =C39+E39 -> 0 | G39: Augmentation des dettes financières | L39: 0
A40: TOTAL DES EMPLOIS (5) | B40: =SUM(B35:B39) -> 0 | C40: 0 | D40: 0 | E40: =SUM(E35:E39) -> 0 | F40: =SUM(F35:F39) -> 0 | G40: TOTAL DES RESSOURCES (6) | H40: =SUM(H35:H39) -> 0 | I40: 0 | J40: 0 | K40: 0 | L40: =SUM(L35:L39) -> 0
A41: APPORT au FONDS DE ROULEMENT (7) = (6)-(5) | B41: =IF(H40-B40>0,H40-B40,0) -> 0 | C41: =IF(I40-C40>0,I40-C40,0) -> 0 | D41: =IF(J40-D40>0,J40-D40,0) -> 0 | E41: =IF(K40-E40>0,K40-E40,0) -> 0 | F41: =IF(L40-F40>0,L40-F40,0) -> 0 | G41: PRELEVEMENT sur FONDS DE ROULEMENT (8) = (5)-(6) | H41: =IF(B40-H40>0,B40-H40,0) -> 0 | I41: =IF(C40-I40>0,C40-I40,0) -> 0 | J41: =IF(D40-J40>0,D40-J40,0) -> 0 | K41: =IF(E40-K40>0,E40-K40,0) -> 0 | L41: =IF(F40-L40>0,F40-L40,0) -> 0
A43: POUR INFORMATION DE L'ORGANE DÉLIBÉRANT
H45: Exécution N-1 (p) | I45: Budget initial (q) | J45: Nouveau BR | K45: Somme des BR (yc nouveau BR) (r) | L45: TOTAL : dernier budget modifié Variation (s) = (q) + (r) Niveau = (p) + (s)
A46: VARIATION DU FONDS DE ROULEMENT : APPORT (7) ou PRELEVEMENT (8) | H46: =IF(B41>0,B41,-H41) -> 0 | I46: =IF(C41>0,C41,-I41) -> 0 | J46: =IF(D41>0,D41,-J41) -> 0 | K46: =IF(E41>0,E41,-K41) -> 0 | L46: =I46+K46 -> 0 | N46: =IF(L46<0,IF(ROUND(L46,-1)=-ROUND(#REF!,-1),"! Impossibilité Var fonds de roulement = Solde budg Tab2 SIE",""),IF(L46>0,IF(ROUND(L46,-1)=ROUND(#REF!,-1),"! Impossibilité Var fonds de roulement = Solde budg Tab2 SIE",""),"")) -> 
A47: Variation du BESOIN en FONDS DE ROULEMENT | L47: =I47+K47 -> 0
A48: Variation de la TRESORERIE : ABONDEMENT (I) ou PRELEVEMENT (II) * | L48: 0
A49: Niveau du FONDS DE ROULEMENT | L49: =H49+L46 -> 0
A50: Niveau du BESOIN EN FONDS DE ROULEMENT | H50: =H49-H51 -> 0 | I50: =I49-I51 -> 0 | J50: 0 | K50: 0 | L50: =H50+L47 -> 0
A51: Niveau de la TRESORERIE | L51: 0
A53: * : montant issu du tableau "équilibre financier"

Sheet 7-tab Plan_tréso_ETAB
B1: Tableau 7- Université de Bretagne Sud (0561718N) : Etablissement principal + Fondation
B2: ="Plan de trésorerie - Budget consolidé "&Maquette!B4&" "&Maquette!B5&" "&Maquette!B3 -> Plan de trésorerie - Budget consolidé initial 2023
B4: POUR INFORMATION DE L'ORGANE DÉLIBÉRANT
B6: ( K€ ) | C6: janvier | D6: février | E6: mars | F6: avril | G6: mai | H6: juin | I6: juillet | J6: août | K6: septembre | L6: octobre | M6: novembre | N6: décembre | O6: TOTAL Variation de la trésorerie annuelle
B7: (1) SOLDE INITIAL (début de mois) | C7: 12965976.23 | D7: =C49 -> 8271060.23 | E7: =D49 -> 18916144.23 | F7: 12446228.23 | G7: 23901312.23 | H7: 17928396.23 | I7: 11544960.23 | J7: 30618544.23 | K7: 23308628.23 | L7: 16643712.23 | M7: 11528796.23 | N7: 13334864.23 | O7: =SUM(C7:N7) -> 201408622.8
B8: ENCAISSEMENTS
B9: Recettes budgétaires globalisées | C9: =SUM(C10:C14) -> 2450000 | D9: =SUM(D10:D14) -> 18030000 | E9: 2680000 | F9: 18430000 | G9: 1605000 | H9: 1670000 | I9: 28825000 | J9: 1330000 | K9: 1660000 | L9: 3700000 | M9: 11345984 | N9: 7072611.96 | O9: 98798595.96
B10: Subvention pour charges de service public | D10: 16500000 | F10: 17000000 | I10: 27000000 | M10: 8745984 | O10: =SUM(C10:N10) -> 69245984
B11: Autres financements de l'Etat | C11: 50000 | D11: 180000 | E11: 80000 | F11: 30000 | G11: 5000 | H11: 120000 | I11: 200000 | J11: 30000 | K11: 200000 | L11: 600000 | M11: 200000 | N11: 329516.6 | O11: =SUM(C11:N11) -> 2024516.6
B12: Fiscalité affectée | I12: 475000 | N12: 151184 | O12: 626184
B13: Autres financements publics | C13: 600000 | D13: 800000 | E13: 900000 | F13: 400000 | G13: 500000 | H13: 550000 | I13: 700000 | J13: 750000 | K13: 900000 | L13: 1400000 | M13: 1000000 | N13: 1606891.23 | O13: 10106891.23
B14: Recettes propres | C14: 1800000 | D14: 550000 | E14: 1700000 | F14: 1000000 | G14: 1100000 | H14: 1000000 | I14: 450000 | J14: 550000 | K14: 560000 | L14: 1700000 | M14: 1400000 | N14: 4985020.13 | O14: 16795020.13
B15: Recettes budgétaires fléchées | C15: =SUM(C16:C18) -> 0 | D15: =SUM(D16:D18) -> 0 | E15: 0 | F15: 0 | G15: 0 | H15: 0 | I15: 0 | J15: 0 | K15: 0 | L15: 0 | M15: 0 | N15: 0 | O15: =SUM(C15:N15) -> 0
B16: Financements de l'Etat fléchés | O16: 0
B17: Autres financements publics fléchés | O17: 0
B18: Recettes propres fléchées | O18: 0
B19: Opérations non budgétaires | C19: =SUM(C20:C22) -> 0 | D19: =SUM(D20:D22) -> 0 | E19: 0 | F19: 0 | G19: 0 | H19: 0 | I19: 0 | J19: 0 | K19: 0 | L19: 0 | M19: 0 | N19: 0 | O19: 0
B20: Emprunts : encaissements en capital | O20: 0
B21: Prêts : encaissements en capital | O21: 0
B22: Dépôts et cautionnements | O22: 0
B23: Opérations gérées en comptes de tiers : | C23: =SUM(C24:C26) -> 45000 | D23: =SUM(D24:D26) -> 433550 | E23: 250000 | F23: 25000 | G23: 142000 | H23: 25000 | I23: 10000 | J23: 15000 | K23: 573000 | L23: 40000 | M23: 30000 | N23: 400000 | O23: 1988550
B24: TVA encaissée | C24: 45000 | D24: 15000 | E24: 40000 | F24: 25000 | G24: 30000 | H24: 25000 | I24: 10000 | J24: 15000 | K24: 15000 | L24: 40000 | M24: 30000 | N24: 120000 | O24: 410000
B25: Dispositifs d'intervention pour compte de tiers : encaissements | D25: 418550 | E25: 210000 | G25: 112000 | K25: 558000 | N25: 280000 | O25: 1578550
B26: Autres encaissements d'opérations gérées en comptes de tiers | O26: 0
B27: A. TOTAL | C27: =C23+C19+C15+C9 -> 2495000 | D27: =D23+D19+D15+D9 -> 18463550 | E27: 2930000 | F27: 18455000 | G27: 1747000 | H27: 1695000 | I27: 28835000 | J27: 1345000 | K27: 2233000 | L27: 3740000 | M27: 11375984 | N27: 7472611.96 | O27: 100787146
B28: DECAISSEMENTS
B29: Dépenses liées à des recettes globalisées | C29: =SUM(C30:C33) -> 7120000 | D29: =SUM(D30:D33) -> 7280000 | E29: 9100000 | F29: 6900000 | G29: 7600000 | H29: 7800000 | I29: 9600000 | J29: 8600000 | K29: 8200000 | L29: 8700000 | M29: 9400000 | N29: 12032055.25 | O29: =SUM(C29:N29) -> 102332055.2
B30: Personnel | C30: 6000000 | D30: 6000000 | E30: 7000000 | F30: 6000000 | G30: 6000000 | H30: 6000000 | I30: 8000000 | J30: 8000000 | K30: 6000000 | L30: 6000000 | M30: 6000000 | N30: 8811268 | O30: =SUM(C30:N30) -> 79811268
B31: Fonctionnement | C31: 920000 | D31: 920000 | E31: 1500000 | F31: 700000 | G31: 1300000 | H31: 1400000 | I31: 800000 | J31: 500000 | K31: 1200000 | L31: 1600000 | M31: 1800000 | N31: 1901875.45 | O31: 14541875.45
B32: Intervention | O32: 0
B33: Investissement | C33: 200000 | D33: 360000 | E33: 600000 | F33: 200000 | G33: 300000 | H33: 400000 | I33: 800000 | J33: 100000 | K33: 1000000 | L33: 1100000 | M33: 1600000 | N33: 1318911.8 | O33: 7978911.8
B34: Dépenses liées à des recettes fléchées | C34: =SUM(C35:C38) -> 28300 | D34: =SUM(D35:D38) -> 63300 | E34: 63300 | F34: 63300 | G34: 63300 | H34: 63300 | I34: 104800 | J34: 28300 | K34: 63300 | L34: 63300 | M34: 63300 | N34: 106936 | O34: 774736
B35: Personnel | C35: 12500 | D35: 12500 | E35: 12500 | F35: 12500 | G35: 12500 | H35: 12500 | I35: 12500 | J35: 12500 | K35: 12500 | L35: 12500 | M35: 12500 | N35: 13500 | O35: 151000
B36: Fonctionnement | C36: 15800 | D36: 50800 | E36: 50800 | F36: 50800 | G36: 50800 | H36: 50800 | I36: 85800 | J36: 15800 | K36: 50800 | L36: 50800 | M36: 50800 | N36: 86936 | O36: 610736
B37: Intervention | O37: 0
B38: Investissement | I38: 6500 | N38: 6500 | O38: 13000
B39: Opérations non budgétaires | C39: =SUM(C40:C42) -> 0 | D39: =SUM(D40:D42) -> 0 | E39: 0 | F39: 0 | G39: 0 | H39: 0 | I39: 0 | J39: 0 | K39: 0 | L39: 0 | M39: 0 | N39: 0 | O39: 0
B40: Emprunts : remboursements en capital | O40: 0
B41: Prêts : décaissements en capital | O41: 0
B42: Dépôts et cautionnements | O42: 0
B43: Opérations gérées en compte de tiers : | C43: =SUM(C44:C46) -> 41616 | D43: =SUM(D44:D46) -> 475166 | E43: 236616 | F43: 36616 | G43: 56616 | H43: 215136 | I43: 56616 | J43: 26616 | K43: 634616 | L43: 91616 | M43: 106616 | N43: 386624 | O43: 2364470
B44: TVA décaissée | C44: 35000 | D44: 50000 | E44: 70000 | F44: 30000 | G44: 50000 | H44: 60000 | I44: 50000 | J44: 20000 | K44: 70000 | L44: 85000 | M44: 100000 | N44: 100000 | O44: 720000
B45: Dispositifs d'intervention pour compte de tiers : décaissements | C45: 6616 | D45: 425166 | E45: 166616 | F45: 6616 | G45: 6616 | H45: 155136 | I45: 6616 | J45: 6616 | K45: 564616 | L45: 6616 | M45: 6616 | N45: 286624 | O45: 1644470
B46: Autres décaissements d'opérations gérées en comptes de tiers | O46: 0
B47: B. TOTAL | C47: =C43+C39+C34+C29 -> 7189916 | D47: =D43+D39+D34+D29 -> 7818466 | E47: 9399916 | F47: 6999916 | G47: 7719916 | H47: 8078436 | I47: 9761416 | J47: 8654916 | K47: 8897916 | L47: 8854916 | M47: 9569916 | N47: 12525615.25 | O47: 105471261.2
B48: (2) SOLDE DU MOIS = A - B | C48: =C27-C47 -> -4694916 | D48: =D27-D47 -> 10645084 | E48: -6469916 | F48: 11455084 | G48: -5972916 | H48: -6383436 | I48: 19073584 | J48: -7309916 | K48: -6664916 | L48: -5114916 | M48: 1806068 | N48: -5053003.29 | O48: =SUM(C48:N48) -> -4684115.29
B49: SOLDE CUMULE (1) + (2) | C49: =C48+C7 -> 8271060.23 | D49: =D48+D7 -> 18916144.23 | E49: 12446228.23 | F49: 23901312.23 | G49: 17928396.23 | H49: 11544960.23 | I49: 30618544.23 | J49: 23308628.23 | K49: 16643712.23 | L49: 11528796.23 | M49: 13334864.23 | N49: 8281860.94
O50: Variation de trésorerie correspondant à celle du tableau d'équilibre financier (I) ou (II)

Sheet 8-tab recettes_fléchées_ETAB
B1: Tableau 8 - Université de Bretagne Sud (0561718N) : Etablissement principal + Fondation
B2: ="Opérations liées aux recettes fléchées - Budget consolidé "&Maquette!B4&" "&Maquette!B5&" "&Maquette!B3 -> Opérations liées aux recettes fléchées - Budget consolidé initial 2023
B5: POUR INFORMATION DE L'ORGANE DÉLIBÉRANT
C8: Antérieures à N non dénouées | D8: N | E8: N+1 | F8: N+2 | G8: N+3
B9: Position de financement des opérations fléchées en début d'exercice (a)
B11: Recettes fléchées (b) | C11: =SUM(C13:C15) -> 2221464 | D11: =SUM(D13:D15) -> 0 | E11: 0 | F11: 0 | G11: 1777171
B13: Financements de l'État fléchés | C13: 0 | D13: 0 | E13: 0 | F13: 0 | G13: 0 | J13: =IF(ROUND(D13,-1)<>ROUND('7-tab Plan_tréso_ETAB'!O16,-1),"! Incohérence Financ. Etat fléchés avec Tab7","") -> 
B14: Autres financements publics fléchés | C14: 2221464 | D14: 0 | E14: 0 | F14: 0 | G14: 1777171 | J14: =IF(ROUND(D14,-1)<>ROUND('7-tab Plan_tréso_ETAB'!O17,-1),"! Incohérence Autres financ. fléchés avec Tab7","") -> 
B15: Recettes propres fléchées | C15: 0 | D15: 0 | E15: 0 | F15: 0 | G15: 0 | J15: =IF(ROUND(D15,-1)<>ROUND('7-tab Plan_tréso_ETAB'!O18,-1),"! Incohérence Recettes propres fléchées avec Tab7","") -> 
B17: Dépenses sur recettes fléchées (c) | C17: =C19+C21+C24 -> 111173.22 | D17: =D19+D21+D24 -> 774736 | E17: 1026198 | F17: 1009936 | G17: 818968
B19: Personnel | C19: =C20 -> 5782.63 | D19: =D20 -> 151000 | E19: 151000 | F19: 151000 | G19: 121200
B20: AE=CP | C20: 5782.63 | D20: 151000 | E20: 151000 | F20: 151000 | G20: 121200
B21: Fonctionnement et intervention | C21: =C23 -> 97226.99 | D21: =D23 -> 610736 | E21: 862198 | F21: 845936 | G21: 694768
B22: AE | C22: 761802.04 | D22: 845936 | E22: 862198 | F22: 812336 | G22: 106768
B23: CP | C23: 97226.99 | D23: 610736 | E23: 862198 | F23: 845936 | G23: 694768
B24: Investissement | C24: =C26 -> 8163.6 | D24: =D26 -> 13000 | E24: 13000 | F24: 13000 | G24: 3000
B25: AE | C25: 8163.6 | D25: 13000 | E25: 13000 | F25: 13000 | G25: 3000
B26: CP | C26: 8163.6 | D26: 13000 | E26: 13000 | F26: 13000 | G26: 3000
B28: Solde budgétaire de l'exercice résultant des opérations fléchées (b) - (c) | C28: =C11-C17 -> 2110290.78 | D28: =D11-D17 -> -774736 | E28: =E11-E17 -> -1026198 | F28: -1009936 | G28: 958203
D29: (1)
D30: (1) repris au tableau "Équilibre financier" en (a) (tableau 4)
D31: =IF(D28>=0,IF(ROUND(D28,-1)<>ROUND('4-tab_financier_ETAB'!G27,-1),"! Incohérence Tab4",""),IF(-ROUND('8-tab recettes_fléchées_ETAB'!D28,-1)<>ROUND('4-tab_financier_ETAB'!M27,-1),"! Incohérence Tab4","")) -> 

Sheet 8-tab recettes_fléchées_PRINC
B1: Tableau 8 - Université de Bretagne Sud (0561718N) : Etablissement principal
B2: ="Opérations liées aux recettes fléchées - Budget "&Maquette!B4&" "&Maquette!B5&" "&Maquette!B3 -> Opérations liées aux recettes fléchées - Budget initial 2023
B5: POUR INFORMATION DE L'ORGANE DÉLIBÉRANT
C8: Antérieures à N non dénouées | D8: N | E8: N+1 | F8: N+2 | G8: N+3
B9: Position de financement des opérations fléchées en début d'exercice (a)
B11: Recettes fléchées (b) | C11: =SUM(C13:C15) -> 2221464 | D11: =SUM(D13:D15) -> 0 | E11: 0 | F11: 0 | G11: 1777171
B13: Financements de l'État fléchés | C13: 0 | D13: 0 | E13: 0 | F13: 0 | G13: 0
B14: Autres financements publics fléchés | C14: 2221464 | D14: 0 | E14: 0 | F14: 0 | G14: 1777171
B15: Recettes propres fléchées | C15: 0 | D15: 0 | E15: 0 | F15: 0 | G15: 0
B17: Dépenses sur recettes fléchées (c) | C17: =C19+C21+C24 -> 111173.22 | D17: =D19+D21+D24 -> 774736 | E17: 1026198 | F17: 1009936 | G17: 818968
B19: Personnel | C19: =C20 -> 5782.63 | D19: =D20 -> 151000 | E19: 151000 | F19: 151000 | G19: 121200
B20: AE=CP | C20: 5782.63 | D20: 151000 | E20: 151000 | F20: 151000 | G20: 121200
B21: Fonctionnement et intervention | C21: =C23 -> 97226.99 | D21: =D23 -> 610736 | E21: 862198 | F21: 845936 | G21: 694768
B22: AE | C22: 761802.04 | D22: 845936 | E22: 862198 | F22: 812336 | G22: 106768
B23: CP | C23: 97226.99 | D23: 610736 | E23: 862198 | F23: 845936 | G23: 694768
B24: Investissement | C24: =C26 -> 8163.6 | D24: =D26 -> 13000 | E24: 13000 | F24: 13000 | G24: 3000
B25: AE | C25: 8163.6 | D25: 13000 | E25: 13000 | F25: 13000 | G25: 3000
B26: CP | C26: 8163.6 | D26: 13000 | E26: 13000 | F26: 13000 | G26: 3000
B28: Solde budgétaire de l'exercice résultant des opérations fléchées (b) - (c) | C28: =C11-C17 -> 2110290.78 | D28: =D11-D17 -> -774736 | E28: =E11-E17 -> -1026198 | F28: -1009936 | G28: 958203
D29: (1)
D30: (1) repris au tableau "Équilibre financier" en (a) (tableau 4)

Sheet 8-tab recettes_fléchées_AGR (hidden)
B1: Tableau 8 - Université de Bretagne Sud (0561718N) : Etablissement principal + Fondation
B2: ="Opérations liées aux recettes fléchées - Budget agrégé "&Maquette!B4&" "&Maquette!B5&" "&Maquette!B3 -> Opérations liées aux recettes fléchées - Budget agrégé initial 2023
B5: POUR INFORMATION DE L'ORGANE DÉLIBÉRANT
C8: Antérieures à N non dénouées | D8: N | E8: N+1 | F8: N+2 | G8: N+3
B9: Position de financement des opérations fléchées en début d'exercice (a)
B11: Recettes fléchées (b) | C11: =SUM(C13:C15) -> 0 | D11: =SUM(D13:D15) -> 0 | E11: 0 | F11: 0 | G11: 0
B13: Financements de l'État fléchés | H13: =IF(ROUND(D13,-1)<>ROUND('2-tab_aut_budg_AGR'!R19,-1),"! Incohérence Financ. Etat fléchés avec Tab2 AGR","") ->  | I13: =IF(ROUND(D13,-1)<>ROUND('3-tab_destination_origine_AGR'!H50,-1),"! Incohérence Financ. Etat fléchés avec Tab3 AGR","") -> 
B14: Autres financements publics fléchés | H14: =IF(ROUND(D14,-1)<>ROUND('2-tab_aut_budg_AGR'!R20,-1),"! Incohérence Autres financ. fléchés avec Tab2 AGR","") ->  | I14: =IF(ROUND(D14,-1)<>ROUND('3-tab_destination_origine_AGR'!I50,-1),"! Incohérence Autres financ. fléchés avec Tab3 AGR","") -> 
B15: Recettes propres fléchées | H15: =IF(ROUND(D15,-1)<>ROUND('2-tab_aut_budg_AGR'!R21,-1),"! Incohérence Recettes propres fléchées avec Tab2 AGR","") ->  | I15: =IF(ROUND(D15,-1)<>ROUND('3-tab_destination_origine_AGR'!J50,-1),"! Incohérence Recettes propres fléchées avec Tab3 AGR","") -> 
B17: Dépenses sur recettes fléchées (c) | C17: =C19+C21+C24 -> 0 | D17: =D19+D21+D24 -> 0 | E17: 0 | F17: 0 | G17: 0
B19: Personnel | C19: =C20 -> 0 | D19: =D20 -> 0 | E19: 0 | F19: 0 | G19: 0
B20: AE=CP
B21: Fonctionnement et intervention | C21: =C23 -> 0 | D21: =D23 -> 0 | E21: 0 | F21: 0 | G21: 0
B22: AE
B23: CP
B24: Investissement | C24: =C26 -> 0 | D24: =D26 -> 0 | E24: 0 | F24: 0 | G24: 0
B25: AE
B26: CP
B28: Solde budgétaire de l'exercice résultant des opérations fléchées (b) - (c) | C28: =C11-C17 -> 0 | D28: =D11-D17 -> 0 | E28: =E11-E17 -> 0 | F28: 0 | G28: 0
D29: (1)
D30: (1) repris au tableau "Équilibre financier" en (a) (tableau 4)

Sheet 9-tab op_pluriannuelles_ETAB
B1: Tableau 9 - Université de Bretagne Sud (0561718N) : Etablissement principal + Fondation
B2: ="Tableau des opérations pluriannuelles - Budget consolidé "&Maquette!B4&" "&Maquette!B5&" "&Maquette!B3 -> Tableau des opérations pluriannuelles - Budget consolidé initial 2023
B3: POUR VOTE DE L'ORGANE DÉLIBÉRANT
B6: A - Dépenses
B8: Opérations | E8: Montant de l'opération | F8: Autorisations d'engagement | K8: Crédits de paiement | P8: Restes
F9: AE ouvertes < N | G9: Conso AE < N | H9: Reports ou Reprogrammations N | I9: AE nouvelles ouvertes N | J9: Total AE N | K9: CP ouverts < N | L9: Conso CP < N | M9: Reports ou Reprogrammations N | N9: CP nouveaux ouverts N | O9: Total CP N | P9: Restes à engager > N (AE) | Q9: Restes à payer > N sur AE consommées <= N (CP)
B10: PFIRECHSAC | C10: RECH SUBVENTIONS AVEC CONDITIONS | E10: 17061952.02 | F10: 10558443.42 | G10: 8825790.46 | H10: 0 | I10: 5100890.04 | J10: =H10+I10 -> 5100890.04 | K10: 10558443.42 | L10: 8452679.02 | M10: 0 | N10: 5100890.04 | O10: =M10+N10 -> 5100890.04 | P10: =E10-G10-J10 -> 3135271.52 | Q10: =G10+J10-L10-O10 -> 373111.44
B11: PFIRECHARE | C11: RECH ALLOCATION DE RECHERCHE DOCTORALE | E11: 2233040.8 | F11: 1181084.48 | G11: 1019145.91 | H11: 0 | I11: 591171.61 | J11: =H11+I11 -> 591171.61 | K11: 1181084.48 | L11: 1017860.87 | M11: 0 | N11: 591171.61 | O11: =M11+N11 -> 591171.61 | P11: =E11-G11-J11 -> 622723.28 | Q11: =G11+J11-L11-O11 -> 1285.04
B12: PFIRECHCCR | C12: RECH CONTRATS DE COLLABORATION | E12: 2039045.95 | F12: 1294891.66 | G12: 996340.57 | H12: 0 | I12: 686627.16 | J12: =H12+I12 -> 686627.16 | K12: 1294891.66 | L12: 976062.95 | M12: 0 | N12: 686627.16 | O12: =M12+N12 -> 686627.16 | P12: =E12-G12-J12 -> 356078.22 | Q12: =G12+J12-L12-O12 -> 20277.62
B13: PFIRECHAUT | C13: RECH CONTRATS AUTRES | E13: 213704.3 | F13: 133804.54 | G13: 97840.81 | H13: 0 | I13: 78606.66 | J13: =H13+I13 -> 78606.66 | K13: 133804.54 | L13: 84496.57 | M13: 0 | N13: 78606.66 | O13: =M13+N13 -> 78606.66 | P13: =E13-G13-J13 -> 37256.83 | Q13: =G13+J13-L13-O13 -> 13344.24
B14: PFIRECHCIF | C14: RECH CONTRATS CIFRE | E14: 341946.89 | F14: 113148.8 | G14: 55867.39 | H14: 0 | I14: 128743.79 | J14: 128743.79 | K14: 113148.8 | L14: 39209.33 | M14: 0 | N14: 128743.79 | O14: 128743.79 | P14: 157335.71 | Q14: 16658.06
B15: PFIRECHSSC | C15: RECH SUBVENTIONS SANS CONDITIONS | E15: 53879.31 | F15: 6551.73 | G15: 4592.88 | H15: 0 | I15: 25775.86 | J15: 25775.86 | K15: 6551.73 | L15: 2916.84 | M15: 0 | N15: 25775.86 | O15: 25775.86 | P15: 23510.57 | Q15: 1676.04
B16: PFIPIAHITR | C16: PIA HIT VOLET RECHERCHE | E16: 864000 | F16: 172068.43 | G16: 81551.08 | H16: 0 | I16: 322131.57 | J16: 322131.57 | K16: 172068.43 | L16: 71310.49 | M16: 0 | N16: 322131.57 | O16: 322131.57 | P16: 460317.35 | Q16: 10240.59
B17: Total Contrats de recherche | E17: =SUM(E10:E16) -> 22807569.27 | F17: =SUM(F10:F16) -> 13459993.06 | G17: =SUM(G10:G16) -> 11081129.1 | H17: 0 | I17: 6933946.69 | J17: =SUM(J10:J16) -> 6933946.69 | K17: =SUM(K10:K16) -> 13459993.06 | L17: =SUM(L10:L16) -> 10644536.07 | M17: 0 | N17: 6933946.69 | O17: =SUM(O10:O16) -> 6933946.69 | P17: =SUM(P10:P16) -> 4792493.48 | Q17: =SUM(Q10:Q16) -> 436593.03
B18: PFIERASDIV | C18: PROJETS UE ERASMUS + | E18: 1442382 | F18: 785471 | G18: 629623.97 | H18: 0 | I18: 656911 | J18: =H18+I18 -> 656911 | K18: 785471 | L18: 605968.64 | M18: 0 | N18: 656911 | O18: =M18+N18 -> 656911 | P18: =E18-G18-J18 -> 155847.03 | Q18: =G18+J18-L18-O18 -> 23655.33
B19: PFIENSDIV | C19: CONTRATS ENSEIGNEMENT DIVERS | E19: 27000 | F19: 27000 | G19: 19862.97 | H19: 0 | I19: 0 | J19: 0 | K19: 27000 | L19: 62.73 | M19: 0 | N19: 0 | O19: 0 | P19: 7137.03 | Q19: 19800.24
B20: PFIPIACOHY | C20: PR CO-HY-B PLAN DE RELANCE ETAT | E20: 300000 | F20: 292095 | G20: 203591.86 | H20: 0 | I20: 7905 | J20: 7905 | K20: 292095 | L20: 154363.75 | M20: 0 | N20: 7905 | O20: 7905 | P20: 88503.14 | Q20: 49228.11
B21: PFIERASCYB | C21: PROJET UE ERASMUS+ CYBERUS | E21: 4442928 | F21: 913537 | G21: 775600.99 | H21: 0 | I21: 1009936 | J21: =H21+I21 -> 1009936 | K21: 291937 | L21: 111173.22 | M21: 0 | N21: 774736 | O21: =M21+N21 -> 774736 | P21: =E21-G21-J21 -> 2657391.01 | Q21: =G21+J21-L21-O21 -> 899627.77
B22: PFIPIABRIO | C22: PIA BRIO | E22: 862000 | F22: 127600 | G22: 103085.7 | H22: 0 | I22: 146200 | J22: 146200 | K22: 127600 | L22: 101587.75 | M22: 0 | N22: 146200 | O22: 146200 | P22: 612714.3 | Q22: 1497.95
B23: PFIANRFORM | C23: ANR PROJET FORMAFLEX | E23: 273880 | F23: 101656 | G23: 72009.25 | H23: 0 | I23: 172224 | J23: 172224 | K23: 101656 | L23: 72009.25 | M23: 0 | N23: 172224 | O23: 172224 | P23: 29646.75 | Q23: 0
B24: Total Contrats d'enseignement | E24: =SUM(E18:E23) -> 7348190 | F24: =SUM(F18:F23) -> 2247359 | G24: =SUM(G18:G23) -> 1803774.74 | H24: 0 | I24: 1993176 | J24: =SUM(J18:J23) -> 1993176 | K24: =SUM(K18:K23) -> 1625759 | L24: =SUM(L18:L23) -> 1045165.34 | M24: 0 | N24: 1757976 | O24: =SUM(O18:O23) -> 1757976 | P24: =SUM(P18:P23) -> 3551239.26 | Q24: =SUM(Q18:Q23) -> 993809.4
B25: PPICVEC | C25: PPI CVEC | E25: 2400000 | F25: 382000 | G25: 184110.3 | H25: 0 | I25: 2018000 | J25: =H25+I25 -> 2018000 | K25: 190000 | L25: 67868.47 | M25: 0 | N25: 1000000 | O25: =M25+N25 -> 1000000 | P25: =E25-G25-J25 -> 197889.7 | Q25: =G25+J25-L25-O25 -> 1134241.83
B26: CPERIFSYS | C26: CPER 2021-2027 IF-SYS-MER / IRDL | E26: 970000 | F26: 0 | G26: 0 | H26: 0 | I26: 970000 | J26: 970000 | K26: 0 | L26: 0 | M26: 0 | N26: 800000 | O26: 800000 | P26: 0 | Q26: 170000
B27: CPERBBB | C27: CPER 2021-2027 BREST BAY BASE / LBCM | E27: 140000 | F27: 0 | G27: 0 | H27: 0 | I27: 140000 | J27: 140000 | K27: 0 | L27: 0 | M27: 0 | N27: 140000 | O27: 140000 | P27: 0 | Q27: 0
B28: CPERBIA | C28: CPER 2021-2027 BIOALTERNATIVES | E28: 378000 | F28: 0 | G28: 0 | H28: 0 | I28: 378000 | J28: 378000 | K28: 0 | L28: 0 | M28: 0 | N28: 313000 | O28: 313000 | P28: 0 | Q28: 65000
B29: PRECERYC | C29: PLAN DE RELANCE ETAT REHAB CERYC | E29: 3600000 | F29: 3600000 | G29: 3599223.83 | H29: 0 | I29: 0 | J29: 0 | K29: 3600000 | L29: 3276970.37 | M29: 0 | N29: 0 | O29: 0 | P29: 776.17 | Q29: 322253.46
B30: PREKERJU | C30: PLAN DE RELANCE ETAT LED KERJULAUDE | E30: 110000 | F30: 110000 | G30: 109999.99 | H30: 0 | I30: 0 | J30: 0 | K30: 110000 | L30: 109999.99 | M30: 0 | N30: 0 | O30: 0 | P30: 0.009999999995 | Q30: 0
B31: SACUEREACT | C31: FEDER REHAB ENERGETIQ PAQUEBOT | E31: 1949260 | F31: 1949260 | G31: 1949255.15 | H31: 0 | I31: 0 | J31: =H31+I31 -> 0 | K31: 1659260 | L31: 1129664.06 | M31: 0 | N31: 290000 | O31: =M31+N31 -> 290000 | P31: =E31-G31-J31 -> 4.85 | Q31: =G31+J31-L31-O31 -> 529591.09
B32: SACUEHYDRO | C32: FEDER HYDROGENE STOCKAGE | E32: 350000 | F32: 350000 | G32: 0 | H32: 0 | I32: 0 | J32: 0 | K32: 105000 | L32: 0 | M32: 0 | N32: 245000 | O32: 245000 | P32: 350000 | Q32: -245000
B33: CPERGLAZ | C33: CPER 2021-2027 GLAZ | E33: 60000 | F33: 0 | G33: 0 | H33: 0 | I33: 60000 | J33: 60000 | K33: 0 | L33: 0 | M33: 0 | N33: 60000 | O33: 60000 | P33: 0 | Q33: 0
B34: CPERMATTR | C34: CPER 2021-2027 Mat&Trans | E34: 80000 | F34: 0 | G34: 0 | H34: 0 | I34: 80000 | J34: 80000 | K34: 0 | L34: 0 | M34: 0 | N34: 80000 | O34: 80000 | P34: 0 | Q34: 0
B35: CPERIDF | C35: CPER 2021-2027 INDUSTRIE DU FUTUR | E35: 655000 | F35: 145000 | G35: 20834.5 | H35: 0 | I35: 510000 | J35: 510000 | K35: 90000 | L35: 0 | M35: 0 | N35: 465000 | O35: 465000 | P35: 124165.5 | Q35: 65834.5
B36: CPERRACAM | C36: CPER 2021-2027 RACAM | E36: 150000 | F36: 0 | G36: 0 | H36: 0 | I36: 150000 | J36: 150000 | K36: 0 | L36: 0 | M36: 0 | N36: 100000 | O36: 100000 | P36: 0 | Q36: 50000
B37: CPERMSHB | C37: CPER 2021-2027 MSHB | E37: 80000 | F37: 0 | G37: 0 | H37: 0 | I37: 54000 | J37: 54000 | K37: 0 | L37: 0 | M37: 0 | N37: 54000 | O37: 54000 | P37: 26000 | Q37: 0
B38: Total Programme pluriannuels d'inv | E38: =SUM(E25:E37) -> 10922260 | F38: =SUM(F25:F37) -> 6536260 | G38: =SUM(G25:G37) -> 5863423.77 | H38: 0 | I38: 4360000 | J38: =SUM(J25:J37) -> 4360000 | K38: =SUM(K25:K37) -> 5754260 | L38: =SUM(L25:L37) -> 4584502.89 | M38: 0 | N38: 3547000 | O38: =SUM(O25:O37) -> 3547000 | P38: =SUM(P25:P37) -> 698836.23 | Q38: =SUM(Q25:Q37) -> 2091920.88
B39: Total | E39: =E17+E24+E38 -> 41078019.27 | F39: =F17+F24+F38 -> 22243612.06 | G39: =G17+G24+G38 -> 18748327.61 | H39: 0 | I39: 13287122.69 | J39: =J17+J24+J38 -> 13287122.69 | K39: =K17+K24+K38 -> 20840012.06 | L39: =L17+L24+L38 -> 16274204.3 | M39: 0 | N39: 12238922.69 | O39: =O17+O24+O38 -> 12238922.69 | P39: =P17+P24+P38 -> 9042568.97 | Q39: =Q17+Q24+Q38 -> 3522323.31
B40: Ss total personnel | E40: 16998294.51 | F40: 9691555.16 | G40: 8090760.75 | H40: 0 | I40: 4574116.55 | J40: =H40+I40 -> 4574116.55 | K40: 9691555.16 | L40: 8090582.35 | M40: 0 | N40: 4574116.55 | O40: =M40+N40 -> 4574116.55 | P40: =E40-G40-J40 -> 4333417.21 | Q40: =G40+J40-L40-O40 -> 178.4
B41: Ss total fonctionnement | E41: 12031252.97 | F41: 5208135.05 | G41: 4174302.16 | H41: 0 | I41: 4062065.34 | J41: 4062065.34 | K41: 4586535.05 | L41: 3098649.93 | M41: 0 | N41: 3826865.34 | O41: 3826865.34 | P41: 3794885.47 | Q41: 1310852.23
B42: Ss total investissement | E42: 12048471.79 | F42: 7343921.85 | G42: 6483264.7 | H42: 0 | I42: 4650940.8 | J42: 4650940.8 | K42: 6561921.85 | L42: 5084972.02 | M42: 0 | N42: 3837940.8 | O42: 3837940.8 | P42: 914266.29 | Q42: 2211292.68
B45: B - Recettes
B46: Opérations | E46: Montant de l'opération | F46: Prélèvement sur la trésorerie | G46: Financements extérieurs
G47: Montant | H47: Encaissements < N | I47: Encaissements prévus N | J47: Restes à encaisser > N
B48: PFIRECHSAC | C48: RECH SUBVENTIONS AVEC CONDITIONS | E48: 17061952.02 | F48: =E48-G48 -> -311918.99 | G48: 17373871.01 | H48: 8892539.22 | I48: 3772802.24 | J48: 4708529.55
B49: PFIRECHARE | C49: RECH ALLOCATION DE RECHERCHE DOCTORALE | E49: 2233040.8 | F49: =E49-G49 -> -35199.37 | G49: 2268240.17 | H49: 813803.34 | I49: 461920.16 | J49: 992516.67
B50: PFIRECHCCR | C50: RECH CONTRATS DE COLLABORATION | E50: 2039045.95 | F50: =E50-G50 -> -316749.81 | G50: 2355795.76 | H50: 1259853.85 | I50: 668018.59 | J50: 427923.32
B51: PFIRECHAUT | C51: RECH CONTRATS AUTRES | E51: 213704.3 | F51: =E51-G51 -> -6932.7 | G51: 220637 | H51: 93384 | I51: 90875 | J51: 36378
B52: PFIRECHCIF | C52: RECH CONTRATS CIFRE | E52: 341946.89 | F52: -54711.59 | G52: 396658.48 | H52: 160613.39 | I52: 105897.54 | J52: 130147.55
B53: PFIRECHSSC | C53: RECH SUBVENTIONS SANS CONDITIONS | E53: 53879.31 | F53: -8620.69 | G53: 62500 | H53: 25000 | I53: 12500 | J53: 25000
B54: PFIPIAHITR | C54: PIA HIT VOLET RECHERCHE | E54: 864000 | F54: 0 | G54: 864000 | H54: 161900 | I54: 0 | J54: 702100
B55: Total Contrats de recherche | E55: 22807569.27 | F55: =SUM(F48:F54) -> -734133.15 | G55: 23541702.42 | H55: 11407093.8 | I55: 5112013.53 | J55: 7022595.09
B56: PFIERASDIV | C56: PROJETS UE ERASMUS + | E56: 1442382 | F56: =E56-G56 -> 0 | G56: 1442382 | H56: 1306349.81 | I56: 176011.86 | J56: -39979.67
B57: PFIENSDIV | C57: CONTRATS ENSEIGNEMENT DIVERS | E57: 27000 | F57: =E57-G57 -> 0 | G57: 27000 | H57: 21600 | I57: 3400 | J57: 2000
B58: PFIPIACOHY | C58: PR CO-HY-B PLAN DE RELANCE ETAT | E58: 300000 | F58: 0 | G58: 300000 | H58: 300000 | I58: 0 | J58: 0
B59: PFIERASCYB | C59: PROJET UE ERASMUS+ CYBERUS | E59: 4442928 | F59: =E59-G59 -> 0 | G59: 4442928 | H59: 2221464 | I59: 0 | J59: 2221464
B60: PFIPIABRIO | C60: PIA BRIO | E60: 862000 | F60: 0 | G60: 862000 | H60: 258867.12 | I60: 86200 | J60: 516932.88
B61: PFIANRFORM | C61: ANR PROJET FORMAFLEX | E61: 273880 | F61: 0 | G61: 273880 | H61: 82164 | I61: 82164 | J61: 109552
B62: Total Contrats d'enseignement | E62: 7348190 | F62: =SUM(F56:F61) -> 0 | G62: 7348190 | H62: 4190444.93 | I62: 347775.86 | J62: 2809969.21
B63: PPICVEC | C63: PPI CVEC | E63: 2400000 | F63: =E63-G63 -> 1245711.81 | G63: 1154288.19 | H63: 777984.19 | I63: 146104 | J63: 230200
B64: CPERIFSYS | C64: CPER 2021-2027 IF-SYS-MER / IRDL | E64: 970000 | F64: 0 | G64: 970000 | H64: 135000 | I64: 630000 | J64: 205000
B65: CPERBBB | C65: CPER 2021-2027 BREST BAY BASE / LBCM | E65: 140000 | F65: 0 | G65: 140000 | H65: 38700 | I65: 36300 | J65: 65000
B66: CPERBIA | C66: CPER 2021-2027 BIOALTERNATIVES | E66: 378000 | F66: 0 | G66: 378000 | H66: 56700 | I66: 308300 | J66: 13000
B67: PRECERYC | C67: PLAN DE RELANCE ETAT REHAB CERYC | E67: 3600000 | F67: 0 | G67: 3600000 | H67: 3600000 | I67: 0 | J67: 0
B68: PREKERJU | C68: PLAN DE RELANCE ETAT LED KERJULAUDE | E68: 110000 | F68: 0 | G68: 110000 | H68: 110000 | I68: 0 | J68: 0
B69: SACUEREACT | C69: FEDER REHAB ENERGETIQ PAQUEBOT | E69: 1949260 | F69: =E69-G69 -> 149260 | G69: 1800000 | H69: 0 | I69: 1080000 | J69: 720000
B70: SACUEHYDRO | C70: FEDER HYDROGENE STOCKAGE | E70: 350000 | F70: 70000 | G70: 280000 | H70: 0 | I70: 280000 | J70: 0
B71: CPERGLAZ | C71: CPER 2021-2027 GLAZ | E71: 60000 | F71: 0 | G71: 60000 | H71: 0 | I71: 43200 | J71: 16800
B72: CPERMATTR | C72: CPER 2021-2027 Mat&Trans | E72: 80000 | F72: 0 | G72: 80000 | H72: 0 | I72: 36000 | J72: 44000
B73: CPERIDF | C73: CPER 2021-2027 INDUSTRIE DU FUTUR | E73: 655000 | F73: 0 | G73: 655000 | H73: 72900 | I73: 329100 | J73: 253000
B74: CPERRACAM | C74: CPER 2021-2027 RACAM | E74: 150000 | F74: 0 | G74: 150000 | H74: 0 | I74: 65000 | J74: 85000
B75: CPERMSHB | C75: CPER 2021-2027 MSHB | E75: 80000 | F75: 0 | G75: 80000 | H75: 0 | I75: 36000 | J75: 44000
B76: Total Programme pluriannuels d'inv | E76: 10922260 | F76: =SUM(F63:F75) -> 1464971.81 | G76: 9457288.19 | H76: 4791284.19 | I76: 2990004 | J76: 1676000
B77: Total | E77: =+E55+E62+E76 -> 41078019.27 | F77: =+F55+F62+F76 -> 730838.66 | G77: =+G55+G62+G76 -> 40347180.61 | H77: =+H55+H62+H76 -> 20388822.92 | I77: =I55+I62+I76 -> 8449793.39 | J77: =J55+J62+J76 -> 11508564.3
B90: Différence Dépenses - Recettes | C90: =E39-E77 -> 0
B93: COMMENTAIRES SUR LES TABLEAUX DE SUIVI DES OPÉRATIONS PLURIANNUELLES
B95: 1 | C95: Les opérations sont identifiées par un nom et un millésime ; elles peuvent ne pas être toutes individualisées et faire l'objet de regroupements, un niveau de détail suffisant au regard des caractéristiques de l'établissements devant néanmoins être maintenu ;
B97: 2 | C97: Le degré d'exigence quant à la précision de l'évaluation, au budget initial, des reports prévisibles devra être fonction des contraintes qui pèsent sur les établissements pour établir ce chiffrage, notamment pour les contrats de recherche ;
B99: 3 | C99: En recettes, une ligne sera maintenue, même après la fin d'une opération tant que la totalité des financements extérieurs n'a pas été recouvrée ;
B101: 4 | C101: Pour les contrats de recherche, ne devra être indiquée au titre de l'autofinancement que, le cas échéant, la participation de l'établissement qui doit donner lieu à justification en application du contrat.

Sheet 10-tab_op_pluri_détail_ETAB
C1: Tableau 10 - Université de Bretagne Sud (0561718N) : Etablissement principal + Fondation
C2: ="Tableau détaillé des opérations pluriannuelles et programmation - Budget consolidé "&Maquette!B4&" "&Maquette!B5&" "&Maquette!B3 -> Tableau détaillé des opérations pluriannuelles et programmation - Budget consolidé initial 2023
C4: POUR INFORMATION DE L'ORGANE DÉLIBÉRANT
C5: Suivi par opération (ou par regroupement d'opérations) des autorisations d'engagement, des crédits de paiement et des recettes
C7: A - Prévision d'autorisations d'engagement et de crédits de paiement
C8: Prévisions d'AE et de CP | G8: Prévisions | I8: Prévisions N (BI + BR) | W8: Prévisions N+1 et suivantes
C9: Opération | F9: Nature | G9: Coût total de l'opération | I9: AE ouvertes < N | J9: Conso AE < N | K9: Reports ou Reprogrammations N | M9: AE nouvelles ouvertes N | N9: Total AE N | O9: CP ouverts < N | P9: Conso CP < N | R9: Reports ou Reprogrammations N | T9: CP nouveaux ouverts N | U9: Total CP N | W9: AE prévues en N+1 | X9: CP prévus en N+1 | Y9: AE prévues en N+2 | Z9: CP prévus en N+2 | AA9: AE prévues > N+2 | AB9: CP prévus > N+2
C10: Contrats de recherche | F10: Personnel | G10: 15070882.22 | I10: 9222269.87 | J10: 7759272.16 | K10: 0 | M10: 4091399.55 | N10: 4091399.55 | O10: 9222269.87 | P10: 7759093.76 | R10: 0 | T10: 4091399.55 | U10: 4091399.55 | W10: 1192880.96 | X10: 1192880.96 | Y10: 471126.4 | Z10: 471126.4 | AA10: 93205.44 | AB10: 93205.44
F11: Fonctionnement | G11: 6752292.26 | I11: 3569878.34 | J11: 2764369.7 | K11: 0 | M11: 2550606.34 | N11: 2550606.34 | O11: 3569878.34 | P11: 2403365.57 | R11: 0 | T11: 2550606.34 | U11: 2550606.34 | W11: 486112.1 | X11: 486112.1 | Y11: 109096.15 | Z11: 109096.15 | AA11: 36599.33 | AB11: 36599.33
F12: Investissement | G12: 984394.79 | I12: 667844.85 | J12: 557487.24 | K12: 0 | M12: 291940.8 | N12: 291940.8 | O12: 667844.85 | P12: 482076.74 | R12: 0 | T12: 291940.8 | U12: 291940.8 | W12: 18574.14 | X12: 18574.14 | Y12: 6035 | Z12: 6035 | AA12: 0 | AB12: 0
C13: Total Contrats de recherche | G13: =SUM(G10:G12) -> 22807569.27 | I13: =SUM(I10:I12) -> 13459993.06 | J13: =SUM(J10:J12) -> 11081129.1 | K13: 0 | M13: 6933946.69 | N13: 6933946.69 | O13: =SUM(O10:O12) -> 13459993.06 | P13: =SUM(P10:Q12) -> 10644536.07 | R13: 0 | T13: 6933946.69 | U13: 6933946.69 | W13: 1697567.2 | X13: 1697567.2 | Y13: 586257.55 | Z13: 586257.55 | AA13: 129804.77 | AB13: 129804.77
C14: Contrats d'enseignement | F14: Personnel | G14: 1927412.29 | I14: 469285.29 | J14: 331488.59 | K14: 0 | M14: 482717 | N14: 482717 | O14: 469285.29 | P14: 331488.59 | R14: 0 | T14: 482717 | U14: 482717 | W14: 214425 | X14: 214425 | Y14: 487125 | Z14: 487125 | AA14: 273860 | AB14: 273860
F15: Fonctionnement | G15: 5238960.71 | I15: 1638256.71 | J15: 1409932.46 | K15: 0 | M15: 1497459 | N15: 1497459 | O15: 1016656.71 | P15: 695284.36 | R15: 0 | T15: 1262259 | U15: 1262259 | W15: 884973 | X15: 884973 | Y15: 978211 | Z15: 1011811 | AA15: 240061 | AB15: 1063261
F16: Investissement | G16: 181817 | I16: 139817 | J16: 62353.69 | K16: 0 | M16: 13000 | N16: 13000 | O16: 139817 | P16: 18392.39 | R16: 0 | T16: 13000 | U16: 13000 | W16: 13000 | X16: 13000 | Y16: 13000 | Z16: 13000 | AA16: 3000 | AB16: 3000
C17: Total Contrats d'enseignement | G17: =SUM(G14:G16) -> 7348190 | I17: =SUM(I14:I16) -> 2247359 | J17: =SUM(J14:J16) -> 1803774.74 | K17: 0 | M17: 1993176 | N17: 1993176 | O17: =SUM(O14:O16) -> 1625759 | P17: =SUM(P14:Q16) -> 1045165.34 | R17: 0 | T17: 1757976 | U17: 1757976 | W17: 1112398 | X17: 1112398 | Y17: 1478336 | Z17: 1511936 | AA17: 516921 | AB17: 1340121
C18: Programme pluriannuels d'inv | F18: Personnel | G18: 0 | I18: 0 | J18: 0 | K18: 0 | M18: 0 | N18: 0 | O18: 0 | P18: 0 | R18: 0 | T18: 0 | U18: 0 | W18: 0 | X18: 0 | Y18: 0 | Z18: 0 | AA18: 0 | AB18: 0
F19: Fonctionnement | G19: 40000 | I19: 0 | J19: 0 | K19: 0 | M19: 14000 | N19: 14000 | O19: 0 | P19: 0 | R19: 0 | T19: 14000 | U19: 14000 | W19: 26000 | X19: 26000 | Y19: 0 | Z19: 0 | AA19: 0 | AB19: 0
F20: Investissement | G20: 10882260 | I20: 6536260 | J20: 5863423.77 | K20: 0 | M20: 4346000 | N20: 4346000 | O20: 5754260 | P20: 4584502.89 | R20: 0 | T20: 3533000 | U20: 3533000 | W20: 0 | X20: 1595000 | Y20: 0 | Z20: 0 | AA20: 0 | AB20: 0
C21: Total Programme pluriannuels d'inv | G21: =SUM(G18:G20) -> 10922260 | I21: =SUM(I18:I20) -> 6536260 | J21: =SUM(J18:J20) -> 5863423.77 | K21: 0 | M21: 4360000 | N21: 4360000 | O21: =SUM(O18:O20) -> 5754260 | P21: =SUM(P18:Q20) -> 4584502.89 | R21: 0 | T21: 3547000 | U21: 3547000 | W21: 26000 | X21: 1621000 | Y21: 0 | Z21: 0 | AA21: 0 | AB21: 0
F22: Ss total Personnel | G22: =+G10+G14+G18 -> 16998294.51 | I22: =+I10+I14+I18 -> 9691555.16 | J22: 8090760.75 | K22: 0 | M22: 4574116.55 | N22: 4574116.55 | O22: =O10+O14+O18 -> 9691555.16 | P22: 8090582.35 | R22: 0 | T22: 4574116.55 | U22: 4574116.55 | W22: 1407305.96 | X22: 1407305.96 | Y22: 958251.4 | Z22: 958251.4 | AA22: 367065.44 | AB22: 367065.44
F23: Ss total Fonctionnement | G23: =+G11+G15+G19 -> 12031252.97 | I23: =+I11+I15+I19 -> 5208135.05 | J23: 4174302.16 | K23: 0 | M23: 4062065.34 | N23: 4062065.34 | O23: 4586535.05 | P23: 3098649.93 | R23: 0 | T23: 3826865.34 | U23: 3826865.34 | W23: 1397085.1 | X23: 1397085.1 | Y23: 1087307.15 | Z23: 1120907.15 | AA23: 276660.33 | AB23: 1099860.33
F24: Ss total Investissement | G24: =+G12+G16+G20 -> 12048471.79 | I24: =+I12+I16+I20 -> 7343921.85 | J24: 6483264.7 | K24: 0 | M24: 4650940.8 | N24: 4650940.8 | O24: 6561921.85 | P24: 5084972.02 | R24: 0 | T24: 3837940.8 | U24: 3837940.8 | W24: 31574.14 | X24: 1626574.14 | Y24: 19035 | Z24: 19035 | AA24: 3000 | AB24: 3000
C25: TOTAL | G25: =SUM(G22:G24) -> 41078019.27 | I25: =SUM(I22:I24) -> 22243612.06 | J25: =SUM(J22:J24) -> 18748327.61 | K25: 0 | M25: 13287122.69 | N25: 13287122.69 | O25: =SUM(O22:O24) -> 20840012.06 | P25: =SUM(P22:Q24) -> 16274204.3 | R25: 0 | T25: 12238922.69 | U25: 12238922.69 | W25: 2835965.2 | X25: 4430965.2 | Y25: 2064593.55 | Z25: 2098193.55 | AA25: 646725.77 | AB25: 1469925.77
C27: B - Prévisions de recettes
C29: Prévisions de recettes | G29: Prévisions | I29: Prévisions N | L29: Prévisions en N+1 et suivantes
C30: Opération | F30: Nature | G30: Financement de l'opération | I30: Encaissements < N | J30: Encaissements prévus N | L30: Encaissements prévus en N+1 | M30: Encaissements prévus en N+2 | N30: Encaissements prévus > N+2
C31: Contrats de recherche | F31: Financement de l'Etat | G31: 5006996.12 | I31: 1602415.41 | J31: 715284.46 | L31: 769862.15 | M31: 373700.18 | N31: 287074.8
F32: Autres financements publics | G32: 15153275.54 | I32: 8218271.75 | J32: 3440437.94 | L32: 2281995.81 | M32: 714317.8 | N32: 243312
F33: Autres financements | G33: 3381430.76 | I33: 1586406.64 | J33: 956291.13 | L33: 128905.84 | M33: 0 | N33: 0
C34: Total Contrats de recherche | G34: =SUM(G31:G33) -> 23541702.42 | I34: =SUM(I31:I33) -> 11407093.8 | J34: 5112013.53 | L34: 3180763.8 | M34: 1088017.98 | N34: 530386.8
C35: Contrats d'enseignement | F35: Financement de l'Etat | G35: 1162000 | I35: 558600 | J35: 86200 | L35: 86200 | M35: 344800 | N35: 0
F36: Autres financements publics | G36: 6186190 | I36: 3621882.44 | J36: 261575.86 | L36: 27388 | M36: 0 | N36: 2221464
F37: Autres financements | G37: 0 | I37: 9962.49 | J37: 0 | L37: 0 | M37: 0 | N37: 0
C38: Total Contrats d'enseignement | G38: =SUM(G35:G37) -> 7348190 | I38: =SUM(I35:I37) -> 4190444.93 | J38: 347775.86 | L38: 113588 | M38: 344800 | N38: 2221464
C39: Programme pluriannuels d'inv | F39: Financement de l'Etat | G39: 5739288.19 | I39: 4791284.19 | J39: 664004 | L39: 53800 | M39: 0 | N39: 0
F40: Autres financements publics | G40: 3718000 | I40: 0 | J40: 2326000 | L40: 672000 | M40: 0 | N40: 0
F41: Autres financements | G41: 0 | I41: 0 | J41: 0 | L41: 0 | M41: 0 | N41: 0
C42: Total Programme pluriannuels d'inv | G42: =SUM(G39:G41) -> 9457288.19 | I42: =SUM(I39:I41) -> 4791284.19 | J42: 2990004 | L42: 725800 | M42: 0 | N42: 0
F43: Ss total Financement de l'Etat | G43: =G31+G35+G39 -> 11908284.31 | I43: =I31+I35+I39 -> 6952299.6 | J43: 1465488.46 | L43: 909862.15 | M43: 718500.18 | N43: 287074.8
F44: Ss total Autres financements publics | G44: =G32+G36+G40 -> 25057465.54 | I44: =I32+I36+I40 -> 11840154.19 | J44: 6028013.8 | L44: 2981383.81 | M44: 714317.8 | N44: 2464776
F45: Ss total Autres financements | G45: =G33+G37+G41 -> 3381430.76 | I45: =I33+I37+I41 -> 1596369.13 | J45: 956291.13 | L45: 128905.84 | M45: 0 | N45: 0
C46: TOTAL | G46: =SUM(G43:G45) -> 40347180.61 | I46: =SUM(I43:I45) -> 20388822.92 | J46: 8449793.39 | L46: 4020151.8 | M46: 1432817.98 | N46: 2751850.8

Sheet 11-tab_UMR_ETAB
A1: TABLEAU 11 - Université de Bretagne Sud (0561718N) : Etablissement principal + Fondation
A2: ="TABLEAU RETRAÇANT LES MOYENS DES UNITÉS MIXTES DE RECHERCHE - Budget consolidé "&Maquette!B4&" "&Maquette!B5&" "&Maquette!B3 -> TABLEAU RETRAÇANT LES MOYENS DES UNITÉS MIXTES DE RECHERCHE - Budget consolidé initial 2023
A5: POUR INFORMATION DE L'ORGANE DÉLIBÉRANT
C9: Moyens de l’établissement | E9: Moyens hors budget de l’établissement _2021
E10: CNRS | G10: ENTSA Bretagne | I10: ENIB | K10: ubo
A11: IRDL UMR 6027 | B11: Personnel | C11: 105 | D11: Emplois | E11: 1 | F11: Emplois | G11: 46 | H11: Emplois | I11: 10 | J11: Emplois | K11: 20 | L11: Emplois | N11: Emplois | P11: Emplois | R11: Emplois
B12: Fonctionnement (dotation sur SCSP) | C12: 116500 | E12: 107000 | G12: 102000 | I12: Statut Partenaire pas de dotation affichée | K12: 22000
B13: Investissement (PPI recherche)
C16: Moyens de l’établissement | E16: Moyens hors budget de l’établissement
E17: CNRS | G17: UNIV Rennes 1 | I17: INSA | K17: INRIA
A18: IRISA UMR 6074 | B18: Personnel | C18: 40.5 | D18: Emplois | E18: 54.6 | F18: Emplois | G18: 239.75 | H18: Emplois | I18: 37 | J18: Emplois | K18: 255.4 | L18: Emplois | N18: Emplois | P18: Emplois | R18: Emplois
B19: Fonctionnement (dotation sur SCSP) | C19: 41500 | E19: 230000 | G19: 293191 | I19: 15277 | K19: 342000
B20: Investissement (PPI recherche) | I20: 23223
C23: Moyens de l’établissement | E23: Moyens hors budget de l’établissement
E24: CNRS | G24: ENIB | I24: ENSTA Bretagne | K24: IMT Atlantique | M24: UBO
A25: Lab-STICC UMR 6285 | B25: Personnel | C25: 38.2 | D25: Emplois | E25: 7.9 | F25: Emplois | G25: 26.05 | H25: Emplois | I25: 40 | J25: Emplois | K25: 113.5 | L25: Emplois | M25: 76.45 | N25: Emplois | P25: Emplois | R25: Emplois
B26: Fonctionnement (dotation sur SCSP) | C26: 50500 | E26: 70000 | G26: 52200 | I26: 56000 | K26: 83625 | M26: 91280
B27: Investissement (PPI recherche) | C27: 30000
C30: Moyens de l’établissement | E30: Moyens hors budget de l’établissement
A32: LGO UMR 6538 | B32: Personnel | D32: Emplois | F32: Emplois | H32: Emplois | J32: Emplois | L32: Emplois | N32: Emplois | P32: Emplois | R32: Emplois
B33: Fonctionnement (dotation sur SCSP)
B34: Investissement (PPI recherche)
C37: Moyens de l’établissement | E37: Moyens hors budget de l’établissement
E38: CNRS
A39: LMBA UMR 6205 | B39: Personnel | C39: 2 | D39: Emplois | E39: 0 | F39: Emplois | H39: Emplois | J39: Emplois | L39: Emplois | N39: Emplois | P39: Emplois | R39: Emplois
B40: Fonctionnement (dotation sur SCSP) | C40: 33000 | E40: 12000
B41: Investissement (PPI recherche)
C44: Moyens de l’établissement | E44: Moyens hors budget de l’établissement
E45: Université d'Angers | G45: Le Mans Université | I45: CNRS-INSHS
A46: TEMOS UMR 9016 | B46: Personnel | D46: Emplois | E46: 1.5 | F46: Emplois | G46: 0.5 | H46: Emplois | I46: 2 | J46: Emplois | L46: Emplois | N46: Emplois | P46: Emplois | R46: Emplois
B47: Fonctionnement (dotation sur SCSP) | E47: 33500 | G47: 22200 | I47: 30000
B48: Investissement (PPI recherche)

Sheet Annexe Synthèse_ETAB
A1: ANNEXE 5 - Université de Bretagne Sud (0561718N) : Etablissement principal + Fondation
A2: ="Synthèse budgétaire et comptable - Budget consolidé "&Maquette!B4&" "&Maquette!B5&" "&Maquette!B3 -> Synthèse budgétaire et comptable - Budget consolidé initial 2023
B4: POUR INFORMATION DE L'ORGANE DÉLIBÉRANT
H6: =IF(Maquette!B4="initial","BI "&Maquette!B5,IF(Maquette!B4="rectificatif","BR "&Maquette!B5,"")) -> BI
B7: Stocks initiaux | D7: 1 | F7: Niveau initial de restes à payer | H7: 5508714.39
D9: 2 | F9: Niveau initial du fonds de roulement | H9: ='6-tab CR_TF_ETAB'!H49 -> 12189108.68
D10: 3 | F10: Niveau initial du besoin en fonds de roulement | H10: =H9-H11+0.06 -> -776867.49
D11: 4 | F11: Niveau initial de la trésorerie | H11: ='6-tab CR_TF_ETAB'!H51 -> 12965976.23
E12: 4.a | F12: dont niveau initial de la trésorerie fléchée | H12: 1929527
E13: 4.b | F13: dont niveau initial de la trésorerie non fléchée | H13: 11036449.06
B15: Flux de l'année | D15: 5 | F15: Autorisations d'engagement | H15: ='2-tab_aut_budg_ETAB'!K28 -> 104614991.2
D17: 6 | F17: Résultat patrimonial | H17: =IF('6-tab CR_TF_ETAB'!F14>0,'6-tab CR_TF_ETAB'!F14,-'6-tab CR_TF_ETAB'!L14) -> -1060087
D18: 7 | F18: Capacité d'autofinancement (CAF) | H18: ='6-tab CR_TF_ETAB'!F28 -> 1449255
D19: 8 | F19: Variation du fonds de roulement | H19: ='6-tab CR_TF_ETAB'!L46 -> -3616137
D21: 9 | E21: 9.a | F21: Opérations bilancielles non budgétaires | G21: SENS | H21: =SUM(H22:H24) -> 0
F22: Nouvel emprunt / remboursement de prêt | G22: + / -
F23: Remboursement d'emprunt / prêt accordé | G23: +
F24: Cautionnements et dépôts | G24: - | H24: ='7-tab Plan_tréso_ETAB'!O22-'7-tab Plan_tréso_ETAB'!O42 -> 0
D26: 10 | E26: 9.a | F26: Opérations comptables non retraitées par la CAF, non budgétaires | G26: SENS | H26: =SUM(H27:H30) -> 0
F27: Variation des stocks | G27: + / -
F28: Production immobilisée | G28: +
F29: Charges sur créances irrécouvrables | G29: -
F30: Produits divers de gestion courante | G30: +
D32: 11 | E32: 9.b | F32: Décalages de flux de trésorerie liés aux opérations budgétaires | G32: SENS | H32: =H34-H36 -> 692058.29
F33: Ecart entre les produits / ressources et les encaissements relatifs à des opérations sur exercices antérieurs | G33: + / -
F34: Ecart entre les produits / ressources et les encaissements relatifs à des opérations de l'exercice en cours | G34: + / - | H34: 1081058.04
F35: Ecart entre les charges / immobilisations et les décaissements relatifs à des opérations sur exercices antérieurs | G35: + / -
F36: Ecart entre les charges / immobilisations et les décaissements relatifs à des opérations de l'exercice en cours | G36: + / - | H36: 388999.75
D38: 12 | F38: Solde budgétaire = 8 - 9 - 10 - 11 | H38: =H19-H26-H32-H21 -> -4308195.29
E39: 12.a | F39: Recettes budgétaires | H39: ='2-tab_aut_budg_ETAB'!R28 -> 98798595.96
E40: 12.b | F40: Crédits de paiement ouverts | H40: ='2-tab_aut_budg_ETAB'!L28 -> 103106791.2
D42: 13 | E42: 9.c | F42: Flux de trésorerie liés aux opérations au nom et pour le compte de tiers | H42: ='4-tab_financier_ETAB'!M20-'4-tab_financier_ETAB'!G20 -> -375920
D44: 14 | E44: 9.c | F44: Flux de trésorerie liés aux autres encaissements / décaissements sur comptes de tiers (non budgétaires) | H44: ='4-tab_financier_ETAB'!M22-'4-tab_financier_ETAB'!G22 -> 0
D46: 15 | F46: Variation de la trésorerie = 12 - 13 - 14 | H46: =H38+H42-H44 -> -4684115.29
E47: 15.a | F47: dont variation de la trésorerie fléchée | H47: ='4-tab_financier_ETAB'!G27-'4-tab_financier_ETAB'!M27 -> -774736
E48: 15.b | F48: dont variation de la trésorerie non fléchée | H48: ='4-tab_financier_ETAB'!G29-'4-tab_financier_ETAB'!M29 -> -3909379.29
D50: 16 | F50: Variation du besoin en fonds de roulement = 9 + 10 + 11 - 13 + 14 | H50: =H26+H32-H42+H21+H44 -> 1067978.29
D52: 17 | F52: Restes à payer | H52: =H15-H40 -> 1508200
B54: Stocks finaux | D54: 18 | F54: Niveau final de restes à payer | H54: =H7+H52 -> 7016914.39
D56: 19 | F56: Niveau final du fonds de roulement | H56: =H9+H19 -> 8572971.68
D57: 20 | F57: Niveau final du besoin en fonds de roulement | H57: =H56-H58 -> 291110.74
D58: 21 | F58: Niveau final de la trésorerie | H58: =H11+H46 -> 8281860.94
E59: 21.a | F59: dont niveau final de la trésorerie fléchée | H59: =H12+H47 -> 1154791
E60: 21.b | F60: dont niveau final de la trésorerie non fléchée | H60: =H13+H48 -> 7127069.77
F62: Comptabilité budgétaire
F63: Comptabilité générale

Sheet Annexe PAA_ETAB
B1: ANNEXE 14 - Université de Bretagne Sud (0561718N) : Etablissement principal + Fondation
B2: Plan d'actions achat - Prévisionnel
B4: Identité du projet | K4: Mutualisation du besoin | P4: Objectif de gain achat | T4: Autres objectifs de politique publique | Y4: Suivi du marché
B5: Code CPV à 2 positions | C5: Niveau le plus fin de votre nomenclature achat | D5: Objet du marché, du marché subséquent ou de l'action de progrès | E5: Type de leviers utilisés indiquer maximum 2 leviers | G5: Date de notification prévisionnelle | H5: Durée du contrat en mois (reconductions comprises) | I5: Volume des achats prévisionnel en euros HT | J5: Renouvellement (R) ou nouveau marché (N) | K5: Marché subséquent d'un accord-cadre (O/N) | L5: Accord-cadre avec des entités extérieures (O/N) voir ci-dessous | M5: Groupement de commande (O/N) voir ci-dessous | N5: Recours à un marché du SAE (O/N) | O5: Recours à une centrale d'achats UGAP/AMUE (O/N) | P5: Performance de l'acheteur en prévisionnel sur la durée totale du marché (en euros HT) | Q5: Pourcentage | R5: Chiffre d'affaires attendu base 12 mois en euros HT | S5: Performance de l'acheteur base 12 mois | T5: Rédaction du contrat adaptée à une PME (O/N) | U5: Projet ouvert à des achats innovants (O/N) | W5: Intégration de clauses environnementales (O/N) voir ci-dessous | X5: Intégration de clauses sociales (O/N) voir ci-dessous | Y5: Points d'attention
U6: oui ou non | V6: si oui indiquer les coordonnées de l'acheteur (nom, prénom, adresse électronique)
B7: 55520000 | C7: CB 21 | D7: Prestations de services ; cocktails Lorient | E7: juste besoin | F7: suivi fournisseur | G7: 2023-02-01 | H7: 48 | J7: R | K7: N | L7: N | M7: N | N7: N | O7: N | T7: N | U7: Non | W7: O | X7: N
B8: 55520000 | C8: CB 21 | D8: Prestations de services ; cocktails Vannes | E8: juste besoin | F8: suivi fournisseur | G8: 2023-02-01 | H8: 48 | J8: R | K8: N | L8: N | M8: N | N8: N | O8: N | T8: N | U8: Non | W8: O | X8: N
B9: 55520000 | C9: CB 21 | D9: Prestations de services ; plateaux repas Lorient | E9: juste besoin | F9: suivi fournisseur | G9: 2023-02-01 | H9: 48 | J9: R | K9: N | L9: N | M9: N | N9: N | O9: N | T9: N | U9: Non | W9: O | X9: N
B10: 55520000 | C10: CB 21 | D10: Prestations de services ; plateaux repas Vannes | E10: juste besoin | F10: suivi fournisseur | G10: 2023-02-01 | H10: 48 | J10: R | K10: N | L10: N | M10: N | N10: N | O10: N | T10: N | U10: Non | W10: O | X10: N
B11: 32232000 | C11: IE 02 | D11: Système de Visioconférences | E11: juste besoin | F11: suivi fournisseur | G11: 2023-03-01 | H11: 48 | J11: R | K11: N | L11: N | M11: N | N11: N | O11: N | T11: N | U11: Non | W11: N | X11: N
B12: 30121100 | C12: AC 21 AC 22 | D12: Location/maintenance photocopieurs | E12: juste besoin | F12: suivi fournisseur | G12: 2023-03-01 | H12: 48 | J12: R | K12: O | L12: O | M12: N | N12: N | O12: N | T12: N | U12: Non | W12: N | X12: N
B13: 30100000 | C13: IA 21 | D13: Location/maintenance imprimantes | E13: juste besoin | F13: suivi fournisseur | G13: 2023-03-01 | H13: 48 | J13: R | K13: O | L13: O | M13: N | N13: N | O13: N | T13: N | U13: Non | W13: N | X13: N
B14: 64210000 | C14: II 01 | D14: Abonnements et communications téléphoniques | E14: juste besoin | F14: suivi fournisseur | G14: 2023-03-26 | H14: 48 | J14: R | K14: N | L14: N | M14: N | N14: N | O14: N | T14: N | U14: Non | W14: N | X14: N
B15: 45259000 | C15: BE 15 | D15: Maintenance Chauffage, ventilation, traitement d'eau | E15: juste besoin | F15: suivi fournisseur | G15: 2023-05-01 | H15: 48 | J15: R | K15: N | L15: N | M15: N | N15: N | O15: N | T15: N | U15: Non | W15: O | X15: N
B16: 45259000 | C16: BE 15 | D16: Maintenance Clim de confort et locaux sensibles | E16: juste besoin | F16: suivi fournisseur | G16: 2023-05-01 | H16: 48 | J16: R | K16: N | L16: N | M16: N | N16: N | O16: N | T16: N | U16: Non | W16: O | X16: N
B17: 45259000 | C17: BE 15 | D17: Maintenance des systèmes de sécurité incendie, désenfumage | E17: juste besoin | F17: suivi fournisseur | G17: 2023-05-01 | H17: 48 | J17: R | K17: N | L17: N | M17: N | N17: N | O17: N | T17: N | U17: Non | W17: O | X17: N
B18: 90911200 | C18: BB 11 | D18: Nettoyage locaux Bâtiment Yves Coppens Campus Tohannic | E18: juste besoin | F18: suivi fournisseur | G18: 2023-12-01 | H18: 48 | J18: R | K18: N | L18: N | M18: N | N18: N | O18: N | T18: N | U18: Non | W18: O | X18: N
B19: 22113000 | C19: CE 01 | D19: Fournitures d'ouvrages en langue française | E19: juste besoin | F19: suivi fournisseur | G19: 45261 | H19: 48 | J19: R | K19: N | L19: N | M19: N | N19: N | O19: N | T19: N | U19: Non | W19: N | X19: N
B20: 22113000 | C20: CE 01 | D20: Fournitures d'ouvrages en langue étrangère | E20: juste besoin | F20: suivi fournisseur | G20: 45261 | H20: 48 | J20: R | K20: N | L20: N | M20: N | N20: N | O20: N | T20: N | U20: Non | W20: O | X20: N
B21: 30190000 | C21: AB 01 | D21: Fournitures de bureaux | E21: juste besoin | F21: suivi fournisseur | G21: 45261 | H21: 48 | J21: R | K21: N | L21: N | M21: N | N21: N | O21: N | T21: N | U21: Non | W21: O | X21: N
B22: 79713000 | C22: BC 01 | D22: Gradiennage des locaux | E22: juste besoin | F22: suivi fournisseur | G22: 45261 | H22: 48 | J22: R | K22: N | L22: N | M22: N | N22: N | O22: N | T22: N | U22: Non | W22: N | X22: N
R23: Total :
B24: Pour les procédures portées par l'établissement, accords-cadres comme groupements de commande, merci d'indiquer ici | S24: Objectif : X %
B25: (si porteur de plusieurs accords-cadres ou groupement de commande, remettre l'objet avec le noms des autres parties prenantes) :
C26: noms des établissements parties prenantes à la procédure : | S26: du montant annuel des achats (HT)
B29: Commentaires sur les clauses sociales (freins et accélérateurs à l'intégration de clauses, recrutement de personnel handicapé…) :
B33: Commentaires sur les clauses environnementales (freins et accélérateurs à l'intégration de clauses…) :
B37: Actions de structuration de la fonction achat lancées en N-1 (recrutement d'un référent "développement durable", d'acheteurs experts…)

Sheet Annexe immo_ETAB
B2: ANNEXE 15 - Université de Bretagne Sud (0561718N) : Etablissement principal + Fondation
B3: Annexe immobilière
B5: POUR INFORMATION DE L'ORGANE DÉLIBÉRANT
B8: Opérateur : Université Bretagne Sud | D8: Réunion de l'organe délibérant du 14 décembre 2021 | I8: Commentaires portant sur la stratégie immobilière de l'établissement : (notamment sur l'avancement des opérations prévues dans le SPSI, la levée des réserves de France Domaine ou du CIE, les économies réalisées ou programmées,...)
I9: L'Université a libéré de manière définitive, à l'été 2018, les dernières surfaces qu'elle occupait au sein du bâtiment Pôle de Formations Sanitaires et Sociales (PFSS) à Lorient. L'usage de ce bâtiment de 6135m2 de SHON se répartit désormais exclusivement entre deux utilisateurs tiers (l'IFPS de Lorient et l'organisme de formations Askoria). Pour autant, ce bâtiment propriété de l'État est confié en gestion à l'UBS via les conventions d'utilisation passées avec France-Domaine. N'ayant plus d'intérêt à conserver ce bâtiment, le CA de l'Université a pris une délibération, le 14 décembre 2018, approuvant l'inutilité de ce bien pour l'Établissement. Le Centre Hospitalier Bretagne Sud, dont dépend l'IPFS de Lorient, avait marqué son souhait d'acquérir ce bâtiment. Les services des domaines sont mobilisés en vue de la réalisation de cette cession, mais la situation sanitaire 2020 a ralenti le processus, qui n'est pas encore abouti. Par ailleurs, et dans un contexte de doublement des groupes accueillis sur la filière cyber-défense de l'ENSIBS, des espaces au sein de la délégation de Vannes de la CCI du Morbihan lui sont mises à disposition dans le cadre d'une Convention d'Occupation Temporaire. Ce site est limitrophe du campus de Tohannic. La surface occupée sur l'année universitaire 2020/2021 était de 560m2 pour un coût de 56k€ par an (afin d''y positionner la troisième année de la filière cyber-défense), A la rentrée 2021/2022, une surface complémentaire de 326m2 est occupée pour accueillir les étudiants de seconde année de cette même filière. Le coût global de cette occupation passe ainsi à hauteur de 90k€. Il est à souligner que le site de la délégation vannetaise de la CCI a été racheté par Golfe du Morbihan - Vannes Agglomération, en novembre 2021, dans le cadre de la réalisation du projet de pôle numérique de Vannes prévu au CPER 2021-2027. Les conditions d'utilisation de ces espaces sont à redéfinir en lien avec la Collectivité, une fois cette cession opérée. En termes de travaux structurants, l'opération de réhabilitation de l'IUT de Lorient inscrite au CPER2015-2020 avait débuté en 2018 par la réfection complète de l'étanchéité et de l'isolation des toitures-terrasses du bâtiment HSE. Elle s'est poursuivie et achevée sur l'année universitaire 2019/2020 par la réhabilitation énergétique et gros-entretien de ce même bâtiment, ainsi que la rénovation des toitures-terrasses du bâtiment GIM. De même, ont été terminés sur l'exercice 2020 les travaux de réhabilitation du bâtiment ENSIBS de Vannes, eux-aussi inscrits au CPER 2015-2020. Ainsi, à fin 2020, l'ensemble des opérations bâtimentaires du CPER 2015-2020 confiées en maîtrise d'ouvrage à l'UBS était achevé. L'année 2021 est, pour sa part, fortement structurée autour de la réalisation des opérations d'amélioration de la performance énergétique lauréates du plan de relance de l'économie déployé par l'Etat. Dans ce cadre, l'UBS a obtenu une dotation globale de 3,860 M€ se répartissant entre : - la réhabilitation énergétique du bâtiment Coppens à Vannes, pour un montant de 3,750M€. Les travaux, qui seront pour plus de la moitié terminés fin 2021, portent sur l'isolation thermique par l'extérieur des façades, le remplacement des menuiseries extérieures, le reprise de l'isolation des toitures, le remplacement des chaudières, la mise en place d'une installation de production d'électricité photovoltaïque en toiture, ainsi que la migration Led des éclairages. - la migration Led des éclairages des bâtiments Sciences 2 et Kerjulaude à Lorient, accomplie au premier semestre 2021, pour un montant total de 110 k€. L'année 2021 est également marquée par le lancement des études de réhabilitation énergétique du bâtiment Paquebot à Lorient, qui bénéficie de financements européens du programme React-EU à hauteur de 1,8M€. Les travaux sont prévus sur 2022. Après études de faisabilité orientant le projet d'aménagement d'espaces de sport, vie étudiante et culturelle vers l'ancien gymnase de Kerjulaude, ce projet sera mené sur 2022, intégrant un transfert de propriété de ce site appartenant à Lorient-Agglomération vers l'UBS. Cette opération mobilise pour partie des crédits CVEC. Enfin, le projet de SPSI portant sur la période 2021/2025 a été adressé aux entités ayant à formuler un avis avant approbation de ce Schéma Directeur, D'un point de vue des dépenses de fonctionnement, 2021 connait des niveaux normalement t rencontrés les années antérieures, après un exercice 2020 en décrue du fait de la pandémie Covid. Une vigilance particulière concernera le budget de fonctionnement 2022 à l'aune de la forte hausse actuelle des prix de l'électricité et du gaz (ce poste représentant, avant les actuelles augmentation conjoncturelles, une charge de l'ordre de 1M€ par an).
E10: exécution (année 2021) | F10: dernier BR (année 2022)
B11: Données physiques
B12: Nombre de bâtiments occupés | D12: X | E12: 22 | F12: 22
B13: dont biens propres | D13: X | E13: 1 | F13: 1
B14: dont biens domaniaux | D14: X | E14: 21 | F14: 21
B15: dont prises à bail | D15: X | E15: 0 | F15: 0
B16: dont autres mises à disposition (ex. : collectivités territoriales) | D16: X | E16: 0 | F16: 0
B17: Surface totale occupée (m² - SUB) | D17: X | E17: 96151 | F17: 95591
B18: dont biens propres | D18: X | E18: 934 | F18: 934
B19: dont biens domaniaux | D19: X | E19: 94657 | F19: 94657
B20: dont prises à bail | D20: X
B21: dont autres mises à disposition (ex. : collectivités territoriales) | D21: X | E21: 560
B22: Ratio m² SUN / poste de travail (*) | D22: X
D25: classe de compte (n°) | E25: exécution (N-1) | F25: dernier BR (N)
B26: Dépenses de fonctionnement à l'€ près
B27: Redevances de crédit-bail immobilier (*) | D27: 6125 | E27: 0 | F27: 0
B28: Locations immobilières (*) | D28: 6132 | E28: 110548.46 | F28: 152582.04
B29: Entretien et réparations sur biens immobiliers (*) | D29: 6152 | E29: 380739.38 | F29: 394619.8
B31: Dépenses d'acquisition à l'€ près
B32: Acquisition de biens propres ou de biens domaniaux | D32: X | E32: 0 | F32: 50000
B34: Dépenses d'investissement à l'€ près
B35: Réalisation de travaux structurants sur les biens propres ou domaniaux | D35: X | E35: 4375169 | F35: 2615865
B37: Produits de cession d'immobilisations corporelles à l'€ près
B38: dont biens propres | D38: 7752 | E38: 0 | F38: 0
B39: dont biens domaniaux | D39: 7752 | E39: 0 | F39: 0
B40: (*) Les données sont disponibles à la saisie dans le système d'informations des opérateurs de l'Etat (SI OPE)
